Business Unit Description,Expense Code,Expense Code Description,GL Date,Document No.,Invoice No.,Invoiced Value,Supplier Name,Address Book No.,Proclass Details Level 1,Thomson Classification Description
STREET FORCE BALANCE SHEET    ,776,4332101 INVOICES PAID         ,04/04/2011,3008473,5797,615.00,A & W HELLIWELL & SONS LTD              ,202556,Unclassified Trade,FARMING - LIVESTOCK & OTHER AN
STREET FORCE BALANCE SHEET    ,776,4332101 INVOICES PAID         ,04/04/2011,3008474,5798,635.00,A & W HELLIWELL & SONS LTD              ,202556,Unclassified Trade,FARMING - LIVESTOCK & OTHER AN
STREET FORCE BALANCE SHEET    ,776,4332101 INVOICES PAID         ,04/04/2011,3008475,5799,665.00,A & W HELLIWELL & SONS LTD              ,202556,Unclassified Trade,FARMING - LIVESTOCK & OTHER AN
STREET FORCE BALANCE SHEET    ,776,4332101 INVOICES PAID         ,04/04/2011,3008477,5800,665.00,A & W HELLIWELL & SONS LTD              ,202556,Unclassified Trade,FARMING - LIVESTOCK & OTHER AN
STREET FORCE BALANCE SHEET    ,776,4332101 INVOICES PAID         ,04/04/2011,3008480,76759,569.61,PROTEUS  EQUIPMENT LTD                  ,467322,Vehicles Not Buses,ROAD CONSTRUCTION EQUIPMENT MN
STREET FORCE BALANCE SHEET    ,776,4332101 INVOICES PAID         ,04/04/2011,3008471,5795,645.00,A & W HELLIWELL & SONS LTD              ,202556,Unclassified Trade,FARMING - LIVESTOCK & OTHER AN
STREET FORCE BALANCE SHEET    ,776,4332101 INVOICES PAID         ,04/04/2011,3008433,1098304490,1141.68,KONICA MINOLTA BUSINESS SOLUTIONS EAST  ,206267,ICT,OFFICE EQUIPMENT MNFRS & DISTR
TRANSPORT FLEET MANAGEMENT    ,7060,EXTERNAL VEHICLE HIRE         ,04/04/2011,2964201,RAIN115554               ,15131.64,LEX AUTOLEASE LTD                       ,348779,Vehicles Not Buses,CAR & TRUCK LEASING & CONTRACT
INTAKE PRIMARY KITCHEN        ,1183,PURCHASE OF EQUIPMENT         ,04/04/2011,2978209,OP/I505633               ,2753.00,HOBART UK                               ,208961,Catering,CATERING EQUIPMENT            
CREATIVE SERVICES             ,9120,OTHER AGENCIES                ,04/04/2011,2979850,17338,1580.00,P & N CORPORATE MEDIA LTD               ,308965,Facilities Management,DESIGNERS - GRAPHIC           
CREATIVE SERVICES             ,9120,OTHER AGENCIES                ,04/04/2011,2979860,17335,755.00,P & N CORPORATE MEDIA LTD               ,308965,Facilities Management,DESIGNERS - GRAPHIC           
INVESTMENT IN COMMUNITIES2    ,9120,OTHER AGENCIES                ,04/04/2011,2993723,254516390,1466.10,YORKSHIRE PURCHASING ORGANISATION       ,295997,Unclassified Trade,PURCHASING SERVICES           
PARK HILL (STH)               ,1158,DWELLINGS SUB CONTRACTORS     ,04/04/2011,2996505,38657,21273.98,SOUTH YORKSHIRE POLICE                  ,346012,Unclassified Non Trade,POLICE                        
CREATIVE SERVICES             ,9120,OTHER AGENCIES                ,04/04/2011,2996542,INV144465                ,500.00,A PINDER LTD                            ,202627,Facilities Management,COPYING & DUPLICATING SERVICES
LEARN SAFE DRIVE SAFE         ,1193,CONSULTANTS FEES              ,04/04/2011,2997312,290,1440.00,EDRIVING SOLUTIONS LTD                  ,540671,Education,DRIVING SCHOOLS               
PARK HILL (STH)               ,1158,DWELLINGS SUB CONTRACTORS     ,04/04/2011,2997359,38731,15323.61,SOUTH YORKSHIRE POLICE                  ,346012,Unclassified Non Trade,POLICE                        
CREATIVE SERVICES             ,9120,OTHER AGENCIES                ,04/04/2011,2997957,77276,647.00,WHITTINGTON MOOR PRINTING WORKS LTD     ,461594,Facilities Management,PRINTERS                      
CREATIVE SERVICES             ,9120,OTHER AGENCIES                ,04/04/2011,2997964,57212,1412.00,WHITESPRINT GROUP LIMITED               ,202894,Facilities Management,PRINTERS                      
SHORT BREAKS FUNDING FOR DISAB,9120,OTHER AGENCIES                ,04/04/2011,2998128,SCC010                   ,10000.00,SHEFFIELD PARENT CARER FORUM            ,540788,Unclassified Non Trade,CHARITIES & VOLUNTARY ORGANISA
GRAVES TENNIS & LEISURE CENTRE,8380,PHOTOCOPYING                  ,04/04/2011,2998151,1098377466,538.08,KONICA MINOLTA BUSINESS SOLUTIONS       ,375732,ICT,PHOTOCOPIERS                  
NE SHEFF COMMUNITY PROJECTS   ,8440,FEE EXPENSES                  ,04/04/2011,2998206,470,3000.00,NORTH SHEFFIELD CONSERVATION GROUP      ,310661,Unclassified Non Trade,CHARITIES & VOLUNTARY ORGANISA
FIELDWORK STRATEGY CENTRAL    ,8440,FEE EXPENSES                  ,04/04/2011,2998327,38766,32700.00,SOUTH YORKSHIRE POLICE                  ,346385,Unclassified Non Trade,POLICE                        
LICENSING                     ,5750,TRAINING EXPENDITURE          ,04/04/2011,2998851,50374,699.00,INSTITUTE OF LICENSING (EVENTS) LIMITED ,461885,Human Resources,INSTITUTES - PROFESSIONAL     
CREATIVE SERVICES             ,9120,OTHER AGENCIES                ,04/04/2011,2999200,58826,509.00,PRINT AND DESIGN FACTORY LTD.           ,207663,Facilities Management,PRINTERS                      
CREATIVE SERVICES             ,9120,OTHER AGENCIES                ,04/04/2011,2999211,58825,829.00,PRINT AND DESIGN FACTORY LTD.           ,207663,Facilities Management,PRINTERS                      
TRANSPORT POLICY              ,5610,AGENCY STAFF                  ,04/04/2011,2999231,1280554,1049.22,MATCHTECH GROUP PLC                     ,387061,Human Resources,EMPLOYMENT & RECRUITMENT AGENC
TRANSPORT POLICY              ,5610,AGENCY STAFF                  ,04/04/2011,2999244,1277430,1315.44,MATCHTECH GROUP PLC                     ,387061,Human Resources,EMPLOYMENT & RECRUITMENT AGENC
TRANSPORT POLICY              ,5610,AGENCY STAFF                  ,04/04/2011,2999251,1270086,1221.48,MATCHTECH GROUP PLC                     ,387061,Human Resources,EMPLOYMENT & RECRUITMENT AGENC
TRANSPORT POLICY              ,5610,AGENCY STAFF                  ,04/04/2011,2999261,1284107,829.98,MATCHTECH GROUP PLC                     ,387061,Human Resources,EMPLOYMENT & RECRUITMENT AGENC
TRANSPORT POLICY              ,5610,AGENCY STAFF                  ,04/04/2011,2999267,1287920,548.10,MATCHTECH GROUP PLC                     ,387061,Human Resources,EMPLOYMENT & RECRUITMENT AGENC
YOUTH SERVICES                ,9120,OTHER AGENCIES                ,04/04/2011,2999567,10,25000.00,LOWEDGES COMMUNITY AND SAFETY FORUM     ,325237,Unclassified Non Trade,CHARITIES & VOLUNTARY ORGANISA
STREET FORCE BALANCE SHEET    ,776,4332101 INVOICES PAID         ,04/04/2011,3008472,5796,645.00,A & W HELLIWELL & SONS LTD              ,202556,Unclassified Trade,FARMING - LIVESTOCK & OTHER AN
COUNT ME IN                   ,8440,FEE EXPENSES                  ,04/04/2011,3000820,3400000000000,1230.89,DECATHLON UK LTD                        ,365405,Sports & Playground,SPORTS GOODS SHOPS            
URBAN DESIGN & CONSERVATION   ,8440,FEE EXPENSES                  ,04/04/2011,3000958,GLA28208                 ,769.95,GILLESPIES LLP                          ,509084,Consultancy,ENVIRONMENTAL CONSULTANTS     
SERVICE MANAGEMENT            ,8440,FEE EXPENSES                  ,04/04/2011,3001096,38561/38660              ,8116.85,SOUTH YORKSHIRE POLICE                  ,301616,Unclassified Non Trade,POLICE                        
GRAVES TENNIS & LEISURE CENTRE,8420,ADVERTISING AND PUBLICITY     ,04/04/2011,3001485,50775,646.00,PRINT ENGINE UK LIMITED                 ,399692,Facilities Management,PRINTERS                      
CREATIVE SERVICES             ,9120,OTHER AGENCIES                ,04/04/2011,3001610,32454,1057.54,GARNETT DICKINSON PUBLISHING LTD        ,205074,Education,NEWSPAPER & MAGAZINE PUBLISHER
CREATIVE SERVICES             ,9120,OTHER AGENCIES                ,04/04/2011,3001634,58824,514.00,PRINT AND DESIGN FACTORY LTD.           ,207663,Facilities Management,PRINTERS                      
CITY STEWARDSHIP - GENERAL    ,6030,REPAIRS TO TENANTED PROPERTIES,04/04/2011,3001666,10090225,136039.06,KIER SHEFFIELD LLP                      ,352687,Construction,PROPERTY MAINTENANCE & REPAIRS
CITY STEWARDSHIP - GENERAL    ,6030,REPAIRS TO TENANTED PROPERTIES,04/04/2011,3001668,10090224,136060.79,KIER SHEFFIELD LLP                      ,352687,Construction,PROPERTY MAINTENANCE & REPAIRS
CATERING PREMISES & EQUIPMENT ,8010,EQUIPMENT PURCHASE AND REPAIR ,04/04/2011,3002183,IM437520                 ,1849.00,MANITOWOC FOODSERVICE UK LTD            ,510809,Domestic Goods,COOKERS - SALES & SERVICE     
CATERING PREMISES & EQUIPMENT ,8010,EQUIPMENT PURCHASE AND REPAIR ,04/04/2011,3002184,IM437519                 ,1334.00,MANITOWOC FOODSERVICE UK LTD            ,510809,Domestic Goods,COOKERS - SALES & SERVICE     
CREATIVE SERVICES             ,9120,OTHER AGENCIES                ,04/04/2011,3002217,17427,780.00,P & N CORPORATE MEDIA LTD               ,308965,Facilities Management,DESIGNERS - GRAPHIC           
CATERING PREMISES & EQUIPMENT ,8010,EQUIPMENT PURCHASE AND REPAIR ,04/04/2011,3002226,IM437269                 ,1175.00,MANITOWOC FOODSERVICE UK LTD            ,510809,Domestic Goods,COOKERS - SALES & SERVICE     
CATERING PREMISES & EQUIPMENT ,8010,EQUIPMENT PURCHASE AND REPAIR ,04/04/2011,3002279,OP/I506536               ,2753.00,HOBART UK                               ,208961,Catering,CATERING EQUIPMENT            
CATERING PREMISES & EQUIPMENT ,8010,EQUIPMENT PURCHASE AND REPAIR ,04/04/2011,3002281,OP/I506535               ,2753.00,HOBART UK                               ,208961,Catering,CATERING EQUIPMENT            
EAST AREA MANAGEMENT FEE      ,5610,AGENCY STAFF                  ,04/04/2011,3002303,51594,1102.23,LYNX EMPLOYMENT SERVICES LTD            ,349384,Human Resources,EMPLOYMENT & RECRUITMENT AGENC
WINTER GARDEN                 ,6150,ELECTRICITY                   ,04/04/2011,3002562,SIN001681                ,6097.31,MUSEUMS SHEFFIELD                       ,380579,Leisure Services,MUSEUMS                       
MEDICO LEGAL CENTRE           ,8010,EQUIPMENT PURCHASE AND REPAIR ,04/04/2011,3002722,C4980                    ,1950.58,CHEMSOL LTD                             ,342893,Unclassified Trade,CHEMICALS - DISTRIBUTORS & WHO
ESTATE SERVICES               ,6090,TIPPING COSTS                 ,04/04/2011,3002729,33547/1                  ,1010.64,R FLETCHER WASTE DISPOSAL LTD           ,473104,Environmental Services,WASTE DISPOSAL SERVICES       
ESTATE SERVICES               ,6090,TIPPING COSTS                 ,04/04/2011,3002730,33546/1                  ,786.60,R FLETCHER WASTE DISPOSAL LTD           ,473104,Environmental Services,WASTE DISPOSAL SERVICES       
ESTATE SERVICES               ,6090,TIPPING COSTS                 ,04/04/2011,3002732,33544/1                  ,716.28,R FLETCHER WASTE DISPOSAL LTD           ,473104,Environmental Services,WASTE DISPOSAL SERVICES       
CARE PROCEEDINGS (LEGAL FEES) ,8470,LEGAL FEES                    ,04/04/2011,3005452,126157,1650.00,MR A M WYNNE                            ,487888,Legal Services,BARRISTERS                    
CARE PROCEEDINGS (LEGAL FEES) ,8470,LEGAL FEES                    ,04/04/2011,3005458,120794,750.00,MR A M WYNNE                            ,487888,Legal Services,BARRISTERS                    
CARE PROCEEDINGS (LEGAL FEES) ,8470,LEGAL FEES                    ,04/04/2011,3005461,127953,1015.00,MRS JILL TROY                           ,475760,Legal Services,BARRISTERS                    
CARE PROCEEDINGS (LEGAL FEES) ,8470,LEGAL FEES                    ,04/04/2011,3005464,128369,1075.00,MRS JILL TROY                           ,475760,Legal Services,BARRISTERS                    
CARE PROCEEDINGS (LEGAL FEES) ,8470,LEGAL FEES                    ,04/04/2011,3005472,126685,1415.00,MR CHARLES PREST                        ,535858,Legal Services,BARRISTERS                    
CARE PROCEEDINGS (LEGAL FEES) ,8470,LEGAL FEES                    ,04/04/2011,3005481,129150,945.00,MR STEPHEN SWITALSKI                    ,527392,Legal Services,BARRISTERS                    
CARE PROCEEDINGS (LEGAL FEES) ,8470,LEGAL FEES                    ,04/04/2011,3005486,187582,2150.00,MR JOHN JACKSON                         ,456846,Legal Services,BARRISTERS                    
CARE PROCEEDINGS (LEGAL FEES) ,8470,LEGAL FEES                    ,04/04/2011,3005491,196083,900.00,MS LYNN MCFADYEN                        ,507417,Legal Services,BARRISTERS                    
CARE PROCEEDINGS (LEGAL FEES) ,8470,LEGAL FEES                    ,04/04/2011,3005493,127103,1450.00,MISS N G ERLEN                          ,465151,Legal Services,BARRISTERS                    
PURCHASING ELDERLY            ,9190,EXTRA CARE HOUSING            ,04/04/2011,3005494,16526,16441.04,CAREWATCH (SHEFFIELD)                   ,328494,Social Community Care,HOME CARE SERVICES            
CARE PROCEEDINGS (LEGAL FEES) ,8470,LEGAL FEES                    ,04/04/2011,3005495,126851,600.00,MISS N G ERLEN                          ,465151,Legal Services,BARRISTERS                    
PURCHASING ELDERLY            ,9190,EXTRA CARE HOUSING            ,04/04/2011,3005499,16532,14414.68,CAREWATCH (SHEFFIELD)                   ,328494,Social Community Care,HOME CARE SERVICES            
CARE PROCEEDINGS (LEGAL FEES) ,8470,LEGAL FEES                    ,04/04/2011,3005507,126375,2550.00,MISS P STANISTREET                      ,504926,Legal Services,BARRISTERS                    
CARE PROCEEDINGS (LEGAL FEES) ,8470,LEGAL FEES                    ,04/04/2011,3005511,126083,600.00,MISS D TIGHE                            ,491150,Legal Services,BARRISTERS                    
SOCIAL SERVICES LOCATION PLACE,9120,OTHER AGENCIES                ,04/04/2011,3005536,430018503,2000.93,"TEES, ESK AND WEAR VALLEYS NHS FOUNDATIO",542729,Unclassified Non Trade,HEALTH AUTHORITIES            
OLEA SEN TRANSPORT            ,7140,PUBLIC TRANSPORT COSTS        ,04/04/2011,3005626,74053471,4207.76,NOTTINGHAM CITY COUNCIL                 ,471064,Unclassified Non Trade,LOCAL GOVERNMENT              
OLEA SEN TRANSPORT            ,7140,PUBLIC TRANSPORT COSTS        ,04/04/2011,3005632,74053455,1695.53,NOTTINGHAM CITY COUNCIL                 ,471064,Unclassified Non Trade,LOCAL GOVERNMENT              
CARE PROCEEDINGS (LEGAL FEES) ,8470,LEGAL FEES                    ,04/04/2011,3005754,180313,925.00,MR JOHN JACKSON                         ,456846,Legal Services,BARRISTERS                    
CREATIVE SERVICES             ,9120,OTHER AGENCIES                ,04/04/2011,3005898,58853,509.00,PRINT AND DESIGN FACTORY LTD.           ,207663,Facilities Management,PRINTERS                      
CREATIVE SERVICES             ,9120,OTHER AGENCIES                ,04/04/2011,3005901,57173,641.00,WHITESPRINT GROUP LIMITED               ,202894,Facilities Management,PRINTERS                      
CREATIVE SERVICES             ,9120,OTHER AGENCIES                ,04/04/2011,3005919,56570,685.80,INTOPRINT (UK) LIMITED                  ,319560,Facilities Management,PRINTERS                      
ENVIRONMENTAL OPERATIONS      ,8550,OTHER SERVICES                ,04/04/2011,3005981,656,4887.00,NATIONWIDE PUBLIC AREA CLEANING LTD     ,509846,Cleaning and Janitorial,CLEANING SERVICES - COMMERCIAL
CARE PROCEEDINGS (LEGAL FEES) ,8470,LEGAL FEES                    ,04/04/2011,3005993,123638,900.00,MR A M WYNNE                            ,487888,Legal Services,BARRISTERS                    
CREATIVE SERVICES             ,9120,OTHER AGENCIES                ,04/04/2011,3006010,57210,963.20,WHITESPRINT GROUP LIMITED               ,202894,Facilities Management,PRINTERS                      
BURGLAR ALARMS                ,6030,REPAIRS TO TENANTED PROPERTIES,04/04/2011,3006037,SSH/CAPITALPROG/RES/096/1,3359.61,TELSTAR SECURITY                        ,299814,Facilities Management,SECURITY EQUIPMENT            
CHANGE4LIFE: BIKE IT POOL     ,8410,GENERAL OFFICE EXPENSES       ,04/04/2011,3006098,2379,2216.60,RECYCLE BIKES                           ,507392,Sports & Playground,CYCLE SHOPS                   
HOME CARE - GENERAL           ,8110,"CLOTHING, UNIFORM AND LAUNDRY ",04/04/2011,3006118,71893,551.00,UNIFORMITY CLOTHING CO                  ,470923,Clothing,UNIFORMS & STAFF WEAR         
SOCIAL SERVICES LOCATION PLACE,9050,OTHER LOCAL AUTHORITIES       ,04/04/2011,3006199,60887269,8004.80,HALTON BOROUGH COUNCIL                  ,326177,Unclassified Non Trade,LOCAL GOVERNMENT              
P&FM CLIENT                   ,8460,CONSULTANTS FEES              ,04/04/2011,3006605,26331/0311420            ,6033.00,MACE LTD                                ,382347,Construction,BUILDERS                      
AGENCY STAFF                  ,5610,AGENCY STAFF - INVOICE        ,04/04/2011,3006929,CE0221946697C1           ,100074.92,REED                                    ,341818,Human Resources,EMPLOYMENT & RECRUITMENT AGENC
CHILDCARE VOUCHER SCHEME      ,5790,EMPLOYEE EXPENSES-INVOICED    ,04/04/2011,3006933,849228,4199.36,SODEXO PASS LTD CHILDCARE VOUCHERS      ,393530,Education,EDUCATIONAL SERVICES          
CARE4YOU SERVICE              ,8540,SECURITY SERVICES             ,04/04/2011,3006948,779,1800.00,FOCUS CCTV LIMITED                      ,486379,Facilities Management,CCTV & VIDEO EQUIPMENT        
EMERGENCY PLANNING            ,8440,FEE EXPENSES                  ,04/04/2011,3007073,112973296,1000.00,ROTHERHAM M B C                         ,296984,Unclassified Non Trade,LOCAL GOVERNMENT              
SHEAF SQ/HOWARD ST            ,6030,REPAIRS AND MTCE - RESPONSIVE ,04/04/2011,3007080,4296,1463.41,COXHEAD ELECTRICAL SERVICES             ,527937,Construction,ELECTRICIANS & ELECTRICAL CONT
LEGI                          ,8440,FEE EXPENSES                  ,04/04/2011,3007097,02/CYPD/2011             ,4725.00,BUSINESS ONE CONSULTING LTD             ,474668,Consultancy,BUSINESS & MANAGEMENT CONSULTA
INVESTMENT PLANNING           ,5610,AGENCY STAFF                  ,04/04/2011,3007140,222209233,532.06,REED EMPLOYMENT                         ,317819,Human Resources,EMPLOYMENT & RECRUITMENT AGENC
EMERGENCY PLANNING            ,8440,FEE EXPENSES                  ,04/04/2011,3007151,112973270,1000.00,ROTHERHAM M B C                         ,296984,Unclassified Non Trade,LOCAL GOVERNMENT              
EMERGENCY PLANNING            ,8440,FEE EXPENSES                  ,04/04/2011,3007155,112973261,1000.00,ROTHERHAM M B C                         ,296984,Unclassified Non Trade,LOCAL GOVERNMENT              
EMERGENCY PLANNING            ,8440,FEE EXPENSES                  ,04/04/2011,3007158,112973288,1000.00,ROTHERHAM M B C                         ,296984,Unclassified Non Trade,LOCAL GOVERNMENT              
INTER AGENCY FEES             ,9120,OTHER AGENCIES                ,04/04/2011,3007163,415/01                   ,860.00,ADOPTION MATTERS                        ,340890,Unclassified Non Trade,CHARITIES & VOLUNTARY ORGANISA
CASTLE                        ,6090,WASTE DISPOSAL                ,04/04/2011,3007220,158,1300.00,R L DEAR (WASTE MERCHANTS) LTD          ,360135,Environmental Services,WASTE MERCHANTS               
PAYMENT HOLDING ACCOUNT       ,8350,MISCELLANEOUS EXPENSES        ,04/04/2011,3007262,412,54140.21,SHEFFIELD HOMES LTD                     ,503889,Unclassified Non Trade,"HOUSING ASSOCIATIONS, SOCIETIE"
SOCIAL SERVICES LOCATION PLACE,9050,OTHER LOCAL AUTHORITIES       ,04/04/2011,3007270,9000112754,3810.73,BARNSLEY M B C                          ,503147,Unclassified Non Trade,LOCAL GOVERNMENT              
SOCIAL SERVICES LOCATION PLACE,9050,OTHER LOCAL AUTHORITIES       ,04/04/2011,3007277,9000112755,3810.73,BARNSLEY M B C                          ,503147,Unclassified Non Trade,LOCAL GOVERNMENT              
SOCIAL SERVICES LOCATION PLACE,9050,OTHER LOCAL AUTHORITIES       ,04/04/2011,3007283,9000112753,3810.73,BARNSLEY M B C                          ,503147,Unclassified Non Trade,LOCAL GOVERNMENT              
CITY CENTRE MANAGEMENT & ADMIN,5750,TRAINING EXPENDITURE          ,04/04/2011,3007315,90497205,598.00,SERCO SHARED SERVICE CENTRE             ,485186,Education,E-LEARNING                    
PAYMENT HOLDING ACCOUNT       ,8350,MISCELLANEOUS EXPENSES        ,04/04/2011,3007421,414,757.60,SHEFFIELD HOMES LTD                     ,503889,Unclassified Non Trade,"HOUSING ASSOCIATIONS, SOCIETIE"
SOCIAL SERVICES LOCATION PLACE,9050,OTHER LOCAL AUTHORITIES       ,04/04/2011,3007501,9000112761,3810.73,BARNSLEY M B C                          ,503147,Unclassified Non Trade,LOCAL GOVERNMENT              
SOCIAL SERVICES LOCATION PLACE,9050,OTHER LOCAL AUTHORITIES       ,04/04/2011,3007505,9000112760,3810.73,BARNSLEY M B C                          ,503147,Unclassified Non Trade,LOCAL GOVERNMENT              
SOCIAL SERVICES LOCATION PLACE,9050,OTHER LOCAL AUTHORITIES       ,04/04/2011,3007557,9000112756,3810.73,BARNSLEY M B C                          ,503147,Unclassified Non Trade,LOCAL GOVERNMENT              
SOCIAL SERVICES LOCATION PLACE,9050,OTHER LOCAL AUTHORITIES       ,04/04/2011,3007560,9000112757,3810.73,BARNSLEY M B C                          ,503147,Unclassified Non Trade,LOCAL GOVERNMENT              
SOCIAL SERVICES LOCATION PLACE,9050,OTHER LOCAL AUTHORITIES       ,04/04/2011,3007563,9000112758,3810.73,BARNSLEY M B C                          ,503147,Unclassified Non Trade,LOCAL GOVERNMENT              
EFFICIENCY NORTH              ,8460,CONSULTANTS FEES              ,04/04/2011,3007569,DR/243                   ,1250.00,PARKINSON PROCUREMENT SOLUTIONS LTD     ,487014,Consultancy,BUSINESS & MANAGEMENT CONSULTA
PARKWOOD SPRINGS AVALANCE RIS ,1161,NC&A MAIN CONTRACT            ,04/04/2011,3007575,3187,1475.00,VERTICAL ACCESS LTD                     ,516505,Leisure Services,OUTDOOR PURSUIT ORGANISERS & E
ABG - ENC COMM STRATEGY       ,8460,CONSULTANTS FEES              ,04/04/2011,3007782,43428,2950.00,DIVA CREATIVE  LTD                      ,204401,Facilities Management,MARKETING CONSULTANTS & SERVIC
CARE4AIR                      ,1193,CONSULTANTS FEES              ,04/04/2011,3007805,12359,3000.00,DIVA CREATIVE  LTD                      ,204401,Facilities Management,MARKETING CONSULTANTS & SERVIC
CARE4AIR                      ,1193,CONSULTANTS FEES              ,04/04/2011,3007810,15281,3000.00,DIVA CREATIVE  LTD                      ,204401,Facilities Management,MARKETING CONSULTANTS & SERVIC
ECONOMIC                      ,8460,CONSULTANTS FEES              ,04/04/2011,3007827,MSM/4907                 ,720.00,GARDINER & THEOBALD LLP                 ,480727,Consultancy,QUANTITY SURVEYORS            
EMPLOYEE DEVELOPMENT          ,5750,EXTERNAL TRAINERS COSTS       ,04/04/2011,3007828,INV47738                 ,960.00,EVAC&CHAIR INTERNATIONAL LIMITED        ,307184,Clothing,SAFETY EQUIPMENT & CLOTHING   
MEDICO LEGAL CENTRE           ,8010,EQUIPMENT PURCHASE AND REPAIR ,04/04/2011,3007836,27337,1484.80,VIC FEARN & CO LTD                      ,345066,Environmental Services,COFFIN MNFRS                  
BANKWOOD CHILDRENS CENTRE     ,8350,MISCELLANEOUS EXPENSES        ,04/04/2011,3007839,674JW-1                  ,793.00,COMMUNITY PLAYTHINGS                    ,511400,Education,EDUCATIONAL EQUIPMENT & SUPPLI
EMERGENCY PLANNING            ,5750,TRAINING EXPENDITURE          ,04/04/2011,3007851,90471211,606.00,EMERGENCY PLANNING COLLEGE              ,296071,Unclassified Non Trade,CENTRAL GOVERNMENT            
CONTINUING HEALTH CARE TEAM   ,5610,AGENCY STAFF                  ,04/04/2011,3007856,4000275581,12076.05,SHEFFIELD TEACHING HOSPITAL NHS         ,309216,Unclassified Non Trade,HOSPITALS                     
SOCIAL SERVICES LOCATION PLACE,9050,OTHER LOCAL AUTHORITIES       ,04/04/2011,3007874,X190080977X              ,7330.80,THE CITY OF LIVERPOOL                   ,338343,Unclassified Non Trade,LOCAL GOVERNMENT              
SOCIAL SERVICES LOCATION PLACE,9050,OTHER LOCAL AUTHORITIES       ,04/04/2011,3007875,PRA057302                ,12428.73,NOTTINGHAMSHIRE COUNTY COUNCIL          ,319093,Unclassified Non Trade,LOCAL GOVERNMENT              
CARE PROCEEDINGS (LEGAL FEES) ,8470,LEGAL FEES                    ,04/04/2011,3007894,126898,600.00,MS C E FORD                             ,544033,Legal Services,SOLICITORS                    
LITIGATION                    ,8470,LEGAL FEES                    ,04/04/2011,3007898,72210,4910.00,MR TIMOTHY PITT-PAYNE                   ,531959,Legal Services,BARRISTERS                    
CARE PROCEEDINGS (LEGAL FEES) ,8470,LEGAL FEES                    ,04/04/2011,3007900,184602,600.00,REDACTED PERSONAL DATA                   ,548708,Unclassified Non Trade,OUT OF SCOPE FOR SIC MONITORIN
SOCIAL SERVICES LOCATION PLACE,9120,OTHER AGENCIES                ,04/04/2011,3007904,1800026838,771.42,DERBYSHIRE COUNTY COUNCIL               ,299578,Unclassified Non Trade,LOCAL GOVERNMENT              
PURCHASING ELDERLY            ,9200,CONTINUING RESIDENTIAL CARE   ,04/04/2011,3008121,J356542 030411           ,15929.57,JASMIN COURT NURSING HOME               ,361764,Social Community Care,NURSING HOMES                 
PURCHASING ELDERLY            ,9200,CONTINUING RESIDENTIAL CARE   ,04/04/2011,3008122,J356546 030411           ,13500.00,KINGFIELD HOLT                          ,361766,Social Community Care,RESIDENTIAL CARE HOMES        
PURCHASING ELDERLY            ,9200,CONTINUING RESIDENTIAL CARE   ,04/04/2011,3008123,J356550 030411           ,1364.00,LITTLEDALE NURSING HOME                 ,361783,Social Community Care,NURSING HOMES                 
PURCHASING ELDERLY            ,9200,CONTINUING RESIDENTIAL CARE   ,04/04/2011,3008124,J356544 030411           ,18810.00,TAPTON EDGE REST HOME LTD               ,361786,Social Community Care,REST & RETIREMENT HOMES       
PURCHASING ELDERLY            ,9200,CONTINUING RESIDENTIAL CARE   ,04/04/2011,3008125,J356545 030411           ,4541.29,HADDON COURT NURSING HOME               ,361916,Social Community Care,NURSING HOMES                 
PURCHASING ELDERLY            ,4260,RESIDENTIAL COSTS RECOVERED   ,04/04/2011,3008126,J354090 030411           ,1017.32,THE LIME TREES                          ,362053,Social Community Care,RESIDENTIAL CARE HOMES        
PURCHASING ELDERLY            ,9200,CONTINUING RESIDENTIAL CARE   ,04/04/2011,3008127,J356552 030411           ,3151.28,HAYTHORNE PLACE                         ,362099,Social Community Care,RESIDENTIAL CARE HOMES        
PURCHASING ELDERLY            ,9210,CONTINUING NURSING CARE       ,04/04/2011,3008127,J356552 030411           ,4367.00,HAYTHORNE PLACE                         ,362099,Social Community Care,RESIDENTIAL CARE HOMES        
PHYSICAL DISABILITIES PURCHASI,9210,CONTINUING NURSING CARE       ,04/04/2011,3008128,J356551 030411           ,8820.00,HENLEIGH HALL                           ,362109,Social Community Care,NURSING HOMES                 
PURCHASING ELDERLY            ,9200,CONTINUING RESIDENTIAL CARE   ,04/04/2011,3008129,J349411 030411           ,1640.24,DERWENT HOUSE HOME                      ,466699,Social Community Care,RESIDENTIAL CARE HOMES        
PURCHASING ELDERLY            ,9200,SHORT TERM RESIDENTIAL CARE   ,04/04/2011,3008132,J356522 060311           ,1851.14,DEERLANDS                               ,361836,Social Community Care,RESIDENTIAL CARE HOMES        
PURCHASING ELDERLY            ,9210,SHORT TERM NURSING CARE       ,04/04/2011,3008133,J356527 060311           ,1173.00,HADDON COURT NURSING HOME               ,361916,Social Community Care,NURSING HOMES                 
PURCHASING ELDERLY            ,9200,SHORT TERM RESIDENTIAL CARE   ,04/04/2011,3008134,J356529 060311           ,2653.72,HAYTHORNE PLACE                         ,362099,Social Community Care,RESIDENTIAL CARE HOMES        
PHYSICAL DISABILITIES PURCHASI,9210,SHORT TERM NURSING CARE       ,04/04/2011,3008134,J356529 060311           ,1428.57,HAYTHORNE PLACE                         ,362099,Social Community Care,RESIDENTIAL CARE HOMES        
PURCHASING LEARNING DISABILITI,9200,SHORT TERM RESIDENTIAL CARE   ,04/04/2011,3008135,J356526 060311           ,1047.85,SHIREBROOK FIELDS                       ,362105,Social Community Care,NURSING HOMES                 
EAST SA - CIN S17             ,9270,CARELEAVERS INDEPENDENT LIVING,04/04/2011,3008138,F49960-03344             ,754.00,SHEFFIELD CO-OPERATIVE FUNERALCARE      ,203171,Environmental Services,FUNERAL SERVICES              
PHYSICAL DISABILITIES PURCHASI,9190,DIRECT PAYMENTS               ,04/04/2011,3008143,J356554 010511           ,504.00,REDACTED PERSONAL DATA                     ,536902,Social Community Care,CAREFIRST DIRECT PAYMENTS     
PURCHASING ELDERLY            ,9190,DIRECT PAYMENTS               ,04/04/2011,3008144,J356556 010511           ,1072.32,REDACTED PERSONAL DATA                     ,548662,Social Community Care,CAREFIRST DIRECT PAYMENTS     
PURCHASING LEARNING DISABILITI,9190,DIRECT PAYMENTS               ,04/04/2011,3008145,J356555 010511           ,2811.08,REDACTED PERSONAL DATA                     ,548734,Social Community Care,CAREFIRST DIRECT PAYMENTS     
PHYSICAL DISABILITIES PURCHASI,9190,DIRECT PAYMENTS               ,04/04/2011,3008147,J356558 010511           ,2917.12,REDACTED PERSONAL DATA                     ,549200,Social Community Care,CAREFIRST DIRECT PAYMENTS     
CARERS SPECIAL GRANT          ,9190,DIRECT PAYMENTS               ,04/04/2011,3008148,J356560 010511           ,1750.87,REDACTED PERSONAL DATA                     ,549202,Social Community Care,CAREFIRST DIRECT PAYMENTS     
PHYSICAL DISABILITIES PURCHASI,9190,DIRECT PAYMENTS               ,04/04/2011,3008149,J356559 010511           ,3195.00,REDACTED PERSONAL DATA                     ,549203,Social Community Care,CAREFIRST DIRECT PAYMENTS     
PURCHASING ELDERLY            ,9190,DIRECT PAYMENTS               ,04/04/2011,3008150,J356561 010511           ,546.00,REDACTED PERSONAL DATA                     ,549204,Social Community Care,CAREFIRST DIRECT PAYMENTS     
PURCHASING LEARNING DISABILITI,9190,DIRECT PAYMENTS               ,04/04/2011,3008151,J356563 010511           ,3650.48,REDACTED PERSONAL DATA                     ,549210,Social Community Care,CAREFIRST DIRECT PAYMENTS     
PURCHASING LEARNING DISABILITI,9190,DIRECT PAYMENTS               ,04/04/2011,3008152,J356562 010511           ,4126.57,REDACTED PERSONAL DATA                     ,549211,Social Community Care,CAREFIRST DIRECT PAYMENTS     
PURCHASING LEARNING DISABILITI,9190,DIRECT PAYMENTS               ,04/04/2011,3008153,J356564 010511           ,7129.66,REDACTED PERSONAL DATA                     ,549212,Social Community Care,CAREFIRST DIRECT PAYMENTS     
CARERS SPECIAL GRANT          ,9190,DIRECT PAYMENTS               ,04/04/2011,3008154,J356565 010511           ,550.88,REDACTED PERSONAL DATA                     ,549213,Social Community Care,CAREFIRST DIRECT PAYMENTS     
CARERS SPECIAL GRANT          ,9190,DIRECT PAYMENTS               ,04/04/2011,3008155,J356567 010511           ,1513.56,REDACTED PERSONAL DATA                     ,549227,Social Community Care,CAREFIRST DIRECT PAYMENTS     
PURCHASING ELDERLY            ,9190,DIRECT PAYMENTS               ,04/04/2011,3008156,J356569 010511           ,1985.38,REDACTED PERSONAL DATA                     ,549235,Social Community Care,CAREFIRST DIRECT PAYMENTS     
PURCHASING LEARNING DISABILITI,9190,DIRECT PAYMENTS               ,04/04/2011,3008157,J356568 010511           ,3595.54,REDACTED PERSONAL DATA                     ,549236,Social Community Care,CAREFIRST DIRECT PAYMENTS     
PURCHASING LEARNING DISABILITI,9190,DIRECT PAYMENTS               ,04/04/2011,3008158,J356566 010511           ,5667.65,REDACTED PERSONAL DATA                     ,549238,Social Community Care,CAREFIRST DIRECT PAYMENTS     
PHYSICAL DISABILITIES PURCHASI,9190,DIRECT PAYMENTS               ,04/04/2011,3008159,J356573 010511           ,5009.13,REDACTED PERSONAL DATA                     ,549393,Social Community Care,CAREFIRST DIRECT PAYMENTS     
PURCHASING ELDERLY            ,9190,DIRECT PAYMENTS               ,04/04/2011,3008160,J356572 010511           ,885.64,REDACTED PERSONAL DATA                     ,549395,Social Community Care,CAREFIRST DIRECT PAYMENTS     
PURCHASING ELDERLY            ,9190,DIRECT PAYMENTS               ,04/04/2011,3008161,J356571 010511           ,843.40,REDACTED PERSONAL DATA                     ,549399,Social Community Care,CAREFIRST DIRECT PAYMENTS     
PURCHASING ELDERLY            ,9190,DIRECT PAYMENTS               ,04/04/2011,3008162,J356570 010511           ,4071.73,REDACTED PERSONAL DATA                     ,549403,Social Community Care,CAREFIRST DIRECT PAYMENTS     
PURCHASING                    ,9190,DIRECT PAYMENTS               ,04/04/2011,3008163,J356576 010511           ,1488.86,REDACTED PERSONAL DATA                     ,549409,Social Community Care,CAREFIRST DIRECT PAYMENTS     
PURCHASING                    ,9190,DIRECT PAYMENTS               ,04/04/2011,3008164,J356575 010511           ,1390.16,REDACTED PERSONAL DATA                     ,549416,Social Community Care,CAREFIRST DIRECT PAYMENTS     
PURCHASING                    ,9190,DIRECT PAYMENTS               ,04/04/2011,3008166,J356577 010511           ,655.78,REDACTED PERSONAL DATA                     ,549424,Social Community Care,CAREFIRST DIRECT PAYMENTS     
PURCHASING LEARNING DISABILITI,9190,CITYWIDE SPOT                 ,04/04/2011,3008167,20317,3458.31,CITIZENSHIP FIRST                       ,329379,Unclassified Non Trade,CHARITIES & VOLUNTARY ORGANISA
STREET FORCE BALANCE SHEET    ,776,4332101 INVOICES PAID         ,04/04/2011,3008205,402138824SH              ,500.00,GAP GROUP LTD                           ,205064,Vehicles Not Buses,PLANT & MACHINERY HIRE & LEASI
STREET FORCE BALANCE SHEET    ,776,4332101 INVOICES PAID         ,04/04/2011,3008218,118519,4204.40,BLACKBURNS METALS LIMITED               ,520195,Unclassified Trade,ALUMINIUM STOCKHOLDERS        
STREET FORCE BALANCE SHEET    ,776,4332101 INVOICES PAID         ,04/04/2011,3008220,410277,3854.69,SALT UNION LIMITED                      ,493089,Unclassified Trade,CHEMICALS & ALLIED PRODUCTS   
STREET FORCE BALANCE SHEET    ,776,4332101 INVOICES PAID         ,04/04/2011,3008221,410319,2952.71,SALT UNION LIMITED                      ,493089,Unclassified Trade,CHEMICALS & ALLIED PRODUCTS   
STREET FORCE BALANCE SHEET    ,776,4332101 INVOICES PAID         ,04/04/2011,3008222,410357,11124.05,SALT UNION LIMITED                      ,493089,Unclassified Trade,CHEMICALS & ALLIED PRODUCTS   
STREET FORCE BALANCE SHEET    ,776,4332101 INVOICES PAID         ,04/04/2011,3008223,410457,1965.73,SALT UNION LIMITED                      ,493089,Unclassified Trade,CHEMICALS & ALLIED PRODUCTS   
STREET FORCE BALANCE SHEET    ,776,4332101 INVOICES PAID         ,04/04/2011,3008229,57198,936.50,HILLSBOROUGH STEELSTOCK LTD             ,205532,Unclassified Trade,STEEL STOCKHOLDERS            
STREET FORCE BALANCE SHEET    ,776,4332101 INVOICES PAID         ,04/04/2011,3008233,75626,810.00,REDDI-LIGHT LIMITED                     ,493199,Building Construction Materials,LIGHTING WHOLESALERS          
STREET FORCE BALANCE SHEET    ,776,4332101 INVOICES PAID         ,04/04/2011,3008236,85842/B                  ,755.40,WYBONE LTD                              ,209618,Building Construction Materials,"GLASS FIBRE MOULDING, MATERIAL"
STREET FORCE BALANCE SHEET    ,776,4332101 INVOICES PAID         ,04/04/2011,3008237,87606,564.00,TOFCO LIMITED                           ,493156,Domestic Goods,"ELECTRICAL GOODS SALES, MNFRS "
STREET FORCE BALANCE SHEET    ,776,4332101 INVOICES PAID         ,04/04/2011,3008242,BBP34424                 ,2148.00,BITUCHEM BUILDING PRODUCTS LIMITED      ,493182,Building Construction Materials,BUILDERS' MERCHANTS           
STREET FORCE BALANCE SHEET    ,776,4332101 INVOICES PAID         ,04/04/2011,3008248,14382,1896.00,HASLAM TRANSPORT LTD                    ,493139,Building Construction Materials,CONCRETE PRODUCTS             
STREET FORCE BALANCE SHEET    ,776,4332101 INVOICES PAID         ,04/04/2011,3008256,SI/01498086              ,7632.65,NOMIX ENVIRO                            ,207128,Unclassified Trade,CHEMICALS & ALLIED PRODUCTS   
STREET FORCE BALANCE SHEET    ,776,4332101 INVOICES PAID         ,04/04/2011,3008258,SR/CWL71-OG73A           ,28214.76,SR PAVING AND GROUNDWORKS LIMITED       ,502099,Highway Equipment and Materials,PAVING & DRIVEWAY CONTRACTORS 
STREET FORCE BALANCE SHEET    ,776,4332101 INVOICES PAID         ,04/04/2011,3008260,YD20055922               ,1197.00,YEDL                                    ,349525,Utilities,ELECTRICITY COMPANIES         
STREET FORCE BALANCE SHEET    ,776,4332101 INVOICES PAID         ,04/04/2011,3008261,ZBB0030431               ,2669.16,MARSHALLS MONO LIMITED                  ,460984,Building Construction Materials,QUARRIES                      
STREET FORCE BALANCE SHEET    ,776,4332101 INVOICES PAID         ,04/04/2011,3008262,ZBB0032083               ,2761.20,MARSHALLS MONO LIMITED                  ,460984,Building Construction Materials,QUARRIES                      
STREET FORCE BALANCE SHEET    ,776,4332101 INVOICES PAID         ,04/04/2011,3008264,152710RI                 ,822.96,HARSCO METALS GROUP LTD                 ,493119,Vehicles Not Buses,PLANT & MACHINERY HIRE & LEASI
STREET FORCE BALANCE SHEET    ,776,4332101 INVOICES PAID         ,04/04/2011,3008265,152734RI                 ,894.96,HARSCO METALS GROUP LTD                 ,493119,Vehicles Not Buses,PLANT & MACHINERY HIRE & LEASI
STREET FORCE BALANCE SHEET    ,776,4332101 INVOICES PAID         ,04/04/2011,3008266,152735RI                 ,3376.08,HARSCO METALS GROUP LTD                 ,493119,Vehicles Not Buses,PLANT & MACHINERY HIRE & LEASI
STREET FORCE BALANCE SHEET    ,776,4332101 INVOICES PAID         ,04/04/2011,3008267,152736RI                 ,1252.24,HARSCO METALS GROUP LTD                 ,493119,Vehicles Not Buses,PLANT & MACHINERY HIRE & LEASI
STREET FORCE BALANCE SHEET    ,776,4332101 INVOICES PAID         ,04/04/2011,3008269,152783RI                 ,1105.28,HARSCO METALS GROUP LTD                 ,493119,Vehicles Not Buses,PLANT & MACHINERY HIRE & LEASI
STREET FORCE BALANCE SHEET    ,776,4332101 INVOICES PAID         ,04/04/2011,3008270,152784RI                 ,1287.90,HARSCO METALS GROUP LTD                 ,493119,Vehicles Not Buses,PLANT & MACHINERY HIRE & LEASI
STREET FORCE BALANCE SHEET    ,776,4332101 INVOICES PAID         ,04/04/2011,3008271,152785RI                 ,516.60,HARSCO METALS GROUP LTD                 ,493119,Vehicles Not Buses,PLANT & MACHINERY HIRE & LEASI
STREET FORCE BALANCE SHEET    ,776,4332101 INVOICES PAID         ,04/04/2011,3008272,152787RI                 ,1541.76,HARSCO METALS GROUP LTD                 ,493119,Vehicles Not Buses,PLANT & MACHINERY HIRE & LEASI
STREET FORCE BALANCE SHEET    ,776,4332101 INVOICES PAID         ,04/04/2011,3008273,152808RI                 ,1540.00,HARSCO METALS GROUP LTD                 ,493119,Vehicles Not Buses,PLANT & MACHINERY HIRE & LEASI
STREET FORCE BALANCE SHEET    ,776,4332101 INVOICES PAID         ,04/04/2011,3008274,152811RI                 ,2641.41,HARSCO METALS GROUP LTD                 ,493119,Vehicles Not Buses,PLANT & MACHINERY HIRE & LEASI
STREET FORCE BALANCE SHEET    ,776,4332101 INVOICES PAID         ,04/04/2011,3008275,152813RI                 ,1374.56,HARSCO METALS GROUP LTD                 ,493119,Vehicles Not Buses,PLANT & MACHINERY HIRE & LEASI
STREET FORCE BALANCE SHEET    ,776,4332101 INVOICES PAID         ,04/04/2011,3008277,152846RI                 ,1509.20,HARSCO METALS GROUP LTD                 ,493119,Vehicles Not Buses,PLANT & MACHINERY HIRE & LEASI
STREET FORCE BALANCE SHEET    ,776,4332101 INVOICES PAID         ,04/04/2011,3008278,152847RI                 ,1444.23,HARSCO METALS GROUP LTD                 ,493119,Vehicles Not Buses,PLANT & MACHINERY HIRE & LEASI
STREET FORCE BALANCE SHEET    ,776,4332101 INVOICES PAID         ,04/04/2011,3008279,152848RI                 ,1245.20,HARSCO METALS GROUP LTD                 ,493119,Vehicles Not Buses,PLANT & MACHINERY HIRE & LEASI
STREET FORCE BALANCE SHEET    ,776,4332101 INVOICES PAID         ,04/04/2011,3008281,152884RI                 ,1540.88,HARSCO METALS GROUP LTD                 ,493119,Vehicles Not Buses,PLANT & MACHINERY HIRE & LEASI
STREET FORCE BALANCE SHEET    ,776,4332101 INVOICES PAID         ,04/04/2011,3008283,152889RI                 ,1324.40,HARSCO METALS GROUP LTD                 ,493119,Vehicles Not Buses,PLANT & MACHINERY HIRE & LEASI
STREET FORCE BALANCE SHEET    ,776,4332101 INVOICES PAID         ,04/04/2011,3008285,154520,668.00,THE HELPING HAND COMPANY                ,328447,Unclassified Non Trade,CHARITIES & VOLUNTARY ORGANISA
STREET FORCE BALANCE SHEET    ,776,4332101 INVOICES PAID         ,04/04/2011,3008288,1C00343662               ,684.91,LAFARGE AGGREGATES LTD                  ,311166,Building Construction Materials,CONCRETE & MORTAR READY MIXED 
STREET FORCE BALANCE SHEET    ,776,4332101 INVOICES PAID         ,04/04/2011,3008290,200180,2694.96,WILLIAM SMITH AND SONS (BARNARD CASTLE) ,493116,Facilities Management,SIGN WRITERS                  
STREET FORCE BALANCE SHEET    ,776,4332101 INVOICES PAID         ,04/04/2011,3008303,317534,633.00,ARDEN WINCH & CO LTD                    ,203023,Clothing,SAFETY EQUIPMENT & CLOTHING   
STREET FORCE BALANCE SHEET    ,776,4332101 INVOICES PAID         ,04/04/2011,3008305,332753,779.52,INSTARMAC GROUP PLC                     ,483173,Building Construction Materials,CONCRETE PRODUCTS             
 LUNCH CLUB GRANT             ,8180,GRANTS                        ,04/04/2011,3008353,MPA20110404106 1         ,751.00,BANNER CROSS LUNCHEON CLUB              ,326250,Unclassified Non Trade,PLACES OF WORSHIP             
 LUNCH CLUB GRANT             ,8180,GRANTS                        ,04/04/2011,3008354,MPA20110404106 10        ,753.25,WOODSEATS METHODIST LUNCH CLUB          ,325667,Unclassified Non Trade,CHARITIES & VOLUNTARY ORGANISA
 LUNCH CLUB GRANT             ,8180,GRANTS                        ,04/04/2011,3008355,MPA20110404106 11        ,833.25,GREYSTONES LUNCH CLUB                   ,295226,Unclassified Non Trade,CHARITIES & VOLUNTARY ORGANISA
 LUNCH CLUB GRANT             ,8180,GRANTS                        ,04/04/2011,3008357,MPA20110404106 13        ,667.75,ADLINGTON LUNCHEON CLUB                 ,295201,Unclassified Non Trade,CHARITIES & VOLUNTARY ORGANISA
 LUNCH CLUB GRANT             ,8180,GRANTS                        ,04/04/2011,3008358,MPA20110404106 14        ,1018.75,DARNALL LUNCH CLUB                      ,295216,Unclassified Non Trade,CHARITIES & VOLUNTARY ORGANISA
 LUNCH CLUB GRANT             ,8180,GRANTS                        ,04/04/2011,3008361,MPA20110404106 17        ,659.25,THE LIMES LUNCHEON CLUB                 ,295165,Unclassified Non Trade,CHARITIES & VOLUNTARY ORGANISA
 LUNCH CLUB GRANT             ,8180,GRANTS                        ,04/04/2011,3008362,MPA20110404106 18        ,668.75,DUKE STREET COMMUNITY CENTRE            ,375030,Unclassified Non Trade,COMMUNITY CENTRES             
 LUNCH CLUB GRANT             ,8180,GRANTS                        ,04/04/2011,3008363,MPA20110404106 19        ,1538.00,ST OSWALDS LUNCHEON CLUB                ,385325,Unclassified Non Trade,CHARITIES & VOLUNTARY ORGANISA
 LUNCH CLUB GRANT             ,8180,GRANTS                        ,04/04/2011,3008364,MPA20110404106 2         ,748.00,CHRIST CHURCH PITSMOOR LUNCH CLUB       ,321910,Unclassified Non Trade,CHARITIES & VOLUNTARY ORGANISA
 LUNCH CLUB GRANT             ,8180,GRANTS                        ,04/04/2011,3008366,MPA20110404106 21        ,721.50,FIRTH PARK LIBRARY LUNCH CLUB           ,296989,Unclassified Non Trade,CHARITIES & VOLUNTARY ORGANISA
 LUNCH CLUB GRANT             ,8180,GRANTS                        ,04/04/2011,3008367,MPA20110404106 22        ,723.75,BIRLEY SPA MONDAY CLUB                  ,295206,Unclassified Non Trade,CHARITIES & VOLUNTARY ORGANISA
 LUNCH CLUB GRANT             ,8180,GRANTS                        ,04/04/2011,3008368,MPA20110404106 23        ,921.00,BIRLEY SPA WEDNESDAY CLUB               ,295210,Unclassified Non Trade,CHARITIES & VOLUNTARY ORGANISA
 LUNCH CLUB GRANT             ,8180,GRANTS                        ,04/04/2011,3008370,MPA20110404106 25        ,627.00,ST SWITHUNS LUNCH CLUB                  ,295166,Unclassified Non Trade,CHARITIES & VOLUNTARY ORGANISA
 LUNCH CLUB GRANT             ,8180,GRANTS                        ,04/04/2011,3008372,MPA20110404106 27        ,695.25,ST JOHN'S LUNCH CLUB                    ,385324,Unclassified Non Trade,CHARITIES & VOLUNTARY ORGANISA
 LUNCH CLUB GRANT             ,8180,GRANTS                        ,04/04/2011,3008373,MPA20110404106 28        ,522.25,GRAPEVINE CENTRE LUNCHEON CLUB          ,295190,Unclassified Non Trade,CHARITIES & VOLUNTARY ORGANISA
 LUNCH CLUB GRANT             ,8180,GRANTS                        ,04/04/2011,3008374,MPA20110404106 29        ,677.25,PITSMOOR LUNCH CLUB                     ,295194,Unclassified Non Trade,CHARITIES & VOLUNTARY ORGANISA
 LUNCH CLUB GRANT             ,8180,GRANTS                        ,04/04/2011,3008375,MPA20110404106 3         ,670.00,CROSSPOOL LUNCH CLUB                    ,321911,Unclassified Non Trade,CHARITIES & VOLUNTARY ORGANISA
 LUNCH CLUB GRANT             ,8180,GRANTS                        ,04/04/2011,3008376,MPA20110404106 30        ,1108.75,THE SALVATION ARMY SHEFFIELD CASTLE     ,327783,Unclassified Non Trade,"HOUSING ASSOCIATIONS, SOCIETIE"
 LUNCH CLUB GRANT             ,8180,GRANTS                        ,04/04/2011,3008379,MPA20110404106 33        ,671.00,LOUND TOP LUNCH CLUB                    ,295188,Unclassified Non Trade,CHARITIES & VOLUNTARY ORGANISA
 LUNCH CLUB GRANT             ,8180,GRANTS                        ,04/04/2011,3008381,MPA20110404106 35        ,997.75,SHIREGREEN UNITED REFORMED CHURCH       ,295203,Unclassified Non Trade,PLACES OF WORSHIP             
 LUNCH CLUB GRANT             ,8180,GRANTS                        ,04/04/2011,3008382,MPA20110404106 36        ,545.25,ST TIMOTHY'S LUNCH CLUB                 ,295163,Unclassified Non Trade,CHARITIES & VOLUNTARY ORGANISA
 LUNCH CLUB GRANT             ,8180,GRANTS                        ,04/04/2011,3008383,MPA20110404106 37        ,878.25,MEERSBROOK PARK LUNCH CLUB              ,363027,Unclassified Non Trade,CHARITIES & VOLUNTARY ORGANISA
 LUNCH CLUB GRANT             ,8180,GRANTS                        ,04/04/2011,3008384,MPA20110404106 38        ,947.50,ST BARTHOLOMEWS LUNCH CLUB              ,384447,Unclassified Non Trade,CHARITIES & VOLUNTARY ORGANISA
 LUNCH CLUB GRANT             ,8180,GRANTS                        ,04/04/2011,3008387,MPA20110404106 40        ,856.00,ST LEONARD'S LUNCH CLUB                 ,296991,Unclassified Non Trade,CHARITIES & VOLUNTARY ORGANISA
 LUNCH CLUB GRANT             ,8180,GRANTS                        ,04/04/2011,3008388,MPA20110404106 41        ,1452.75,ST MARY'S HANDSWORTH LUNCH CLUB         ,300780,Unclassified Non Trade,CHARITIES & VOLUNTARY ORGANISA
 LUNCH CLUB GRANT             ,8180,GRANTS                        ,04/04/2011,3008389,MPA20110404106 42        ,827.75,WILLIAM TEMPLE LUNCH CLUB               ,299806,Unclassified Non Trade,CHARITIES & VOLUNTARY ORGANISA
 LUNCH CLUB GRANT             ,8180,GRANTS                        ,04/04/2011,3008391,MPA20110404106 44        ,808.00,FOXHILL LUNCH CLUB                      ,349900,Unclassified Non Trade,CHARITIES & VOLUNTARY ORGANISA
 LUNCH CLUB GRANT             ,8180,GRANTS                        ,04/04/2011,3008393,MPA20110404106 46        ,716.25,LOWER SHIREGREEN LUNCH CLUB             ,299896,Unclassified Non Trade,CHARITIES & VOLUNTARY ORGANISA
 LUNCH CLUB GRANT             ,8180,GRANTS                        ,04/04/2011,3008396,MPA20110404106 49        ,1029.75,DIOCESE OF HALLAM                       ,351301,Unclassified Non Trade,RELIGIOUS ORGANISATIONS       
 LUNCH CLUB GRANT             ,8180,GRANTS                        ,04/04/2011,3008401,MPA20110404106 53        ,1503.50,FRECHEVILLE PARISH DAY CENTRE           ,348612,Unclassified Non Trade,LOCAL GOVERNMENT              
 LUNCH CLUB GRANT             ,8180,GRANTS                        ,04/04/2011,3008406,MPA20110404106 58        ,780.75,LONGLEY LUNCH CLUB                      ,506517,Unclassified Non Trade,CHARITIES & VOLUNTARY ORGANISA
 LUNCH CLUB GRANT             ,8180,GRANTS                        ,04/04/2011,3008407,MPA20110404106 59        ,636.75,WESLEY HALL LUNCH CLUB                  ,511866,Unclassified Non Trade,CHARITIES & VOLUNTARY ORGANISA
 LUNCH CLUB GRANT             ,8180,GRANTS                        ,04/04/2011,3008408,MPA20110404106 6         ,520.00,HANDY HANDS GROUP                       ,384446,Unclassified Non Trade,CHARITIES & VOLUNTARY ORGANISA
 LUNCH CLUB GRANT             ,8180,GRANTS                        ,04/04/2011,3008409,MPA20110404106 60        ,988.00,MOSBOROUGH LUNCH & SOCIAL CLUB          ,510333,Leisure Services,"CLUBS & ASSOCIATIONS - SOCIAL,"
 LUNCH CLUB GRANT             ,8180,GRANTS                        ,04/04/2011,3008411,MPA20110404106 62        ,685.25,THE THURSDAY CLUB                       ,451641,Unclassified Non Trade,CHARITIES & VOLUNTARY ORGANISA
 LUNCH CLUB GRANT             ,8180,GRANTS                        ,04/04/2011,3008413,MPA20110404106 64        ,582.50,MANOR LODGE LUNCHEON CLUB               ,545135,Unclassified Non Trade,CHARITIES & VOLUNTARY ORGANISA
 LUNCH CLUB GRANT             ,8180,GRANTS                        ,04/04/2011,3008414,MPA20110404106 65        ,638.25,MADINA ASIAN ELDERLY WOMEN'S LUNCH CLUB ,549528,Unclassified Non Trade,CHARITIES & VOLUNTARY ORGANISA
 LUNCH CLUB GRANT             ,8180,GRANTS                        ,04/04/2011,3008415,MPA20110404106 66        ,590.00,MADINA ELDERLY DAY CARE CENTRE (MEN'S LU,549532,Unclassified Non Trade,CHARITIES & VOLUNTARY ORGANISA
 LUNCH CLUB GRANT             ,8180,GRANTS                        ,04/04/2011,3008416,MPA20110404106 67        ,610.00,ELDERS HEALTH & WELLBEING GROUP         ,545137,Unclassified Non Trade,CHARITIES & VOLUNTARY ORGANISA
 LUNCH CLUB GRANT             ,8180,GRANTS                        ,04/04/2011,3008417,MPA20110404106 7         ,705.75,OUGHTIBRIDGE & DISTRICT LUNCH CLUB      ,325339,Unclassified Non Trade,CHARITIES & VOLUNTARY ORGANISA
HOMELESSNESS BED & BREAKFAST  ,6210,BED & BREAKFAST PAYMENTS      ,04/04/2011,3008425,SCC003385                ,980.00,ALARA                                   ,341742,Facilities Management,GUEST HOUSES                  
HOMELESSNESS BED & BREAKFAST  ,6210,BED & BREAKFAST PAYMENTS      ,04/04/2011,3008427,LSA172                   ,528.00,LALBAGH                                 ,461745,Facilities Management,GUEST HOUSES                  
HOMELESSNESS BED & BREAKFAST  ,6210,BED & BREAKFAST PAYMENTS      ,04/04/2011,3008428,011/2011                 ,3059.53,EARL MARSHALL GUEST HOUSE               ,391589,Facilities Management,GUEST HOUSES                  
HOMELESSNESS BED & BREAKFAST  ,6210,BED & BREAKFAST PAYMENTS      ,04/04/2011,3008429,012/2011                 ,1947.05,EARL MARSHALL GUEST HOUSE               ,391589,Facilities Management,GUEST HOUSES                  
HOMELESSNESS BED & BREAKFAST  ,6210,BED & BREAKFAST PAYMENTS      ,04/04/2011,3008430,013/2011                 ,1579.00,EARL MARSHALL GUEST HOUSE               ,391589,Facilities Management,GUEST HOUSES                  
STREET FORCE BALANCE SHEET    ,776,4332101 INVOICES PAID         ,04/04/2011,3008435,1103/17685               ,885.75,HATHER PLANT HIRE LIMITED               ,493155,Vehicles Not Buses,PLANT & MACHINERY HIRE & LEASI
STREET FORCE BALANCE SHEET    ,776,4332101 INVOICES PAID         ,04/04/2011,3008437,151539RI                 ,881.76,HARSCO METALS GROUP LTD                 ,493119,Vehicles Not Buses,PLANT & MACHINERY HIRE & LEASI
STREET FORCE BALANCE SHEET    ,776,4332101 INVOICES PAID         ,04/04/2011,3008438,152863RI                 ,818.40,HARSCO METALS GROUP LTD                 ,493119,Vehicles Not Buses,PLANT & MACHINERY HIRE & LEASI
STREET FORCE BALANCE SHEET    ,776,4332101 INVOICES PAID         ,04/04/2011,3008440,2796027,2312.94,LAFARGE UK SERVICES                     ,493084,Building Construction Materials,CONCRETE & MORTAR READY MIXED 
STREET FORCE BALANCE SHEET    ,776,4332101 INVOICES PAID         ,04/04/2011,3008441,2796052,2312.94,LAFARGE UK SERVICES                     ,493084,Building Construction Materials,CONCRETE & MORTAR READY MIXED 
STREET FORCE BALANCE SHEET    ,776,4332101 INVOICES PAID         ,04/04/2011,3008442,2850050376,2391.00,VEOLIA ENVIRONMENTAL SERVICES           ,464059,Environmental Services,WASTE DISPOSAL SERVICES       
STREET FORCE BALANCE SHEET    ,776,4332101 INVOICES PAID         ,04/04/2011,3008445,410405,12900.60,SALT UNION LIMITED                      ,493089,Unclassified Trade,CHEMICALS & ALLIED PRODUCTS   
STREET FORCE BALANCE SHEET    ,776,4332101 INVOICES PAID         ,04/04/2011,3008449,55766,936.50,HILLSBOROUGH STEELSTOCK LTD             ,205532,Unclassified Trade,STEEL STOCKHOLDERS            
STREET FORCE BALANCE SHEET    ,776,4332101 INVOICES PAID         ,04/04/2011,3008453,5779,969.75,A & W HELLIWELL & SONS LTD              ,202556,Unclassified Trade,FARMING - LIVESTOCK & OTHER AN
STREET FORCE BALANCE SHEET    ,776,4332101 INVOICES PAID         ,04/04/2011,3008455,5780,1012.75,A & W HELLIWELL & SONS LTD              ,202556,Unclassified Trade,FARMING - LIVESTOCK & OTHER AN
STREET FORCE BALANCE SHEET    ,776,4332101 INVOICES PAID         ,04/04/2011,3008456,5781,799.70,A & W HELLIWELL & SONS LTD              ,202556,Unclassified Trade,FARMING - LIVESTOCK & OTHER AN
STREET FORCE BALANCE SHEET    ,776,4332101 INVOICES PAID         ,04/04/2011,3008459,5784,637.50,A & W HELLIWELL & SONS LTD              ,202556,Unclassified Trade,FARMING - LIVESTOCK & OTHER AN
STREET FORCE BALANCE SHEET    ,776,4332101 INVOICES PAID         ,04/04/2011,3008461,5786,978.38,A & W HELLIWELL & SONS LTD              ,202556,Unclassified Trade,FARMING - LIVESTOCK & OTHER AN
STREET FORCE BALANCE SHEET    ,776,4332101 INVOICES PAID         ,04/04/2011,3008465,1098304484,610.89,KONICA MINOLTA BUSINESS SOLUTIONS EAST  ,206267,ICT,OFFICE EQUIPMENT MNFRS & DISTR
STREET FORCE BALANCE SHEET    ,776,4332101 INVOICES PAID         ,04/04/2011,3008470,5794,1350.50,A & W HELLIWELL & SONS LTD              ,202556,Unclassified Trade,FARMING - LIVESTOCK & OTHER AN
STREET FORCE BALANCE SHEET    ,776,4332101 INVOICES PAID         ,04/04/2011,3008482,KTS2011642               ,2150.00,KEY TRAFFIC SYSTEMS LTD.                ,206214,Consultancy,COMPUTER SYSTEMS & SOFTWARE (D
STREET FORCE BALANCE SHEET    ,776,4332101 INVOICES PAID         ,04/04/2011,3008486,ZBB0032814               ,1022.40,MARSHALLS MONO LIMITED                  ,460984,Building Construction Materials,QUARRIES                      
STREET FORCE BALANCE SHEET    ,776,4332101 INVOICES PAID         ,04/04/2011,3008487,1098304486,565.58,KONICA MINOLTA BUSINESS SOLUTIONS EAST  ,206267,ICT,OFFICE EQUIPMENT MNFRS & DISTR
STREET FORCE BALANCE SHEET    ,776,4332101 INVOICES PAID         ,04/04/2011,3008489,1098304488,1006.29,KONICA MINOLTA BUSINESS SOLUTIONS EAST  ,206267,ICT,OFFICE EQUIPMENT MNFRS & DISTR
PURCHASING LEARNING DISABILITI,9180,OTHER CLIENT EXPENDITURE      ,04/04/2011,3008519,J354866 030411           ,649.68,REDACTED PERSONAL DATA,328070,Social Community Care,HOME CARE SERVICES            
PURCHASING                    ,9190,DIRECT PAYMENTS               ,04/04/2011,3008534,J356722 010511           ,3168.80,REDACTED PERSONAL DATA                     ,547972,Social Community Care,CAREFIRST DIRECT PAYMENTS     
PURCHASING ELDERLY            ,9190,DIRECT PAYMENTS               ,04/04/2011,3008535,J356723 010511           ,650.00,REDACTED PERSONAL DATA                     ,548852,Social Community Care,CAREFIRST DIRECT PAYMENTS     
PHYSICAL DISABILITIES PURCHASI,9190,DIRECT PAYMENTS               ,04/04/2011,3008537,J356725 010511           ,3219.00,REDACTED PERSONAL DATA                     ,549411,Social Community Care,CAREFIRST DIRECT PAYMENTS     
MFDS                          ,8370,MFD CHARGES                   ,04/04/2011,3008556,1098491345,9030.93,KONICA MINOLTA BUSINESS SOLUTIONS EAST  ,206267,ICT,OFFICE EQUIPMENT MNFRS & DISTR
PURCHASING ELDERLY            ,9210,CONTINUING NURSING CARE       ,04/04/2011,3008643,J333433 060211           ,1547.88,HEARTLANDS NURSING HOME                 ,478368,Social Community Care,NURSING HOMES                 
PURCHASING ELDERLY            ,9210,CONTINUING NURSING CARE       ,04/04/2011,3008644,J341013 060311           ,1547.88,HEARTLANDS NURSING HOME                 ,478368,Social Community Care,NURSING HOMES                 
PURCHASING ELDERLY            ,9210,CONTINUING NURSING CARE       ,04/04/2011,3008645,J349420 030411           ,1547.88,HEARTLANDS NURSING HOME                 ,478368,Social Community Care,NURSING HOMES                 
INDEPENDENT RESIDENTAL PLACEME,9270,INDEPENDENT RESIDENTIAL PMENT ,04/04/2011,3008648,1977361,15768.33,RNIB                                    ,295117,Unclassified Non Trade,CHARITIES & VOLUNTARY ORGANISA
LEAVING CARE                  ,9270,CARELEAVERS ACCOMMODATION     ,04/04/2011,3008649,4224,2671.60,PROGRESSIVE CARE LTD                    ,343548,Social Community Care,CHILDREN'S HOMES              
LEAVING CARE                  ,9270,CARELEAVERS ACCOMMODATION     ,04/04/2011,3008650,4233,3664.29,PROGRESSIVE CARE LTD                    ,343548,Social Community Care,CHILDREN'S HOMES              
INDEPENDENT RES BLOCK PLACEMEN,9270,INDEPENDENT RESIDENTIAL PMENT ,04/04/2011,3008652,4271,8957.14,PROGRESSIVE CARE LTD                    ,343548,Social Community Care,CHILDREN'S HOMES              
LEAVING CARE                  ,9270,CARELEAVERS ACCOMMODATION     ,04/04/2011,3008653,4533,3212.88,ACTION FOR CHILDREN                     ,503682,Unclassified Trade,ACCOMMODATION AGENCIES - RESID
LEAVING CARE                  ,9270,CARELEAVERS ACCOMMODATION     ,04/04/2011,3008654,4524,2516.48,ACTION FOR CHILDREN                     ,503682,Unclassified Trade,ACCOMMODATION AGENCIES - RESID
CO-ORDINATED ASSESSMENT       ,9270,CARELEAVERS INDEPENDENT LIVING,04/04/2011,3008657,14145,703.45,LANGUAGE LINE LIMITED                   ,471915,Human Resources,TRANSLATORS & INTERPRETERS    
PHYSICAL DISABILITIES PURCHASI,9190,DIRECT PAYMENTS               ,04/04/2011,3008664,J356804 010511           ,1173.70,REDACTED PERSONAL DATA                     ,549221,Social Community Care,CAREFIRST DIRECT PAYMENTS     
PURCHASING                    ,9190,DIRECT PAYMENTS               ,04/04/2011,3008667,J356809 010511           ,2682.00,REDACTED PERSONAL DATA                     ,549418,Social Community Care,CAREFIRST DIRECT PAYMENTS     
PURCHASING ELDERLY            ,9190,CITYWIDE SPOT                 ,04/04/2011,3008668,265-004224               ,522.00,LEONARD CHESHIRE SERVICES               ,329306,Unclassified Non Trade,CHARITIES & VOLUNTARY ORGANISA
MFDS                          ,8370,MFD CHARGES                   ,04/04/2011,3008705,1098160525,7076.63,KONICA MINOLTA BUSINESS SOLUTIONS EAST  ,206267,ICT,OFFICE EQUIPMENT MNFRS & DISTR
CREATIVE SERVICES             ,8380,PHOTOCOPYING                  ,04/04/2011,3008712,1098567287,1557.86,KONICA MINOLTA BUSINESS SOLUTIONS EAST  ,206267,ICT,OFFICE EQUIPMENT MNFRS & DISTR
CORPORATE MAIL                ,8570,POSTAGE & DELIVERY            ,04/04/2011,3008729,9033296633,9084.49,ROYAL MAIL GROUP PLC                    ,295326,Mail Services,DELIVERY SERVICES             
CORPORATE MAIL                ,8570,POSTAGE & DELIVERY            ,04/04/2011,3008730,9033297379,946.98,ROYAL MAIL GROUP PLC                    ,295326,Mail Services,DELIVERY SERVICES             
CHANGE / LEARNING& DEVELOPMENT,8440,FEE EXPENSES                  ,04/04/2011,3008775,INV001000                ,640.00,SHEFFIELD EAST CLC                      ,306754,Education,EDUCATIONAL SERVICES          
SHEFFIELD HOMES ACCOMODATION  ,6160,GAS                           ,04/04/2011,3008786,10644164280,886.53,E.ON                                    ,299536,Utilities,ELECTRICITY COMPANIES         
KEY STAGE 4 - SPRING LANE     ,6190,WATER SERVICES                ,04/04/2011,3008789,800448812/33             ,572.58,YORKSHIRE WATER PLC                     ,295854,Utilities,WATER COMPANIES               
CORPORATE MAIL                ,8570,POSTAGE & DELIVERY            ,04/04/2011,3008801,SM5825                   ,701.91,ROYAL MAIL GROUP PLC                    ,391528,Mail Services,POST OFFICE SERVICES          
ELECTORAL REGISTRATION        ,8570,POSTAGE & DELIVERY            ,04/04/2011,3008803,9033392624,65265.09,ROYAL MAIL GROUP PLC                    ,295326,Mail Services,DELIVERY SERVICES             
URBAN TRAFFIC CONTROL         ,6390,NETWORK COMMUNICATIONS        ,04/04/2011,3008810,VP98220270M10401NH       ,932.40,BRITISH TELECOMMUNICATIONS PLC          ,295860,ICT,TELECOMMUNICATION SERVICES    
CORPORATE MAIL                ,8570,POSTAGE & DELIVERY            ,04/04/2011,3008817,1105909384,1506.79,ROYAL MAIL GROUP PLC                    ,295326,Mail Services,DELIVERY SERVICES             
SAFE & WARM SHEFFIELD         ,1165,NC&A OTHER                    ,04/04/2011,3008831,ERS INVOICE49276         ,31549.62,DONCASTER MBC                           ,385512,Unclassified Non Trade,LOCAL GOVERNMENT              
SAFE & WARM DONCASTER         ,1165,NC&A OTHER                    ,04/04/2011,3008832,ERS INVOICE49277         ,21816.21,DONCASTER MBC                           ,385512,Unclassified Non Trade,LOCAL GOVERNMENT              
SCT                           ,9200,SUPPORTING PEOPLE             ,04/04/2011,3008833,ERS INVOICE49278         ,75791.51,SHEFFIELD HEALTH & SOCIAL CARE NHS      ,353994,Unclassified Non Trade,HOSPITALS                     
INVESTMENT IN COMMUNITIES2    ,8560,TPB NORTH                     ,04/04/2011,3008834,ERS INVOICE49279         ,16382.03,REDACTED PERSONAL DATA                   ,549397,Unclassified Non Trade,OUT OF SCOPE FOR SIC MONITORIN
SWAN                          ,1146,L&B PROFESSIONAL FEES         ,04/04/2011,3008835,ERS INVOICE49280         ,83378.15, COATES SOLICITORS LTD                  ,548921,Legal Services,SOLICITORS                    
OFF STREET CAR PARKS          ,6280,HIRE OF PREMISES              ,04/04/2011,3008836,ERS INVOICE49281         ,15805.83,NATIONAL UNION OF MINEWORKERS           ,459535,Human Resources,TRADE UNIONS                  
CREATIVE SERVICES             ,9120,OTHER AGENCIES                ,04/04/2011,3008846,ERS INVOICE49291         ,950.00,IAN M SPOONER PHOTOGRAPHY               ,396843,Facilities Management,PHOTOGRAPHERS - GENERAL       
COMMUNITY ASSEMBLY CENTRAL    ,9120,OTHER AGENCIES                ,04/04/2011,3008850,ERS INVOICE49295         ,1000.00,WALKLEY AFTER SCHOOL CLUB               ,549651,Social Community Care,NURSERIES & CRECHES           
HIST                          ,8460,CONSULTANTS FEES              ,04/04/2011,3008858,ERS INVOICE49304         ,500.00,MR STEPHEN NEEDHAM                      ,501183,Consultancy,COMPUTER CONSULTANTS          
WALKLEY                       ,1161,NC&A MAIN CONTRACT            ,04/04/2011,3008860,ED03214/3                ,206800.00,KIER SHEFFIELD LLP                      ,352687,Construction,PROPERTY MAINTENANCE & REPAIRS
INSULATION                    ,1194,OTHER FEES                    ,04/04/2011,3008861,NH02431/22               ,254100.00,EAGA HOME SERVICES LIMITED              ,512915,Construction,INSULATION INSTALLERS         
LONG ACRE REFURBISHMENT       ,1161,NC&A MAIN CONTRACT            ,04/04/2011,3008862,NH03347/4                ,78100.00,GEORGE HURST & SONS LTD                 ,527452,Construction,CENTRAL HEATING - INSTALLATION
CORPORATE COMPLAINTS UNIT     ,8440,FEE EXPENSES                  ,04/04/2011,3008863,201268,1027.97,VOICE                                   ,328689,Unclassified Non Trade,CHARITIES & VOLUNTARY ORGANISA
CORPORATE COMPLAINTS UNIT     ,8440,FEE EXPENSES                  ,04/04/2011,3008864,301124,2586.62,VOICE                                   ,328689,Unclassified Non Trade,CHARITIES & VOLUNTARY ORGANISA
CORPORATE COMPLAINTS UNIT     ,8440,FEE EXPENSES                  ,04/04/2011,3008866,201269,1509.76,VOICE                                   ,328689,Unclassified Non Trade,CHARITIES & VOLUNTARY ORGANISA
CEMETERIES                    ,6160,GAS                           ,04/04/2011,3008981,600079523,834.40,BRITISH GAS BUSINESS                    ,466029,Utilities,GAS COMPANIES                 
SUPPORT SERVICES              ,8380,PHOTOCOPYING                  ,04/04/2011,3008998,1097702318,2202.72,KONICA MINOLTA BUSINESS SOLUTIONS EAST  ,206267,ICT,OFFICE EQUIPMENT MNFRS & DISTR
SY LOW CARB REFUEL INFR. PILOT,1194,OTHER FEES                    ,04/04/2011,3009038,4667,4400.00,TNEI SERVICES LTD                       ,532707,Consultancy,ENERGY CONSERVATION CONSULTANT
STREET FORCE BALANCE SHEET    ,776,4332101 INVOICES PAID         ,04/04/2011,3009048,129836,580.96,MORELOCK SIGNS LTD                      ,549402,Building Construction Materials,SIGNS & NAMEPLATES            
STREET FORCE BALANCE SHEET    ,776,4332101 INVOICES PAID         ,04/04/2011,3009052,264008,570.60,FORWARD CHEMICALS LTD                   ,204929,Unclassified Trade,CHEMICALS & ALLIED PRODUCTS   
EXECUTIVE                     ,8460,CONSULTANTS FEES              ,04/04/2011,3009057,ERS INVOICE49306         ,1310.00,JOHN RANDALL                            ,511850,Consultancy,BUSINESS & MANAGEMENT CONSULTA
CARE PROCEEDINGS (LEGAL FEES) ,8470,LEGAL FEES                    ,04/04/2011,3009060,ERS INVOICE49309         ,2051.58,WILLIAMSONS SOLICITORS                  ,521947,Legal Services,SOLICITORS                    
CLAIMS                        ,8740,HIGHWAYS                      ,04/04/2011,3009062,ERS INVOICE49311         ,1500.00,REDACTED PERSONAL DATA                   ,549334,Unclassified Non Trade,OUT OF SCOPE FOR SIC MONITORIN
INVESTMENT IN COMMUNITIES2    ,8560,TPB EAST                      ,04/04/2011,3009065,ERS INVOICE49314         ,2500.00,CHILDRENS SAFETY EDUCATION FOUNDATION   ,529977,Unclassified Non Trade,CHARITIES & VOLUNTARY ORGANISA
CLAIMS                        ,8740,EMPLOYERS LIABILITY           ,04/04/2011,3009066,ERS INVOICE49315         ,5077.86,THOMPSONS CLIENT ACCOUNT                ,505870,Legal Services,SOLICITORS                    
INVESTMENT IN COMMUNITIES2    ,8560,TPB EAST                      ,04/04/2011,3009070,ERS INVOICE49319         ,2948.88,ACTIVITY SHEFFIELD                      ,505492,Unclassified Non Trade,LOCAL GOVERNMENT              
CREATIVE SERVICES             ,9120,OTHER AGENCIES                ,05/04/2011,2925566,125,1258.96,SIGN LANGUAGE INNOVATIONS LTD           ,501627,Facilities Management,PRINTERS                      
SEN CENTRAL COSTS & CONTRIBUTI,8350,MISCELLANEOUS EXPENSES        ,05/04/2011,2958133,2100130036,16640.00,SHEFFIELD CHILDRENS NHS FOUNDATION TRUST,449452,Unclassified Non Trade,HOSPITALS                     
CS LTD PERF & CORP SERV'S     ,8740,MISCELLANEOUS SELF INSURED    ,05/04/2011,2964197,1153776,1399.50,JARDINE LLOYD THOMPSON COMMERCIAL RISKS ,461849,Financial Services,INSURANCE - OTHER             
CS LTD PERF & CORP SERV'S     ,8740,MISCELLANEOUS SELF INSURED    ,05/04/2011,2964199,1153773,5250.00,JARDINE LLOYD THOMPSON COMMERCIAL RISKS ,461849,Financial Services,INSURANCE - OTHER             
ECCLESFIELD PK COMMUNITY GDN  ,1194,OTHER FEES                    ,05/04/2011,2993313,5/511/10BD/40609         ,630.00,WILDSCAPES LTD                          ,472494,Consultancy,LANDSCAPE ARCHITECTS & DESIGNE
CORPORATE LEASING             ,7070,OPERATING LEASES              ,05/04/2011,2996314,L/011/11/08474           ,1300.00,SG EQUIPMENT FINANCE LIMITED            ,493568,Financial Services,LEASING SERVICES              
HIGHWAYS PFI                  ,8270,SUBSCRIPTIONS                 ,05/04/2011,2997279,6999,2295.00,INFRAMATION LTD                         ,385029,Financial Services,FINANCIAL SERVICES            
CARRIAGEWAYS & FOOTWAY REPAIRS,1178,INFR OTHER                    ,05/04/2011,2997477,227363,2252.55,MARCHINGTON STONE LIMITED               ,526115,Building Construction Materials,QUARRIES                      
CS-STRATEGIC MARKETING        ,8250,MARKETING EXPENSES            ,05/04/2011,2998078,SH/00136                 ,15000.00,SEVEN HILLS COMMUNICATION LIMITED       ,538625,Facilities Management,PUBLIC RELATIONS CONSULTANTS  
CARRIAGEWAYS & FOOTWAY REPAIRS,1178,INFR OTHER                    ,05/04/2011,2999331,227452,2585.25,MARCHINGTON STONE LIMITED               ,526115,Building Construction Materials,QUARRIES                      
HIGHWAY COORDINATION          ,5610,AGENCY STAFF                  ,05/04/2011,2999351,3037850,1110.12,WATERMAN ASPEN LTD                      ,387060,Consultancy,ENGINEERS - CONSULTING        
MECHANICAL & ELECTRICAL ENGINE,8350,MISCELLANEOUS EXPENSES        ,05/04/2011,3000414,170829,3689.04,PHS COMPLIANCE                          ,540693,Health and Safety,ELECTRICAL APPLIANCE TESTING  
ACTIVABILITY                  ,5310,WAGES CASUAL OT               ,05/04/2011,3001340,2443,4900.00,WITHIN REACH                            ,441787,Unclassified Non Trade,CHARITIES & VOLUNTARY ORGANISA
LACES                         ,8440,FEE EXPENSES                  ,05/04/2011,3001574,I015370                  ,500.00,TAMESIDE COLLEGE                        ,549313,Unclassified Non Trade,SCHOOLS & COLLEGES - FURTHER E
SNIPS                         ,8180,GRANTS                        ,05/04/2011,3001649,15,1750.00,AMY'S HOUSE                             ,513258,Unclassified Non Trade,CHARITIES & VOLUNTARY ORGANISA
CREATIVE SERVICES             ,9120,OTHER AGENCIES                ,05/04/2011,3002224,57183,2670.00,WHITESPRINT GROUP LIMITED               ,202894,Facilities Management,PRINTERS                      
PLAYGROUND MAINTENANCE & INSPE,8010,EQUIPMENT PURCHASE AND REPAIR ,05/04/2011,3002544,27012,1481.00,I D STEEL WROUGHT IRON                  ,518447,Unclassified Trade,WROUGHT IRONWORK              
CARRIAGEWAYS & FOOTWAY REPAIRS,1178,INFR OTHER                    ,05/04/2011,3002557,227362,4614.34,MARCHINGTON STONE LIMITED               ,526115,Building Construction Materials,QUARRIES                      
ACCOMMODATION STRATEGY        ,9650,OTHER SERVICE RECHARGES       ,05/04/2011,3005453,SIN012205                ,6941.36,PETER HOUSLEY REMOVALS                  ,207489,Transport,REMOVALS & STORAGE - HOUSEHOLD
LACES                         ,8440,FEE EXPENSES                  ,05/04/2011,3005490,I015518                  ,800.00,TAMESIDE COLLEGE                        ,549313,Unclassified Non Trade,SCHOOLS & COLLEGES - FURTHER E
PAY & GRADING                 ,8470,LEGAL FEES                    ,05/04/2011,3005504,91148,15275.00,BEVERLEY LANG QC                        ,504969,Legal Services,BARRISTERS                    
OLEA SEN TRANSPORT            ,7140,PUBLIC TRANSPORT COSTS        ,05/04/2011,3005946,112968403,1528.80,ROTHERHAM M B C                         ,296984,Unclassified Non Trade,LOCAL GOVERNMENT              
FOXWOOD                       ,5610,AGENCY STAFF                  ,05/04/2011,3005978,1550936,520.20,ADVANTAGE HEALTHCARE GROUP LTD          ,457258,Human Resources,NURSING AGENCIES              
EARLY YEARS                   ,8040,LEARNING RESOURCES            ,05/04/2011,3006172,24740,955.00,MAYSON SECURITY SERVICES                ,507091,Facilities Management,BURGLAR & INTRUDER ALARM SYSTE
PAYP                          ,9650,OTHER SERVICE RECHARGES       ,05/04/2011,3006959,40627,3000.00,THE MUSICAL WORKS                       ,368576,Unclassified Non Trade,COMMUNITY PROJECTS            
PROJECT MANAGEMENT - SCHEME   ,8440,FEE EXPENSES                  ,05/04/2011,3006973,13815,3896.64,PYRAMID CARPETS                         ,243612,Building Construction Materials,CARPETS & RUGS - RETAIL       
PROJECT MANAGEMENT - SCHEME   ,8440,FEE EXPENSES                  ,05/04/2011,3006975,13813,34667.73,PYRAMID CARPETS                         ,243612,Building Construction Materials,CARPETS & RUGS - RETAIL       
CASTLE                        ,6090,WASTE DISPOSAL                ,05/04/2011,3007226,159,650.00,R L DEAR (WASTE MERCHANTS) LTD          ,360135,Environmental Services,WASTE MERCHANTS               
WORKSTYLE REDVERS             ,8350,MISCELLANEOUS EXPENSES        ,05/04/2011,3007255,SIN012234                ,876.58,PETER HOUSLEY REMOVALS                  ,207489,Transport,REMOVALS & STORAGE - HOUSEHOLD
FURNISHED ACCOMMODATION       ,8050,SOFT FURNISHINGS              ,05/04/2011,3007475,15338,5100.00,ALLEN UPHOLSTERY                        ,295763,Furniture,FURNITURE MNFRS - HOME & OFFIC
OBSOLETE HEATING              ,1161,NC&A MAIN CONTRACT            ,05/04/2011,3007478,SH03298A/1               ,60000.00,J TOMLINSON LTD.                        ,449492,Construction,ELECTRICIANS & ELECTRICAL CONTRACTORS  
SD B SHIREGREEN/BURNGREAVE    ,1161,NC&A MAIN CONTRACT            ,05/04/2011,3007481,ED03074/7                ,81200.00,KIER SHEFFIELD LLP                      ,352687,Construction,PROPERTY MAINTENANCE & REPAIRS
SHELTERED HOUSING             ,5610,AGENCY STAFF                  ,05/04/2011,3007482,01/732713                ,869.54,TRAVAIL EMPLOYMENT GROUP                ,299220,Human Resources,EMPLOYMENT & RECRUITMENT AGENC
PARTNERSHIP & GRANT AID MH    ,8440,FEE EXPENSES                  ,05/04/2011,3007786,17664,18354.00,ST ANNE'S COMMUNITY SERVICES            ,351501,Unclassified Non Trade,"HOUSING ASSOCIATIONS, SOCIETIE"
PARTNERSHIP & GRANT AID MH    ,8440,FEE EXPENSES                  ,05/04/2011,3007788,17665,18354.00,ST ANNE'S COMMUNITY SERVICES            ,351501,Unclassified Non Trade,"HOUSING ASSOCIATIONS, SOCIETIE"
TRAFFIC MANAGEMENT            ,5610,AGENCY STAFF                  ,05/04/2011,3007791,1294339,1040.52,MATCHTECH GROUP PLC                     ,387061,Human Resources,EMPLOYMENT & RECRUITMENT AGENC
SOCIAL MARKETING              ,8440,FEE EXPENSES                  ,05/04/2011,3007822,11000439,6000.00,IPSOS MORI NORTH                        ,527431,Facilities Management,MARKET RESEARCH               
TRAFFIC MANAGEMENT            ,5610,AGENCY STAFF                  ,05/04/2011,3007920,1290956,1027.18,MATCHTECH GROUP PLC                     ,387061,Human Resources,EMPLOYMENT & RECRUITMENT AGENC
URBAN TRAFFIC CONTROL         ,5610,AGENCY STAFF                  ,05/04/2011,3007932,1290954,1507.84,MATCHTECH GROUP PLC                     ,387061,Human Resources,EMPLOYMENT & RECRUITMENT AGENC
BUSINESS DEVELOPMENT          ,8470,LEGAL FEES                    ,05/04/2011,3007934,281,1064.00,RICHARD POWELL                          ,491206,Legal Services,BARRISTERS                    
SHEFFIELD HOMES ACCOMODATION  ,6080,CONTRACT CLEANING             ,05/04/2011,3008077,852119,11541.92,CHIEF EXECUTIVE DIRECTORATE (HOMES)     ,402954,Unclassified Non Trade,LOCAL GOVERNMENT              
CAPITA CONTROL A/C            ,9620,FINANCIAL PROCESSES           ,05/04/2011,3008089,92022349,905553.00,CAPITA BUSINESS SERVICES LTD            ,505663,Human Resources,BUSINESS INFORMATION SERVICES 
URBAN TRAFFIC CONTROL         ,5610,AGENCY STAFF                  ,05/04/2011,3008169,1290953,1587.20,MATCHTECH GROUP PLC                     ,387061,Human Resources,EMPLOYMENT & RECRUITMENT AGENC
BRADFIELD DUNGWORTH PRIMARY   ,1161,NC&A MAIN CONTRACT            ,05/04/2011,3008420,09821/5                  ,75456.14,KIER SHEFFIELD LLP                      ,352687,Construction,PROPERTY MAINTENANCE & REPAIRS
SHEPHERD WHEEL                ,1165,NC&A OTHER                    ,05/04/2011,3008751,1492,1440.00,ANDERSON TREE CARE LTD                  ,316084,Environmental Services,TREE WORK & FORESTRY SERVICES 
TRAINING - BROCKWOOD          ,8460,CONSULTANTS FEES              ,05/04/2011,3008777,366,1100.00,SHEFFIELD DOMESTIC ABUSE FORUM          ,317850,Unclassified Non Trade,CHARITIES & VOLUNTARY ORGANISA
EMPLOYEE DEVELOPMENT          ,5750,EXTERNAL TRAINERS COSTS       ,05/04/2011,3008778,367,1000.00,SHEFFIELD DOMESTIC ABUSE FORUM          ,361158,Unclassified Non Trade,CHARITIES & VOLUNTARY ORGANISA
COMMUNITY TEACHERS            ,8040,LEARNING RESOURCES            ,05/04/2011,3008878,554JU-1/342JW            ,1432.60,COMMUNITY PLAYTHINGS                    ,511400,Education,EDUCATIONAL EQUIPMENT & SUPPLI
SYITS DEVELOPMENT 9/10        ,1165,NC&A OTHER                    ,05/04/2011,3008879,66,31894.00,MOBIUS NETWORKS LIMITED                 ,490430,ICT,TELECOMMUNICATION SERVICES    
SHEFFIELD HOMES ACCOMODATION  ,8350,MISCELLANEOUS EXPENSES        ,05/04/2011,3008882,852103,1406.82,CHIEF EXECUTIVE DIRECTORATE (HOMES)     ,402954,Unclassified Non Trade,LOCAL GOVERNMENT              
SHEFFIELD HOMES ACCOMODATION  ,8350,MISCELLANEOUS EXPENSES        ,05/04/2011,3008883,852102,1465.37,CHIEF EXECUTIVE DIRECTORATE (HOMES)     ,402954,Unclassified Non Trade,LOCAL GOVERNMENT              
C'MON EVERYBODY PROJECT       ,8440,FEE EXPENSES                  ,05/04/2011,3008910,553,510.00,ROUNDABOUT CRECHE SERVICE               ,462116,Social Community Care,NURSERIES & CRECHES           
CREMATORIA                    ,6020,REPAIRS AND MTCE - PROGRAMMED ,05/04/2011,3008939,601,2579.60,FURNACE CONSTRUCTION CREMATORS LIMITED  ,204974,Cemetery & Crematorium ,FURNACES                      
RANGER HEALTHWALKS - HOSPITAL ,8230,HOSPITALITY                   ,05/04/2011,3008963,5778,755.25,NORFOLK PARK CATERING LTD.              ,297098,Catering,CATERERS                      
SPECIALIST MARKETS            ,8420,ADVERTISING AND PUBLICITY     ,05/04/2011,3008976,775/325                  ,600.00,YELLOW BUS EVENTS LTD                   ,505362,Leisure Services,"EXHIBITION, EVENT & TRADE FAIR"
TRAINING - BROCKWOOD          ,8460,CONSULTANTS FEES              ,05/04/2011,3008979,INV0097084               ,1099.00,RNID                                    ,315711,Unclassified Non Trade,CHARITIES & VOLUNTARY ORGANISA
TRANSPORT FLEET MANAGEMENT    ,7060,EXTERNAL VEHICLE HIRE         ,05/04/2011,3009209,63453,1940.00,DAWSON RENTALS SWEEPERS                 ,446765,Vehicles Not Buses,PLANT & MACHINERY HIRE & LEASI
SOCIAL SERVICES LOCATION PLACE,9050,OTHER LOCAL AUTHORITIES       ,05/04/2011,3009210,9000112759,3810.73,BARNSLEY M B C                          ,503147,Unclassified Non Trade,LOCAL GOVERNMENT              
STREET FORCE BALANCE SHEET    ,776,4332101 INVOICES PAID         ,05/04/2011,3009213,P12858                   ,2095.00,POWER PLANE LIMITED                     ,504430,Construction,ROAD CONSTRUCTION CONTRACTORS 
STREET FORCE BALANCE SHEET    ,776,4332101 INVOICES PAID         ,05/04/2011,3009214,P12859                   ,795.00,POWER PLANE LIMITED                     ,504430,Construction,ROAD CONSTRUCTION CONTRACTORS 
STREET FORCE BALANCE SHEET    ,776,4332101 INVOICES PAID         ,05/04/2011,3009216,YD20115694               ,571.27,YEDL                                    ,349525,Utilities,ELECTRICITY COMPANIES         
SCHOOL IMPROVEMENT PARTNERS   ,8440,FEE EXPENSES                  ,05/04/2011,3009218,IN/2010/018              ,3550.00,BRIGHOUSE EDUCATIONAL ASSOCIATES        ,544337,Education,EDUCATIONAL SERVICES          
PURCHASING LEARNING DISABILITI,9200,CONTINUING RESIDENTIAL CARE   ,05/04/2011,3009220,J357321 010511           ,19228.68,THE HESLEY GROUP                        ,327405,Unclassified Non Trade,SCHOOLS - SPECIAL             
PURCHASING LEARNING DISABILITI,9200,CONTINUING RESIDENTIAL CARE   ,05/04/2011,3009221,J357153 010511           ,9064.66,BETHANY HOUSE                           ,361787,Social Community Care,RESIDENTIAL CARE HOMES        
PURCHASING LEARNING DISABILITI,9200,CONTINUING RESIDENTIAL CARE   ,05/04/2011,3009222,J357070 010511           ,16586.48,EAST BANK ROAD (458A)                   ,361789,Social Community Care,RESIDENTIAL CARE HOMES        
PURCHASING ELDERLY            ,9200,CONTINUING RESIDENTIAL CARE   ,05/04/2011,3009222,J357070 010511           ,2620.08,EAST BANK ROAD (458A)                   ,361789,Social Community Care,RESIDENTIAL CARE HOMES        
PURCHASING ELDERLY            ,9200,CONTINUING RESIDENTIAL CARE   ,05/04/2011,3009223,J357058 010511           ,5565.72,SANDFORD HOUSE                          ,361790,Social Community Care,RESIDENTIAL CARE HOMES        
PURCHASING                    ,9200,CONTINUING RESIDENTIAL CARE   ,05/04/2011,3009223,J357058 010511           ,19505.78,SANDFORD HOUSE                          ,361790,Social Community Care,RESIDENTIAL CARE HOMES        
PURCHASING LEARNING DISABILITI,9240,SUPPORTED LIVING CARE         ,05/04/2011,3009224,J357271 010511           ,2182.80,MENCAP (CROOKESMOOR DRIVE)              ,361804,Unclassified Non Trade,CHARITIES & VOLUNTARY ORGANISA
PURCHASING LEARNING DISABILITI,9200,CONTINUING RESIDENTIAL CARE   ,05/04/2011,3009225,J357190 010511           ,7698.22,169 GLEADLESS COMMON                    ,361822,Social Community Care,RESIDENTIAL CARE HOMES        
PURCHASING ELDERLY            ,9200,CONTINUING RESIDENTIAL CARE   ,05/04/2011,3009226,J357087 010511           ,1355.00,ROCKLEY DEAN NURSING HOME               ,361835,Social Community Care,NURSING HOMES                 
PURCHASING ELDERLY            ,9200,CONTINUING RESIDENTIAL CARE   ,05/04/2011,3009227,J357200 010511           ,1413.16,9 FRASER DRIVE                          ,361861,Social Community Care,RESIDENTIAL CARE HOMES        
PURCHASING LEARNING DISABILITI,9200,CONTINUING RESIDENTIAL CARE   ,05/04/2011,3009227,J357200 010511           ,3906.52,9 FRASER DRIVE                          ,361861,Social Community Care,RESIDENTIAL CARE HOMES        
PURCHASING LEARNING DISABILITI,9200,CONTINUING RESIDENTIAL CARE   ,05/04/2011,3009228,J357083 010511           ,13815.38,NEWFIELD VIEW                           ,361863,Social Community Care,NURSING HOMES                 
PURCHASING ELDERLY            ,9200,CONTINUING RESIDENTIAL CARE   ,05/04/2011,3009228,J357083 010511           ,1274.64,NEWFIELD VIEW                           ,361863,Social Community Care,NURSING HOMES                 
PURCHASING ELDERLY            ,9200,CONTINUING RESIDENTIAL CARE   ,05/04/2011,3009229,J357197 010511           ,2781.92,5 STATION ROAD                          ,361874,Social Community Care,RESIDENTIAL CARE HOMES        
PURCHASING LEARNING DISABILITI,9200,CONTINUING RESIDENTIAL CARE   ,05/04/2011,3009229,J357197 010511           ,5324.01,5 STATION ROAD                          ,361874,Social Community Care,RESIDENTIAL CARE HOMES        
PURCHASING LEARNING DISABILITI,9200,CONTINUING RESIDENTIAL CARE   ,05/04/2011,3009230,J357188 010511           ,7900.66,11 FRASER DRIVE                         ,361875,Social Community Care,RESIDENTIAL CARE HOMES        
PURCHASING ELDERLY            ,9200,CONTINUING RESIDENTIAL CARE   ,05/04/2011,3009231,J357171 010511           ,12907.20,ABBEYFIELD GRANGE                       ,336444,Social Community Care,RESIDENTIAL CARE HOMES        
PURCHASING                    ,9200,CONTINUING RESIDENTIAL CARE   ,05/04/2011,3009231,J357171 010511           ,18930.38,ABBEYFIELD GRANGE                       ,336444,Social Community Care,RESIDENTIAL CARE HOMES        
PURCHASING LEARNING DISABILITI,9200,CONTINUING RESIDENTIAL CARE   ,05/04/2011,3009231,J357171 010511           ,1338.41,ABBEYFIELD GRANGE                       ,336444,Social Community Care,RESIDENTIAL CARE HOMES        
PURCHASING ELDERLY            ,9200,CONTINUING RESIDENTIAL CARE   ,05/04/2011,3009232,J357115 010511           ,3358.48,ORCHARD END                             ,361893,Social Community Care,RESIDENTIAL CARE HOMES        
PURCHASING ELDERLY            ,9200,CONTINUING RESIDENTIAL CARE   ,05/04/2011,3009233,J357059 010511           ,17298.00,ASH HOUSE RESIDENTIAL HOME              ,361901,Social Community Care,RESIDENTIAL CARE HOMES        
PHYSICAL DISABILITIES PURCHASI,9210,CONTINUING NURSING CARE       ,05/04/2011,3009235,J357093 010511           ,5311.50,HAVENFIELD LODGE                        ,361919,Social Community Care,NURSING HOMES                 
PURCHASING ELDERLY            ,9210,CONTINUING NURSING CARE       ,05/04/2011,3009235,J357093 010511           ,2109.84,HAVENFIELD LODGE                        ,361919,Social Community Care,NURSING HOMES                 
PURCHASING LEARNING DISABILITI,9210,CONTINUING NURSING CARE       ,05/04/2011,3009235,J357093 010511           ,16323.40,HAVENFIELD LODGE                        ,361919,Social Community Care,NURSING HOMES                 
PURCHASING                    ,9210,CONTINUING NURSING CARE       ,05/04/2011,3009235,J357093 010511           ,1420.02,HAVENFIELD LODGE                        ,361919,Social Community Care,NURSING HOMES                 
PURCHASING ELDERLY            ,9200,CONTINUING RESIDENTIAL CARE   ,05/04/2011,3009236,J357162 010511           ,1314.36,KILLAMARSH REST HOME                    ,361936,Social Community Care,REST & RETIREMENT HOMES       
PURCHASING ELDERLY            ,9200,CONTINUING RESIDENTIAL CARE   ,05/04/2011,3009237,J357088 010511           ,1539.68,PARK LODGE CARE HOME                    ,361949,Social Community Care,RESIDENTIAL CARE HOMES        
PURCHASING ELDERLY            ,9200,CONTINUING RESIDENTIAL CARE   ,05/04/2011,3009238,J357113 010511           ,5819.84,THE GREEN                               ,361956,Social Community Care,NURSING HOMES                 
PURCHASING ELDERLY            ,9210,CONTINUING NURSING CARE       ,05/04/2011,3009238,J357113 010511           ,1544.00,THE GREEN                               ,361956,Social Community Care,NURSING HOMES                 
PURCHASING LEARNING DISABILITI,9200,CONTINUING RESIDENTIAL CARE   ,05/04/2011,3009239,J357213 010511           ,6322.81,HEATH FARM                              ,361966,Social Community Care,RESIDENTIAL CARE HOMES        
PURCHASING LEARNING DISABILITI,9240,SUPPORTED LIVING CARE         ,05/04/2011,3009240,J357230 010511           ,3002.00,NORTHERN LIFE CARE LTD T/A UBU          ,361991,Social Community Care,RESIDENTIAL CARE HOMES        
PURCHASING ELDERLY            ,9200,CONTINUING RESIDENTIAL CARE   ,05/04/2011,3009241,J357231 010511           ,2971.40,VICTORIA CARE HOME                      ,361992,Social Community Care,RESIDENTIAL CARE HOMES        
PURCHASING ELDERLY            ,9200,CONTINUING RESIDENTIAL CARE   ,05/04/2011,3009242,J357130 010511           ,10447.00,ST CATHERINES RESIDENTIAL HOME          ,344721,Social Community Care,RESIDENTIAL CARE HOMES        
PURCHASING ELDERLY            ,9210,CONTINUING NURSING CARE       ,05/04/2011,3009242,J357130 010511           ,12272.00,ST CATHERINES RESIDENTIAL HOME          ,344721,Social Community Care,RESIDENTIAL CARE HOMES        
PURCHASING ELDERLY            ,9210,CONTINUING NURSING CARE       ,05/04/2011,3009243,J357148 010511           ,4512.00,TREETON GRANGE                          ,362005,Social Community Care,NURSING HOMES                 
PURCHASING ELDERLY            ,9200,CONTINUING RESIDENTIAL CARE   ,05/04/2011,3009243,J357148 010511           ,7195.76,TREETON GRANGE                          ,362005,Social Community Care,NURSING HOMES                 
PURCHASING ELDERLY            ,9200,CONTINUING RESIDENTIAL CARE   ,05/04/2011,3009244,J357069 010511           ,1464.68,EAST BANK ROAD (258A)                   ,362007,Social Community Care,RESIDENTIAL CARE HOMES        
PURCHASING LEARNING DISABILITI,9200,CONTINUING RESIDENTIAL CARE   ,05/04/2011,3009244,J357069 010511           ,2744.92,EAST BANK ROAD (258A)                   ,362007,Social Community Care,RESIDENTIAL CARE HOMES        
PURCHASING LEARNING DISABILITI,9210,CONTINUING NURSING CARE       ,05/04/2011,3009245,J357104 010511           ,2426.43,OAKWOOD (DEVON COURT)                   ,362087,Social Community Care,RESIDENTIAL CARE HOMES        
PURCHASING ELDERLY            ,9200,CONTINUING RESIDENTIAL CARE   ,05/04/2011,3009246,J357176 010511           ,1788.00,DOVE COURT RESIDENTIAL HOME             ,362096,Social Community Care,RESIDENTIAL CARE HOMES        
PURCHASING LEARNING DISABILITI,9210,CONTINUING NURSING CARE       ,05/04/2011,3009247,J357106 010511           ,9534.53,ELMWOOD HOUSE NURSING HOME              ,362098,Social Community Care,NURSING HOMES                 
PURCHASING LEARNING DISABILITI,9200,CONTINUING RESIDENTIAL CARE   ,05/04/2011,3009248,J357140 010511           ,7365.75,ORCHARD CARE RESIDENTIAL HOME           ,362100,Social Community Care,NURSING HOMES                 
PURCHASING ELDERLY            ,9200,CONTINUING RESIDENTIAL CARE   ,05/04/2011,3009248,J357140 010511           ,6364.40,ORCHARD CARE RESIDENTIAL HOME           ,362100,Social Community Care,NURSING HOMES                 
PURCHASING ELDERLY            ,9210,CONTINUING NURSING CARE       ,05/04/2011,3009249,J357066 010511           ,9456.00,67 BIRCH AVENUE NURSING HOME            ,362108,Social Community Care,NURSING HOMES                 
PHYSICAL DISABILITIES PURCHASI,9210,CONTINUING NURSING CARE       ,05/04/2011,3009250,J357209 010511           ,4009.90,HENLEIGH HALL                           ,362109,Social Community Care,NURSING HOMES                 
PURCHASING ELDERLY            ,9210,CONTINUING NURSING CARE       ,05/04/2011,3009250,J357209 010511           ,9369.88,HENLEIGH HALL                           ,362109,Social Community Care,NURSING HOMES                 
PURCHASING ELDERLY            ,9200,CONTINUING RESIDENTIAL CARE   ,05/04/2011,3009251,J357165 010511           ,11106.00,WESTBOURNE HOUSE                        ,362111,Social Community Care,NURSING HOMES                 
PURCHASING ELDERLY            ,9210,CONTINUING NURSING CARE       ,05/04/2011,3009251,J357165 010511           ,18144.00,WESTBOURNE HOUSE                        ,362111,Social Community Care,NURSING HOMES                 
PURCHASING LEARNING DISABILITI,9200,CONTINUING RESIDENTIAL CARE   ,05/04/2011,3009252,J357102 010511           ,4751.73,BEECHWOOD                               ,362117,Social Community Care,RESIDENTIAL CARE HOMES        
PURCHASING ELDERLY            ,9200,CONTINUING RESIDENTIAL CARE   ,05/04/2011,3009253,J357214 010511           ,26484.00,ABBEY GRANGE RESIDENTIAL HOME           ,361753,Social Community Care,RESIDENTIAL CARE HOMES        
PURCHASING ELDERLY            ,9210,CONTINUING NURSING CARE       ,05/04/2011,3009253,J357214 010511           ,3008.00,ABBEY GRANGE RESIDENTIAL HOME           ,361753,Social Community Care,RESIDENTIAL CARE HOMES        
PURCHASING ELDERLY            ,9200,CONTINUING RESIDENTIAL CARE   ,05/04/2011,3009254,J357064 010511           ,7194.40,100 BEIGHTON ROAD                       ,362152,Social Community Care,RESIDENTIAL CARE HOMES        
PURCHASING LEARNING DISABILITI,9200,CONTINUING RESIDENTIAL CARE   ,05/04/2011,3009254,J357064 010511           ,15510.04,100 BEIGHTON ROAD                       ,362152,Social Community Care,RESIDENTIAL CARE HOMES        
PURCHASING LEARNING DISABILITI,9200,CONTINUING RESIDENTIAL CARE   ,05/04/2011,3009255,J357194 010511           ,6513.84,3 STATION ROAD                          ,362166,Social Community Care,RESIDENTIAL CARE HOMES        
PURCHASING LEARNING DISABILITI,9200,CONTINUING RESIDENTIAL CARE   ,05/04/2011,3009256,J357195 010511           ,5732.44,31 GLEADLESS CRESCENT                   ,362168,Social Community Care,RESIDENTIAL CARE HOMES        
PURCHASING ELDERLY            ,9200,CONTINUING RESIDENTIAL CARE   ,05/04/2011,3009257,J357146 010511           ,23280.00,DARNALL VIEW RESIDENTIAL HOME           ,362170,Social Community Care,RESIDENTIAL CARE HOMES        
PURCHASING ELDERLY            ,9210,CONTINUING NURSING CARE       ,05/04/2011,3009258,J357116 010511           ,1832.92,DERWENT LODGE                           ,362172,Social Community Care,NURSING HOMES                 
PURCHASING ELDERLY            ,9210,CONTINUING NURSING CARE       ,05/04/2011,3009259,J357061 010511           ,15453.96,MIMOSA HEALTHCARE LIMITED               ,362253,Social Community Care,RESIDENTIAL CARE HOMES        
PURCHASING ELDERLY            ,9200,CONTINUING RESIDENTIAL CARE   ,05/04/2011,3009260,J357222 010511           ,26119.00,NORTH HILL RESIDENTIAL HOME             ,362254,Social Community Care,RESIDENTIAL CARE HOMES        
PURCHASING LEARNING DISABILITI,9200,CONTINUING RESIDENTIAL CARE   ,05/04/2011,3009261,J349342 030411           ,5563.00,SEVERN OAKS                             ,368306,Social Community Care,RESIDENTIAL CARE HOMES        
PURCHASING LEARNING DISABILITI,9200,CONTINUING RESIDENTIAL CARE   ,05/04/2011,3009262,J357243 010511           ,5521.27,SEVERN OAKS                             ,368306,Social Community Care,RESIDENTIAL CARE HOMES        
PURCHASING ELDERLY            ,9200,CONTINUING RESIDENTIAL CARE   ,05/04/2011,3009263,J357241 010511           ,1314.36,VALLEY PARK RESIDENTIAL HOME            ,368312,Social Community Care,RESIDENTIAL CARE HOMES        
PURCHASING ELDERLY            ,9210,CONTINUING NURSING CARE       ,05/04/2011,3009264,J357095 010511           ,1504.00,THE GLEN PRIVATE NURSING                ,361760,Social Community Care,NURSING HOMES                 
PURCHASING ELDERLY            ,9200,CONTINUING RESIDENTIAL CARE   ,05/04/2011,3009265,J353483 030411           ,4342.86,BROOKVIEW NURSING HOME                  ,368323,Social Community Care,NURSING HOMES                 
PHYSICAL DISABILITIES PURCHASI,9200,CONTINUING RESIDENTIAL CARE   ,05/04/2011,3009266,J357242 010511           ,1479.57,BROOKVIEW NURSING HOME                  ,368323,Social Community Care,NURSING HOMES                 
PURCHASING ELDERLY            ,9210,CONTINUING NURSING CARE       ,05/04/2011,3009266,J357242 010511           ,3008.00,BROOKVIEW NURSING HOME                  ,368323,Social Community Care,NURSING HOMES                 
PURCHASING ELDERLY            ,9200,CONTINUING RESIDENTIAL CARE   ,05/04/2011,3009266,J357242 010511           ,3076.00,BROOKVIEW NURSING HOME                  ,368323,Social Community Care,NURSING HOMES                 
PURCHASING ELDERLY            ,9210,CONTINUING NURSING CARE       ,05/04/2011,3009267,J357237 010511           ,22560.00,BLENHEIM COURT                          ,368328,Social Community Care,NURSING HOMES                 
PURCHASING ELDERLY            ,9200,CONTINUING RESIDENTIAL CARE   ,05/04/2011,3009267,J357237 010511           ,1488.00,BLENHEIM COURT                          ,368328,Social Community Care,NURSING HOMES                 
PURCHASING ELDERLY            ,9200,CONTINUING RESIDENTIAL CARE   ,05/04/2011,3009268,J357232 010511           ,1567.24,ST CECILIAS RESIDENTIAL HOME            ,370172,Social Community Care,RESIDENTIAL CARE HOMES        
PURCHASING LEARNING DISABILITI,9210,CONTINUING NURSING CARE       ,05/04/2011,3009269,J357244 010511           ,7063.19,GREENSIDE COURT                         ,373540,Social Community Care,NURSING HOMES                 
PURCHASING ELDERLY            ,9200,CONTINUING RESIDENTIAL CARE   ,05/04/2011,3009270,J357247 010511           ,1355.00,PENRHOS HOME                            ,376129,Unclassified Non Trade,"HOUSING ASSOCIATIONS, SOCIETIE"
PURCHASING ELDERLY            ,9210,CONTINUING NURSING CARE       ,05/04/2011,3009271,J357264 010511           ,1544.00,WATER ROYD HOUSE                        ,383521,Social Community Care,NURSING HOMES                 
PURCHASING ELDERLY            ,9200,CONTINUING RESIDENTIAL CARE   ,05/04/2011,3009271,J357264 010511           ,1618.60,WATER ROYD HOUSE                        ,383521,Social Community Care,NURSING HOMES                 
PURCHASING ELDERLY            ,9200,CONTINUING RESIDENTIAL CARE   ,05/04/2011,3009272,J357279 010511           ,1488.00,HIGHGROVE CARE HOME                     ,397555,Social Community Care,RESIDENTIAL CARE HOMES        
PURCHASING                    ,9210,CONTINUING NURSING CARE       ,05/04/2011,3009273,J357280 010511           ,4586.99,FAIRWINDS                               ,397558,Social Community Care,RESIDENTIAL CARE HOMES        
PURCHASING LEARNING DISABILITI,9200,CONTINUING RESIDENTIAL CARE   ,05/04/2011,3009274,J357281 010511           ,10086.28,SHAFTESBURY HOUSE                       ,403791,Unclassified Non Trade,CHARITIES & VOLUNTARY ORGANISA
PURCHASING ELDERLY            ,9200,CONTINUING RESIDENTIAL CARE   ,05/04/2011,3009275,J357135 010511           ,9477.00,PRIOR BANK HOUSE                        ,361772,Social Community Care,RESIDENTIAL CARE HOMES        
PURCHASING LEARNING DISABILITI,9200,CONTINUING RESIDENTIAL CARE   ,05/04/2011,3009276,J357283 010511           ,14547.20,WALKLEY LODGE                           ,412186,Social Community Care,RESIDENTIAL CARE HOMES        
PURCHASING ELDERLY            ,9200,CONTINUING RESIDENTIAL CARE   ,05/04/2011,3009277,J357284 010511           ,1392.52,SANDYGATE RESIDENTIAL CARE HOME         ,415177,Social Community Care,RESIDENTIAL CARE HOMES        
PURCHASING LEARNING DISABILITI,9200,CONTINUING RESIDENTIAL CARE   ,05/04/2011,3009278,J357303 010511           ,8369.28,AALPS                                   ,416380,Unclassified Non Trade,SCHOOLS - SPECIAL             
PURCHASING ELDERLY            ,9200,CONTINUING RESIDENTIAL CARE   ,05/04/2011,3009279,J357293 010511           ,1520.00,BRAILSFORD HOUSE RESIDENTIAL HOME       ,430727,Social Community Care,RESIDENTIAL CARE HOMES        
PURCHASING ELDERLY            ,9210,CONTINUING NURSING CARE       ,05/04/2011,3009280,J357291 010511           ,1935.60,ROBINSON HOUSE                          ,430743,Social Community Care,NURSING HOMES                 
PURCHASING ELDERLY            ,9200,CONTINUING RESIDENTIAL CARE   ,05/04/2011,3009281,J349394 030411           ,1299.92,SAXILBY HOUSE RESIDENTIAL HOME          ,433431,Social Community Care,RESIDENTIAL CARE HOMES        
PURCHASING ELDERLY            ,9200,CONTINUING RESIDENTIAL CARE   ,05/04/2011,3009282,J357227 010511           ,1520.00,ELM LODGE                               ,433486,Social Community Care,NURSING HOMES                 
PURCHASING LEARNING DISABILITI,9200,CONTINUING RESIDENTIAL CARE   ,05/04/2011,3009283,J349397 030411           ,7434.32,SENSE                                   ,437084,Unclassified Non Trade,CHARITIES & VOLUNTARY ORGANISA
PURCHASING LEARNING DISABILITI,9200,CONTINUING RESIDENTIAL CARE   ,05/04/2011,3009284,J357305 010511           ,18839.90,REDCLIFFE HOUSE                         ,446985,Facilities Management,GUEST HOUSES                  
PURCHASING LEARNING DISABILITI,9200,CONTINUING RESIDENTIAL CARE   ,05/04/2011,3009285,J357313 010511           ,7411.67,GRETTON HOUSE                           ,461869,Social Community Care,NURSING HOMES                 
PURCHASING LEARNING DISABILITI,9240,SUPPORTED LIVING CARE         ,05/04/2011,3009286,J357269 010511           ,4457.28,MENCAP                                  ,361774,Unclassified Non Trade,CHARITIES & VOLUNTARY ORGANISA
PURCHASING LEARNING DISABILITI,9200,CONTINUING RESIDENTIAL CARE   ,05/04/2011,3009287,J357317 010511           ,3563.34,HOLLY HOUSE                             ,464393,Social Community Care,RESIDENTIAL CARE HOMES        
PURCHASING ELDERLY            ,9200,CONTINUING RESIDENTIAL CARE   ,05/04/2011,3009288,J357318 010511           ,1640.00,NEWTON HOUSE CARE HOME                  ,475173,Social Community Care,NURSING HOMES                 
PURCHASING ELDERLY            ,9200,CONTINUING RESIDENTIAL CARE   ,05/04/2011,3009289,J349406 030411           ,1640.24,THE SPINNEY                             ,475576,Social Community Care,RESIDENTIAL CARE HOMES        
PURCHASING ELDERLY            ,9210,CONTINUING NURSING CARE       ,05/04/2011,3009290,J357322 010511           ,1535.88,HEARTLANDS NURSING HOME                 ,478368,Social Community Care,NURSING HOMES                 
PURCHASING ELDERLY            ,9200,CONTINUING RESIDENTIAL CARE   ,05/04/2011,3009291,J357139 010511           ,24378.00,DEVAGLADE LIMITED T/A AARON VIEW        ,486043,Social Community Care,NURSING HOMES                 
PURCHASING ELDERLY            ,9200,CONTINUING RESIDENTIAL CARE   ,05/04/2011,3009292,J349423 030411           ,1536.00,LYMEHURST REST HOME                     ,487361,Social Community Care,REST & RETIREMENT HOMES       
PURCHASING ELDERLY            ,9200,CONTINUING RESIDENTIAL CARE   ,05/04/2011,3009293,J357327 010511           ,1548.00,BELGRAVE COURT RESIDENTIAL CARE HOME    ,487981,Social Community Care,RESIDENTIAL CARE HOMES        
PURCHASING LEARNING DISABILITI,9200,CONTINUING RESIDENTIAL CARE   ,05/04/2011,3009294,J357329 010511           ,5409.06,OAK HOUSE                               ,491029,Social Community Care,RESIDENTIAL CARE HOMES        
PURCHASING ELDERLY            ,9210,CONTINUING NURSING CARE       ,05/04/2011,3009295,J357342 010511           ,1504.00,RUSHEY MEAD MANOR CARE HOME             ,509651,Social Community Care,RESIDENTIAL CARE HOMES        
PURCHASING ELDERLY            ,9200,CONTINUING RESIDENTIAL CARE   ,05/04/2011,3009296,J357345 010511           ,1520.00,PILLING CARE HOME                       ,513118,Social Community Care,RESIDENTIAL CARE HOMES        
PURCHASING LEARNING DISABILITI,9240,SUPPORTED LIVING CARE         ,05/04/2011,3009297,J357270 010511           ,5276.88,MENCAP                                  ,361774,Unclassified Non Trade,CHARITIES & VOLUNTARY ORGANISA
PURCHASING ELDERLY            ,9200,CONTINUING RESIDENTIAL CARE   ,05/04/2011,3009298,J357347 010511           ,1720.28,NEWTOWN HOUSE                           ,516808,Social Community Care,RESIDENTIAL CARE HOMES        
PURCHASING ELDERLY            ,9200,CONTINUING RESIDENTIAL CARE   ,05/04/2011,3009299,J357348 010511           ,1655.00,EMYVALE HOUSE                           ,517628,Social Community Care,RESIDENTIAL CARE HOMES        
PURCHASING ELDERLY            ,9200,CONTINUING RESIDENTIAL CARE   ,05/04/2011,3009300,J357186 010511           ,1656.00,BROADACRES CARE HOME                    ,522768,Social Community Care,RESIDENTIAL CARE HOMES        
PURCHASING LEARNING DISABILITI,9200,CONTINUING RESIDENTIAL CARE   ,05/04/2011,3009301,J357355 010511           ,7616.71,TUNHILL HOUSE                           ,525520,Social Community Care,RESIDENTIAL CARE HOMES        
PURCHASING ELDERLY            ,9210,CONTINUING NURSING CARE       ,05/04/2011,3009302,J357356 010511           ,1804.28,DERBY HOUSE NURSING HOME                ,529076,Social Community Care,NURSING HOMES                 
PURCHASING ELDERLY            ,9200,CONTINUING RESIDENTIAL CARE   ,05/04/2011,3009303,J357357 010511           ,1488.00,OAK TREE RESIDENTIAL CARE HOME          ,530009,Social Community Care,RESIDENTIAL CARE HOMES        
PURCHASING ELDERLY            ,9210,CONTINUING NURSING CARE       ,05/04/2011,3009304,J357090 010511           ,6609.29,FULWOOD LODGE NURSING HOME              ,361775,Social Community Care,NURSING HOMES                 
PURCHASING ELDERLY            ,9200,SHORT TERM RESIDENTIAL CARE   ,05/04/2011,3009305,J357000 030411           ,2484.43,KNOWLE HILL                             ,361798,Social Community Care,RESIDENTIAL CARE HOMES        
PURCHASING ELDERLY            ,9200,SHORT TERM RESIDENTIAL CARE   ,05/04/2011,3009307,J356784 060311           ,682.00,BALMORAL NURSING HOME                   ,361851,Social Community Care,NURSING HOMES                 
PHYSICAL DISABILITIES PURCHASI,9210,SHORT TERM NURSING CARE       ,05/04/2011,3009308,J356783 060311           ,558.57,EAGLE HOUSE CARE HOME                   ,361977,Social Community Care,RESIDENTIAL CARE HOMES        
PURCHASING ELDERLY            ,9200,SHORT TERM RESIDENTIAL CARE   ,05/04/2011,3009309,J357009 030411           ,750.00,WESTBOURNE HOUSE                        ,362111,Social Community Care,NURSING HOMES                 
PURCHASING ELDERLY            ,9200,SHORT TERM RESIDENTIAL CARE   ,05/04/2011,3009310,J353032 060311           ,1563.71,BEECHY KNOLL                            ,362144,Social Community Care,RESIDENTIAL CARE HOMES        
PURCHASING ELDERLY            ,9200,SHORT TERM RESIDENTIAL CARE   ,05/04/2011,3009312,J350360 060311           ,1879.71,DARNALL VIEW RESIDENTIAL HOME           ,362170,Social Community Care,RESIDENTIAL CARE HOMES        
PURCHASING ELDERLY            ,9200,SHORT TERM RESIDENTIAL CARE   ,05/04/2011,3009314,J357012 030411           ,857.14,NORTH HILL RESIDENTIAL HOME             ,362254,Social Community Care,RESIDENTIAL CARE HOMES        
PHYSICAL DISABILITIES PURCHASI,9210,SHORT TERM NURSING CARE       ,05/04/2011,3009315,J357013 030411           ,5733.48,GREENSIDE COURT                         ,373540,Social Community Care,NURSING HOMES                 
LEAVING CARE                  ,9270,INDEPENDENT FOSTERING         ,05/04/2011,3009317,13681,3482.36,TEAM FOSTERING                          ,352082,Social Community Care,ADOPTION & FOSTERING          
LEAVING CARE                  ,9270,INDEPENDENT FOSTERING         ,05/04/2011,3009318,13874,2860.51,TEAM FOSTERING                          ,352082,Social Community Care,ADOPTION & FOSTERING          
INDEPENDENT RES BLOCK PLACEMEN,9270,INDEPENDENT RESIDENTIAL PMENT ,05/04/2011,3009320,105608,1700.00,THE KEYS GROUP                          ,328876,Social Community Care,CHILDREN'S HOMES              
INDEPENDENT RES BLOCK PLACEMEN,9270,INDEPENDENT RESIDENTIAL PMENT ,05/04/2011,3009321,4267,4478.57,PROGRESSIVE CARE LTD                    ,343548,Social Community Care,CHILDREN'S HOMES              
LEAVING CARE                  ,9270,CARELEAVERS ACCOMMODATION     ,05/04/2011,3009322,AS009615                 ,1462.00,BIRMINGHAM CITY UNIVERSITY              ,530675,Unclassified Non Trade,UNIVERSITIES & MEDICAL SCHOOLS
PURCHASING LEARNING DISABILITI,9250,INDEPENDENT DAY CARE          ,05/04/2011,3009324,A01511                   ,6745.76,AUTISM PLUS LTD                         ,330606,Unclassified Non Trade,CHARITIES & VOLUNTARY ORGANISA
PURCHASING LEARNING DISABILITI,9250,INDEPENDENT DAY CARE          ,05/04/2011,3009325,A01512                   ,6745.76,AUTISM PLUS LTD                         ,330606,Unclassified Non Trade,CHARITIES & VOLUNTARY ORGANISA
PURCHASING LEARNING DISABILITI,9190,CITYWIDE SPOT                 ,05/04/2011,3009329,572,2008.50,CAMPHILL VILLAGE TRUST                  ,203704,Unclassified Non Trade,CHARITIES & VOLUNTARY ORGANISA
PURCHASING ELDERLY            ,9190,CITYWIDE SPOT                 ,05/04/2011,3009335,17887,663.60,SUTTON STAFF AGENCY LTD.                ,301604,Human Resources,EMPLOYMENT & RECRUITMENT AGENC
PURCHASING LEARNING DISABILITI,9190,CITYWIDE SPOT                 ,05/04/2011,3009338,20816+287                ,2080.80,SPECTRUM SOCIAL CARE LTD                ,328608,Human Resources,EMPLOYMENT & RECRUITMENT AGENC
PURCHASING LEARNING DISABILITI,9190,CITYWIDE SPOT                 ,05/04/2011,3009339,20819+290                ,783.20,SPECTRUM SOCIAL CARE LTD                ,328608,Human Resources,EMPLOYMENT & RECRUITMENT AGENC
PURCHASING LEARNING DISABILITI,9190,CITYWIDE SPOT                 ,05/04/2011,3009347,20396,2658.36,CITIZENSHIP FIRST                       ,329379,Unclassified Non Trade,CHARITIES & VOLUNTARY ORGANISA
PURCHASING LEARNING DISABILITI,9190,CITYWIDE SPOT                 ,05/04/2011,3009352,20471,2021.28,CITIZENSHIP FIRST                       ,329379,Unclassified Non Trade,CHARITIES & VOLUNTARY ORGANISA
PURCHASING LEARNING DISABILITI,9190,CITYWIDE SPOT                 ,05/04/2011,3009358,20589,658.68,CITIZENSHIP FIRST                       ,329379,Unclassified Non Trade,CHARITIES & VOLUNTARY ORGANISA
PURCHASING LEARNING DISABILITI,9190,CITYWIDE SPOT                 ,05/04/2011,3009362,1497113,2915.08,MENCAP HOMECARE                         ,361858,Unclassified Non Trade,CHARITIES & VOLUNTARY ORGANISA
PURCHASING LEARNING DISABILITI,9190,CITYWIDE SPOT                 ,05/04/2011,3009363,1497115,1172.80,MENCAP HOMECARE                         ,361858,Unclassified Non Trade,CHARITIES & VOLUNTARY ORGANISA
PURCHASING LEARNING DISABILITI,9190,CITYWIDE SPOT                 ,05/04/2011,3009364,1497116,1024.40,MENCAP HOMECARE                         ,361858,Unclassified Non Trade,CHARITIES & VOLUNTARY ORGANISA
PURCHASING LEARNING DISABILITI,9190,CITYWIDE SPOT                 ,05/04/2011,3009365,1497118,2517.64,MENCAP HOMECARE                         ,361858,Unclassified Non Trade,CHARITIES & VOLUNTARY ORGANISA
PURCHASING LEARNING DISABILITI,9190,CITYWIDE SPOT                 ,05/04/2011,3009366,1497119,1761.60,MENCAP HOMECARE                         ,361858,Unclassified Non Trade,CHARITIES & VOLUNTARY ORGANISA
PURCHASING LEARNING DISABILITI,9190,CITYWIDE SPOT                 ,05/04/2011,3009367,1497122,531.36,MENCAP HOMECARE                         ,361858,Unclassified Non Trade,CHARITIES & VOLUNTARY ORGANISA
PURCHASING LEARNING DISABILITI,9190,CITYWIDE SPOT                 ,05/04/2011,3009371,1497132,4140.92,MENCAP HOMECARE                         ,361858,Unclassified Non Trade,CHARITIES & VOLUNTARY ORGANISA
PURCHASING LEARNING DISABILITI,9190,CITYWIDE SPOT                 ,05/04/2011,3009373,1497141,2890.80,MENCAP HOMECARE                         ,361858,Unclassified Non Trade,CHARITIES & VOLUNTARY ORGANISA
PURCHASING LEARNING DISABILITI,9190,CITYWIDE SPOT                 ,05/04/2011,3009374,1497143,4167.88,MENCAP HOMECARE                         ,361858,Unclassified Non Trade,CHARITIES & VOLUNTARY ORGANISA
PURCHASING LEARNING DISABILITI,9190,CITYWIDE SPOT                 ,05/04/2011,3009375,1497200,1411.20,MENCAP HOMECARE                         ,361858,Unclassified Non Trade,CHARITIES & VOLUNTARY ORGANISA
PURCHASING LEARNING DISABILITI,9190,CITYWIDE SPOT                 ,05/04/2011,3009376,2100063193,1199.52,COMMUNITY HEALTH SHEFFIELD              ,361895,Unclassified Non Trade,HOSPITALS                     
PURCHASING LEARNING DISABILITI,9190,CITYWIDE SPOT                 ,05/04/2011,3009377,2100063194,805.16,COMMUNITY HEALTH SHEFFIELD              ,361895,Unclassified Non Trade,HOSPITALS                     
PURCHASING LEARNING DISABILITI,9190,CITYWIDE SPOT                 ,05/04/2011,3009378,2100063195,3322.64,COMMUNITY HEALTH SHEFFIELD              ,361895,Unclassified Non Trade,HOSPITALS                     
PURCHASING LEARNING DISABILITI,9190,CITYWIDE SPOT                 ,05/04/2011,3009379,2100063200,713.20,COMMUNITY HEALTH SHEFFIELD              ,361895,Unclassified Non Trade,HOSPITALS                     
PURCHASING LEARNING DISABILITI,9190,CITYWIDE SPOT                 ,05/04/2011,3009380,2100063203,1888.12,COMMUNITY HEALTH SHEFFIELD              ,361895,Unclassified Non Trade,HOSPITALS                     
PURCHASING LEARNING DISABILITI,9190,CITYWIDE SPOT                 ,05/04/2011,3009381,2100063205,1356.12,COMMUNITY HEALTH SHEFFIELD              ,361895,Unclassified Non Trade,HOSPITALS                     
PURCHASING LEARNING DISABILITI,9190,CITYWIDE SPOT                 ,05/04/2011,3009382,2100063207,1356.12,COMMUNITY HEALTH SHEFFIELD              ,361895,Unclassified Non Trade,HOSPITALS                     
PURCHASING LEARNING DISABILITI,9190,CITYWIDE SPOT                 ,05/04/2011,3009383,G2923/MS                 ,1585.40,GMS CARERS LTD                          ,361896,Social Community Care,HOME CARE SERVICES            
PURCHASING LEARNING DISABILITI,9190,CITYWIDE SPOT                 ,05/04/2011,3009384,G2924/MS                 ,1585.40,GMS CARERS LTD                          ,361896,Social Community Care,HOME CARE SERVICES            
PURCHASING LEARNING DISABILITI,9190,CITYWIDE SPOT                 ,05/04/2011,3009385,G2925/MS                 ,1585.40,GMS CARERS LTD                          ,361896,Social Community Care,HOME CARE SERVICES            
PURCHASING                    ,9230,CCSP OTHER                    ,05/04/2011,3009386,SIJ0004507               ,1744.60,SYHA LTD                                ,385143,Unclassified Non Trade,"HOUSING ASSOCIATIONS, SOCIETIE"
PURCHASING LEARNING DISABILITI,9190,CITYWIDE SPOT                 ,05/04/2011,3009388,SI10/0003576             ,1291.92,NEW ERA HOUSING AUTHORITY               ,505956,Unclassified Non Trade,"HOUSING ASSOCIATIONS, SOCIETIE"
PURCHASING LEARNING DISABILITI,9190,CITYWIDE SPOT                 ,05/04/2011,3009389,SIMI019780               ,3111.32,CARETECH COMMUNITY SERVICES             ,524237,Social Community Care,HOME CARE SERVICES            
PURCHASING LEARNING DISABILITI,9190,CITYWIDE SPOT                 ,05/04/2011,3009390,SIMI019782               ,2168.00,CARETECH COMMUNITY SERVICES             ,524237,Social Community Care,HOME CARE SERVICES            
PURCHASING LEARNING DISABILITI,9190,CITYWIDE SPOT                 ,05/04/2011,3009391,SIMI019783               ,3111.32,CARETECH COMMUNITY SERVICES             ,524237,Social Community Care,HOME CARE SERVICES            
PURCHASING LEARNING DISABILITI,9190,CITYWIDE SPOT                 ,05/04/2011,3009392,SIMI019784               ,1580.00,CARETECH COMMUNITY SERVICES             ,524237,Social Community Care,HOME CARE SERVICES            
PURCHASING LEARNING DISABILITI,9190,CITYWIDE SPOT                 ,05/04/2011,3009393,SIMI019785               ,2334.08,CARETECH COMMUNITY SERVICES             ,524237,Social Community Care,HOME CARE SERVICES            
PURCHASING LEARNING DISABILITI,9190,CITYWIDE SPOT                 ,05/04/2011,3009394,SIMI019786               ,2583.52,CARETECH COMMUNITY SERVICES             ,524237,Social Community Care,HOME CARE SERVICES            
PURCHASING LEARNING DISABILITI,9190,CITYWIDE SPOT                 ,05/04/2011,3009395,SIMI019787A              ,1943.20,CARETECH COMMUNITY SERVICES             ,524237,Social Community Care,HOME CARE SERVICES            
PURCHASING LEARNING DISABILITI,9190,CITYWIDE SPOT                 ,05/04/2011,3009396,SIMI019788               ,3111.32,CARETECH COMMUNITY SERVICES             ,524237,Social Community Care,HOME CARE SERVICES            
PURCHASING LEARNING DISABILITI,9190,CITYWIDE SPOT                 ,05/04/2011,3009397,6220035,2040.00,CRAEGMOOR                               ,537766,Social Community Care,RESIDENTIAL CARE HOMES        
SOCIAL MARKETING              ,5610,AGENCY STAFF                  ,05/04/2011,3009400,47187853,2347.81,DONCASTER MBC                           ,369105,Unclassified Non Trade,LOCAL GOVERNMENT              
CORPORATE DEBT RECOVERY       ,8440,FEE EXPENSES                  ,05/04/2011,3009415,111699,1405.25,UKSEARCH LIMITED                        ,549570,Financial Services,DEBT COLLECTION AGENCIES      
VSP DELIVER                   ,9140,PRIVATE CONTRACTORS           ,05/04/2011,3009421,2576,2663.20,SHEFFIELD INDUSTRIAL MUSEUMS TRUST LTD  ,307272,Leisure Services,MUSEUMS                       
SOUTH EAST AREA MANAGEMENT FEE,5610,AGENCY STAFF                  ,05/04/2011,3009425,51649,665.31,LYNX EMPLOYMENT SERVICES LTD            ,349384,Human Resources,EMPLOYMENT & RECRUITMENT AGENC
VSP DELIVER                   ,9140,PRIVATE CONTRACTORS           ,05/04/2011,3009471,150/11                   ,2755.68,SOUTH YORKSHIRE & HALLAMSHIRE CYP       ,431967,Unclassified Non Trade,YOUTH ORGANISATIONS & CENTRES 
PLAYGROUND MAINTENANCE & INSPE,8010,EQUIPMENT PURCHASE AND REPAIR ,05/04/2011,3009508,77403,2000.00,HAGUE PLANT LTD                         ,205330,Vehicles Not Buses,PLANT & MACHINERY HIRE & LEASI
CONCORD PARK(CITY)            ,8550,OTHER SERVICES                ,05/04/2011,3009514,783,1360.00,PAUL DAY COUNTRYSIDE SERVICES           ,317618,Environmental Services,TREE WORK & FORESTRY SERVICES 
TRANSPORT FLEET MANAGEMENT    ,7060,EXTERNAL VEHICLE HIRE         ,05/04/2011,3009553,63452,1940.00,DAWSON RENTALS SWEEPERS                 ,446765,Vehicles Not Buses,PLANT & MACHINERY HIRE & LEASI
KS3 INCLUSION CENTRE          ,5350,SUPPLY STAFF BASIC PAY        ,05/04/2011,3009566,3418556,583.50,CAPITA EDUCATION RESOURCING             ,203721,Human Resources,EMPLOYMENT & RECRUITMENT AGENC
KEY STAGE 4 - SPRING LANE     ,5610,AGENCY STAFF - INVOICE        ,05/04/2011,3009589,3414705,1142.50,CAPITA EDUCATION RESOURCING             ,203721,Human Resources,EMPLOYMENT & RECRUITMENT AGENC
KEY STAGE 4 - SPRING LANE     ,5610,AGENCY STAFF - INVOICE        ,05/04/2011,3009591,3414704,613.50,CAPITA EDUCATION RESOURCING             ,203721,Human Resources,EMPLOYMENT & RECRUITMENT AGENC
KEY STAGE 4 - SPRING LANE     ,5610,AGENCY STAFF - INVOICE        ,05/04/2011,3009594,3036024,550.00,RANDSTAD EDUCATION LIMITED              ,208294,Human Resources,EMPLOYMENT & RECRUITMENT AGENC
DISTRICT HEATING GENERAL      ,6160,GAS                           ,05/04/2011,3009611,A3669279/S1863046        ,8287.99,BRITISH GAS BUSINESS                    ,370790,Utilities,GAS COMPANIES                 
DISTRICT HEATING GENERAL      ,6160,GAS                           ,05/04/2011,3009624,A3669279/S1863046        ,12497.75,BRITISH GAS BUSINESS                    ,370790,Utilities,GAS COMPANIES                 
DISTRICT HEATING GENERAL      ,6160,GAS                           ,05/04/2011,3009629,A3669279/S1863046        ,6487.09,BRITISH GAS BUSINESS                    ,370790,Utilities,GAS COMPANIES                 
LD DAY SERVICES NORTH         ,6280,HIRE OF PREMISES              ,05/04/2011,3009656,3016872,583.30,SHEFFIELD INTERNATIONAL VENUES LTD.     ,208389,Leisure Services,SPORTS GROUNDS & STADIUMS     
SMS - INCOME GENERATION       ,8440,FEE EXPENSES                  ,05/04/2011,3009674,11000000000000,832.29,GREENSLEEVES MUSIC                      ,545823,Education,MUSICAL INSTRUMENTS & SHEET MU
THIRD PARTY BUSINESS          ,8010,EQUIPMENT PURCHASE AND REPAIR ,05/04/2011,3009700,854115,5196.24,NEIGHBOURHOODS DIRECTORATE (HOMES)      ,402953,Unclassified Non Trade,LOCAL GOVERNMENT              
NEWTON GRANGE                 ,8140,GROCERIES                     ,05/04/2011,3009705,16507485,608.13,DBC FOODSERVICE                         ,409111,Catering,CATERING FOOD & DRINK SUPPLIER
CREATIVE SERVICES             ,9120,OTHER AGENCIES                ,05/04/2011,3009714,55736,2698.25,INTOPRINT (UK) LIMITED                  ,319560,Facilities Management,PRINTERS                      
HOUSING BENEFIT PAYMENTS      ,9480,RENT ALLOWANCE BACS           ,05/04/2011,3009785,ERS INVOICE49324         ,818.93,REDACTED PERSONAL DATA                   ,549805,Unclassified Non Trade,OUT OF SCOPE FOR SIC MONITORIN
UPPERTHORPE HEALTHY LIVING CEN,8180,GRANTS                        ,05/04/2011,3009786,ERS INVOICE49325         ,19950.00,CHAPELTOWN BATHS COMM BUSINESS LTD      ,331813,Leisure Services,SWIMMING POOLS - PUBLIC       
ADOPTION SUPPORT              ,9120,OTHER AGENCIES                ,05/04/2011,3009789,ERS INVOICE49328         ,600.00,REDACTED PERSONAL DATA                   ,547584,Unclassified Non Trade,OUT OF SCOPE FOR SIC MONITORIN
CLAIMS                        ,8740,MOTOR VEHICLE                 ,05/04/2011,3009790,ERS INVOICE49329         ,717.47,AVIVA                                   ,517596,Financial Services,"INSURANCE - HOME, INSURANCE - "
CLAIMS                        ,8740,PUBLIC LIABILITY              ,05/04/2011,3009791,ERS INVOICE49330         ,2000.00,REDACTED PERSONAL DATA                   ,549292,Unclassified Non Trade,OUT OF SCOPE FOR SIC MONITORIN
CLAIMS                        ,8740,MOTOR VEHICLE                 ,05/04/2011,3009793,ERS INVOICE49332         ,3468.55, AVIVA                                  ,549280,Unclassified Non Trade,OUT OF SCOPE FOR SIC MONITORIN
CLAIMS                        ,8740,EMPLOYERS LIABILITY           ,05/04/2011,3009795,ERS INVOICE49334         ,750.00,THOMPSONS CLIENT ACCOUNT                ,505870,Legal Services,SOLICITORS                    
CLAIMS                        ,8740,PUBLIC LIABILITY              ,05/04/2011,3009796,ERS INVOICE49335         ,585.00,DEPARTMENT FOR WORK & PENSIONS          ,326920,Unclassified Non Trade,CENTRAL GOVERNMENT            
CLAIMS                        ,8740,HIGHWAYS                      ,05/04/2011,3009800,ERS INVOICE49339         ,2300.00,REDACTED PERSONAL DATA                   ,549698,Unclassified Non Trade,OUT OF SCOPE FOR SIC MONITORIN
CLAIMS                        ,8740,HIGHWAYS                      ,05/04/2011,3009801,ERS INVOICE49340         ,585.00,DEPARTMENT FOR WORK & PENSIONS          ,326920,Unclassified Non Trade,CENTRAL GOVERNMENT            
INVESTMENT IN COMMUNITIES2    ,8560,TPB EAST                      ,05/04/2011,3009802,ERS INVOICE49341         ,5950.00,SWFC COMMUNITY PROGRAMME                ,396114,Unclassified Non Trade,CHARITIES & VOLUNTARY ORGANISA
INVESTMENT IN COMMUNITIES2    ,8560,TPB EAST                      ,05/04/2011,3009804,ERS INVOICE49343         ,5000.00,STEPHEN HARRISON ACADEMY                ,479429,Leisure Services,"SNOOKER, BILLIARDS & POOL HALL"
CLAIMS                        ,8740,EMPLOYERS LIABILITY           ,05/04/2011,3009805,ERS INVOICE49344         ,547.00,DEPARTMENT FOR WORK & PENSIONS          ,326920,Unclassified Non Trade,CENTRAL GOVERNMENT            
CLAIMS                        ,8740,EMPLOYERS LIABILITY           ,05/04/2011,3009807,ERS INVOICE49346         ,2500.00,THOMPSONS SOLICITORS                    ,455710,Legal Services,SOLICITORS                    
INVESTMENT IN COMMUNITIES2    ,8560,TPB EAST                      ,05/04/2011,3009808,ERS INVOICE49347         ,1910.00,FRIENDS OF DARNALL NEIGHBOURHOOD PARK   ,503405,Unclassified Non Trade,CHARITIES & VOLUNTARY ORGANISA
INVESTMENT IN COMMUNITIES2    ,8560,TPB EAST                      ,05/04/2011,3009809,ERS INVOICE49348         ,5000.00,SHEBEEN                                 ,462568,Consultancy,ENVIRONMENTAL CONSULTANTS     
INVESTMENT IN COMMUNITIES2    ,8560,TPB EAST                      ,05/04/2011,3009810,ERS INVOICE49349         ,5253.75,WENSLEY TENANTS & RESIDENTS ASSOCIATION ,327171,Unclassified Non Trade,COMMUNITY PROJECTS            
INVESTMENT IN COMMUNITIES2    ,8560,TPB EAST                      ,05/04/2011,3009811,ERS INVOICE49350         ,4000.00,BRUSHES BUSY KIDS                       ,516375,Unclassified Non Trade,COMMUNITY PROJECTS            
INVESTMENT IN COMMUNITIES2    ,8560,TPB EAST                      ,05/04/2011,3009812,ERS INVOICE49351         ,812.35,YEMENI COMMUNITY ASSOCIATION            ,297388,Unclassified Non Trade,CHARITIES & VOLUNTARY ORGANISA
INVESTMENT IN COMMUNITIES2    ,8560,TPB EAST                      ,05/04/2011,3009813,ERS INVOICE49352         ,10000.00,MATHER COMMUNITY PARK FRIENDS GROUP     ,530777,Unclassified Non Trade,CHARITIES & VOLUNTARY ORGANISA
CLAIMS                        ,8740,HIGHWAYS                      ,05/04/2011,3009818,ERS INVOICE49357         ,1100.00,REDACTED PERSONAL DATA                   ,549576,Unclassified Non Trade,OUT OF SCOPE FOR SIC MONITORIN
EMPLOYEE DEVELOPMENT          ,5750,EXTERNAL TRAINERS COSTS       ,05/04/2011,3009827,ERS INVOICE49366         ,2000.00,MRS KAREN MCVICAR                       ,549948,Human Resources,TRAINING SERVICES             
COMMUNITY ENGAGEMENT          ,5610,AGENCY STAFF                  ,05/04/2011,3009828,ERS INVOICE49367         ,2990.00,AIM2CHANGE LTD                          ,455642,Consultancy,BUSINESS & MANAGEMENT CONSULTA
TRAINING - BROCKWOOD          ,8460,CONSULTANTS FEES              ,05/04/2011,3009846,1007,890.00,DO THE RIGHT THING                      ,508899,Unclassified Non Trade,CHARITIES & VOLUNTARY ORGANISA
CREATIVE SERVICES             ,9120,OTHER AGENCIES                ,05/04/2011,3009849,425,6807.50,NEW LEAF SIGN & DESIGN LTD              ,549524,Building Construction Materials,Sign Makers Equipment & Materials   
CREATIVE SERVICES             ,9120,OTHER AGENCIES                ,05/04/2011,3009989,448,571.40,NEW LEAF SIGN & DESIGN LTD              ,549524,Building Construction Materials,Sign Makers Equipment & Materials   
CREATIVE SERVICES             ,9120,OTHER AGENCIES                ,05/04/2011,3009990,469,750.00,NEW LEAF SIGN & DESIGN LTD              ,549524,Building Construction Materials,Sign Makers Equipment & Materials   
SESSA                         ,5750,TRAINING EXPENDITURE          ,05/04/2011,3010074,ERS INVOICE49373         ,512.50,MR IAN FRANCE                           ,510064,Human Resources,TRAINING SERVICES             
ELECTORAL REGISTRATION        ,5790,EMPLOYEE EXPENSES             ,05/04/2011,3010076,ERS INVOICE49376         ,609.20,HMRC                                    ,300496,Unclassified Non Trade,CENTRAL GOVERNMENT            
ELECTORAL REGISTRATION        ,5790,EMPLOYEE EXPENSES             ,05/04/2011,3010077,ERS INVOICE49377         ,1391.77,HMRC                                    ,300496,Unclassified Non Trade,CENTRAL GOVERNMENT            
INVESTMENT IN COMMUNITIES2    ,8560,TPB NORTH                     ,05/04/2011,3010078,ERS INVOICE49378         ,5500.00,SOUTHEY WOLVES FOOTBALL CLUB            ,549879,Leisure Services,SPORTS CLUBS & ASSOCIATIONS   
ELECTORAL REGISTRATION        ,5790,EMPLOYEE EXPENSES             ,05/04/2011,3010079,ERS INVOICE49379         ,1204.18,HMRC                                    ,300496,Unclassified Non Trade,CENTRAL GOVERNMENT            
DELEGATED BUDGETS             ,9120,OTHER AGENCIES                ,05/04/2011,3010080,ERS INVOICE49380         ,23711.52,AON LIMITED                             ,319158,Financial Services,INSURANCE - OTHER             
CA DISCRETIONARY BUDGET       ,9120,OTHER AGENCIES                ,05/04/2011,3010081,ERS INVOICE49381         ,1889.00,SHARROW COMMUNITY FORUM                 ,318379,Unclassified Non Trade,SCHOOLS - LOCAL AUTHORITY     
CA DISCRETIONARY BUDGET       ,9120,OTHER AGENCIES                ,05/04/2011,3010083,ERS INVOICE49383         ,1790.00,CARWOOD TARA                            ,461519,Unclassified Non Trade,COMMUNITY PROJECTS            
CA SMALL GRANT                ,9120,OTHER AGENCIES                ,05/04/2011,3010084,ERS INVOICE49384         ,723.00,THE MIRACLE TRUST                       ,481047,Unclassified Non Trade,CHARITIES & VOLUNTARY ORGANISA
CA DISCRETIONARY BUDGET       ,9120,OTHER AGENCIES                ,05/04/2011,3010086,ERS INVOICE49386         ,1500.00,LOCAL                                   ,299197,Unclassified Non Trade,COMMUNITY CENTRES             
STREET FORCE BALANCE SHEET    ,776,4332101 INVOICES PAID         ,06/04/2011,3010117,3091,684.50,JOHN-HENRY HAULAGE SHEFFIELD            ,475313,Transport,ROAD HAULAGE SERVICES         
WEST SERVICE AREA CSS         ,6280,HIRE OF PREMISES              ,06/04/2011,2935833,CONF022409               ,1408.68,THE MEGA CENTRE                         ,326348,Human Resources,CONFERENCE ROOMS & CENTRES    
LD SHORT BREAKS PILOT         ,5750,TRAINING EXPENDITURE          ,06/04/2011,2979868,2100062766,5345.49,SHEFFIELD HEALTH & SOCIAL CARE NHS      ,353994,Unclassified Non Trade,HOSPITALS                     
LD SHORT BREAKS PILOT         ,5310,WAGES BASIC PAY               ,06/04/2011,2986955,2100062838,14838.90,SHEFFIELD HEALTH & SOCIAL CARE NHS      ,353994,Unclassified Non Trade,HOSPITALS                     
CREATIVE SERVICES             ,8380,PHOTOCOPYING                  ,06/04/2011,2988766,4473480,6483.48,OCE (UK) LTD.                           ,207216,ICT,OFFICE EQUIPMENT MNFRS & DISTR
ARTS EDUCATION                ,8440,FEE EXPENSES                  ,06/04/2011,2998032,SIN000071                ,42000.00,SHEFFIELD THEATRES CRUCIBLE TRUST       ,530493,Leisure Services,THEATRES                      
ADULT EDUCATION ADMIN         ,8440,FEE EXPENSES                  ,06/04/2011,2998838,00145808A                ,510.00,TRINITY                                 ,423546,Education,EDUCATIONAL SERVICES          
ADULT EDUCATION ADMIN         ,8440,FEE EXPENSES                  ,06/04/2011,2998839,00145806A                ,510.00,TRINITY                                 ,423546,Education,EDUCATIONAL SERVICES          
PALATINE CHAMBERS             ,6210,RENTS                         ,06/04/2011,3003151,408218,10800.00,DTZ DEBENHAM TIE LEUNG                  ,392019,Unclassified Trade,COMMERCIAL PROPERTY AGENTS    
PALATINE CHAMBERS             ,6270,SERVICE / PFI UNITARY CHARGE  ,06/04/2011,3003151,408218,8856.77,DTZ DEBENHAM TIE LEUNG                  ,392019,Unclassified Trade,COMMERCIAL PROPERTY AGENTS    
LAND                          ,6210,RENTS                         ,06/04/2011,3003154,2494,3975.00,JOHN LEWIS PARTNERSHIP PLC              ,206066,Unclassified Trade,DEPARTMENT STORES             
BPH FLOOR 1/2 - WCFM          ,6270,SERVICE / PFI UNITARY CHARGE  ,06/04/2011,3003161,408239,1169.08,DTZ DEBENHAM TIE LEUNG                  ,392019,Unclassified Trade,COMMERCIAL PROPERTY AGENTS    
BPH FLOOR 1/2 - WCFM          ,6210,RENTS                         ,06/04/2011,3003161,408239,2231.25,DTZ DEBENHAM TIE LEUNG                  ,392019,Unclassified Trade,COMMERCIAL PROPERTY AGENTS    
BPH FLOOR 3 SOCIAL SERVICES   ,6210,RENTS                         ,06/04/2011,3003162,408235,3425.00,DTZ DEBENHAM TIE LEUNG                  ,392019,Unclassified Trade,COMMERCIAL PROPERTY AGENTS    
BPH FLOOR 3 SOCIAL SERVICES   ,6270,SERVICE / PFI UNITARY CHARGE  ,06/04/2011,3003162,408235,1615.18,DTZ DEBENHAM TIE LEUNG                  ,392019,Unclassified Trade,COMMERCIAL PROPERTY AGENTS    
M.P.'S ACCOMMODATION          ,6270,SERVICE / PFI UNITARY CHARGE  ,06/04/2011,3003163,408229,2163.92,DTZ DEBENHAM TIE LEUNG                  ,392019,Unclassified Trade,COMMERCIAL PROPERTY AGENTS    
M.P.'S ACCOMMODATION          ,6210,RENTS                         ,06/04/2011,3003163,408229,4305.00,DTZ DEBENHAM TIE LEUNG                  ,392019,Unclassified Trade,COMMERCIAL PROPERTY AGENTS    
BPH FLOOR 1/2 - WCFM          ,6210,RENTS                         ,06/04/2011,3003164,408228,4120.00,DTZ DEBENHAM TIE LEUNG                  ,392019,Unclassified Trade,COMMERCIAL PROPERTY AGENTS    
BPH FLOOR 1/2 - WCFM          ,6270,SERVICE / PFI UNITARY CHARGE  ,06/04/2011,3003164,408228,2082.97,DTZ DEBENHAM TIE LEUNG                  ,392019,Unclassified Trade,COMMERCIAL PROPERTY AGENTS    
BPH FLOOR 1/2 BLDG STANDARDS  ,6210,RENTS                         ,06/04/2011,3003166,408227,8500.00,DTZ DEBENHAM TIE LEUNG                  ,392019,Unclassified Trade,COMMERCIAL PROPERTY AGENTS    
BPH FLOOR 1/2 BLDG STANDARDS  ,6270,SERVICE / PFI UNITARY CHARGE  ,06/04/2011,3003166,408227,4243.45,DTZ DEBENHAM TIE LEUNG                  ,392019,Unclassified Trade,COMMERCIAL PROPERTY AGENTS    
CREATIVE SERVICES             ,9120,OTHER AGENCIES                ,06/04/2011,3005784,17435,760.00,P & N CORPORATE MEDIA LTD               ,308965,Facilities Management,DESIGNERS - GRAPHIC           
I C L T - NORTH               ,8050,FURNITURE PURCHASES           ,06/04/2011,3006071,36662,556.00,SIS WORKSPACE LTD                       ,466606,Construction,OFFICE REFURBISHMENT SERVICES 
ARBOURTNE/MANOR/DARNALL       ,8010,EQUIPMENT PURCHASE AND REPAIR ,06/04/2011,3006073,36663,1492.00,SIS WORKSPACE LTD                       ,466606,Construction,OFFICE REFURBISHMENT SERVICES 
CHANGING PLACES TOILETS       ,1183,PURCHASE OF EQUIPMENT         ,06/04/2011,3007187,445063,2617.50,PRISM MEDICAL UK WESTHOLME DIVISION     ,209483,Medical ,DISABILITY EQUIPMENT - MNFRS &
NIGHT CARE VISITING           ,8010,EQUIPMENT PURCHASE AND REPAIR ,06/04/2011,3007192,11725,1476.60,BLUE DIAMOND HYGIENE SUPPLIES           ,203403,Cleaning and Janitorial,TOWEL SUPPLY & WASHROOM SERVIC
RUSHEY MEADOWS                ,5610,AGENCY STAFF                  ,06/04/2011,3007407,SAG00003                 ,1573.54,SAGITTA RECRUITMENT LTD                 ,546968,Education,NEWSPAPER & MAGAZINE PUBLISHER
SHEFFIELD FIRST PARTNERSHIP   ,8410,GENERAL OFFICE EXPENSES       ,06/04/2011,3007820,2100050455,14000.00,SHEFFIELD PRIMARY CARE TRUST            ,504799,Unclassified Non Trade,HEALTH AUTHORITIES            
SIV SENSORY ROOM              ,1167,RENOVATIONS & REFURBISHMENTS  ,06/04/2011,3007858,3016845,75000.00,SHEFFIELD INTERNATIONAL VENUES LTD.     ,208389,Leisure Services,SPORTS GROUNDS & STADIUMS     
MCA SUPPORT TEAM              ,8440,FEE EXPENSES                  ,06/04/2011,3007907,12819,8782.22,SPEAKING UP                             ,416217,Unclassified Non Trade,CHARITIES & VOLUNTARY ORGANISA
MCA SUPPORT TEAM              ,8440,FEE EXPENSES                  ,06/04/2011,3007909,12818,8330.25,SPEAKING UP                             ,416217,Unclassified Non Trade,CHARITIES & VOLUNTARY ORGANISA
PARK HEELEY COMMUNITY FOREST  ,8060,MATERIALS AND SUPPLIES GENERAL,06/04/2011,3008119,5030183,550.10,BTCV                                    ,408123,Unclassified Non Trade,CHARITIES & VOLUNTARY ORGANISA
PRIVATE SECTOR HOUSING        ,9650,OTHER SERVICE RECHARGES       ,06/04/2011,3008889,SIN012235                ,981.12,PETER HOUSLEY REMOVALS                  ,207489,Transport,REMOVALS & STORAGE - HOUSEHOLD
SHELTERED HOUSING             ,5610,AGENCY STAFF                  ,06/04/2011,3008896,01/732682                ,1006.88,TRAVAIL EMPLOYMENT GROUP                ,299220,Human Resources,EMPLOYMENT & RECRUITMENT AGENC
COUNT ME IN                   ,8440,FEE EXPENSES                  ,06/04/2011,3008902,48,561.00,JUNGLE MANIA PLAY CENTRES LTD           ,477362,Social Community Care,CHILDREN'S ACTIVITY CENTRES   
BUS ESCORTS                   ,5610,AGENCY STAFF                  ,06/04/2011,3008908,51626,532.32,LYNX EMPLOYMENT SERVICES LTD            ,349384,Human Resources,EMPLOYMENT & RECRUITMENT AGENC
DECRIMINALISED PARKING        ,8460,CONSULTANTS FEES              ,06/04/2011,3008989,LO03195                  ,2950.00,COLIN BUCHANAN & PARTNERS LTD           ,320338,Consultancy,TRANSPORT CONSULTANTS         
DECRIMINALISED PARKING        ,8460,CONSULTANTS FEES              ,06/04/2011,3008992,LO03194                  ,1340.00,COLIN BUCHANAN & PARTNERS LTD           ,320338,Consultancy,TRANSPORT CONSULTANTS         
RAVENSCROFT                   ,7040,OTHER VEHICLE RUNNING COSTS   ,06/04/2011,3009015,SIN012242                ,1471.00,PETER HOUSLEY REMOVALS                  ,207489,Transport,REMOVALS & STORAGE - HOUSEHOLD
HERITAGE WOODLANDS            ,8260,WOODLAND DEVELOPMENT EXPENSES ,06/04/2011,3009054,1497,1080.00,ANDERSON TREE CARE LTD                  ,316084,Environmental Services,TREE WORK & FORESTRY SERVICES 
CREATIVE SERVICES             ,8020,EQUIPMENT LEASE/ RENTAL/ HIRE ,06/04/2011,3009211,92800000000000,12649.00,OCE FINANCE                             ,408707,Financial Services,LEASING SERVICES              
COMMUNICATIONS SP29           ,8350,MISCELLANEOUS EXPENSES        ,06/04/2011,3009217,PMRS57                   ,2470.00,PERISCOPE (MARKETING & RESEARCH) LTD    ,502254,Facilities Management,MARKET RESEARCH               
14 - 19 PROVISION             ,8440,FEE EXPENSES                  ,06/04/2011,3009420,458,15000.00,U-XPLORE LIMITED                        ,527846,Education,EDUCATIONAL SERVICES          
BLOCK CLEANING RESPONSE TEAM  ,5610,AGENCY STAFF                  ,06/04/2011,3009430,51645,873.60,LYNX EMPLOYMENT SERVICES LTD            ,349384,Human Resources,EMPLOYMENT & RECRUITMENT AGENC
GALVANISE                     ,8440,FEE EXPENSES                  ,06/04/2011,3009451,SIN001751                ,1029.20,MUSEUMS SHEFFIELD                       ,519265,Leisure Services,MUSEUMS                       
SGMT (MUSEUMS SHEFFIELD)      ,8180,GRANTS                        ,06/04/2011,3009475,SIN001679                ,510945.76,MUSEUMS SHEFFIELD                       ,380579,Leisure Services,MUSEUMS                       
ACCOMMODATION & DEVEL TEAM    ,5610,AGENCY STAFF                  ,06/04/2011,3009480,2100063279,13658.00,SHEFFIELD CARE TRUST (SP)               ,366826,Unclassified Non Trade,CHARITIES & VOLUNTARY ORGANISA
LD SHORT BREAKS PILOT         ,5750,TRAINING EXPENDITURE          ,06/04/2011,3009483,2100063280,1180.00,SHEFFIELD HEALTH & SOCIAL CARE NHS      ,353994,Unclassified Non Trade,HOSPITALS                     
LD SHORT BREAKS PILOT         ,5310,WAGES BASIC PAY               ,06/04/2011,3009484,2100063278,15161.10,SHEFFIELD HEALTH & SOCIAL CARE NHS      ,353994,Unclassified Non Trade,HOSPITALS                     
COMPLEX NEEDS - FRONT LINE    ,8010,EQUIPMENT PURCHASE AND REPAIR ,06/04/2011,3009488,11773,4304.90,BLUE DIAMOND HYGIENE SUPPLIES           ,203403,Cleaning and Janitorial,TOWEL SUPPLY & WASHROOM SERVIC
PARK HEELEY COMMUNITY FOREST  ,8060,MATERIALS AND SUPPLIES GENERAL,06/04/2011,3009491,268909,2645.00,HILLIER NURSERIES LTD                   ,205525,Horticultural,GARDEN CENTRES & NURSERIES    
VSP DELIVER                   ,9120,OTHER AGENCIES                ,06/04/2011,3009512,10/11SH07                ,8473.40,DIMENSIONS TRAINING SOLUTIONS           ,433070,Education,HAIRDRESSING SCHOOLS          
TRANSPORT FLEET MANAGEMENT    ,7060,EXTERNAL VEHICLE HIRE         ,06/04/2011,3009521,63646,1684.74,DAWSON RENTALS SWEEPERS                 ,446765,Vehicles Not Buses,PLANT & MACHINERY HIRE & LEASI
TRANSPORT FLEET MANAGEMENT    ,7060,EXTERNAL VEHICLE HIRE         ,06/04/2011,3009524,63645,1684.74,DAWSON RENTALS SWEEPERS                 ,446765,Vehicles Not Buses,PLANT & MACHINERY HIRE & LEASI
TRANSPORT FLEET MANAGEMENT    ,7060,EXTERNAL VEHICLE HIRE         ,06/04/2011,3009527,63644,1684.74,DAWSON RENTALS SWEEPERS                 ,446765,Vehicles Not Buses,PLANT & MACHINERY HIRE & LEASI
TRANSPORT FLEET MANAGEMENT    ,7060,EXTERNAL VEHICLE HIRE         ,06/04/2011,3009529,63641,1666.71,DAWSON RENTALS SWEEPERS                 ,446765,Vehicles Not Buses,PLANT & MACHINERY HIRE & LEASI
TRANSPORT FLEET MANAGEMENT    ,7060,EXTERNAL VEHICLE HIRE         ,06/04/2011,3009531,63637,1513.15,DAWSON RENTALS SWEEPERS                 ,446765,Vehicles Not Buses,PLANT & MACHINERY HIRE & LEASI
TRANSPORT FLEET MANAGEMENT    ,7060,EXTERNAL VEHICLE HIRE         ,06/04/2011,3009534,63638,1513.15,DAWSON RENTALS SWEEPERS                 ,446765,Vehicles Not Buses,PLANT & MACHINERY HIRE & LEASI
TRANSPORT FLEET MANAGEMENT    ,7060,EXTERNAL VEHICLE HIRE         ,06/04/2011,3009535,63639,1513.15,DAWSON RENTALS SWEEPERS                 ,446765,Vehicles Not Buses,PLANT & MACHINERY HIRE & LEASI
TRANSPORT FLEET MANAGEMENT    ,7060,EXTERNAL VEHICLE HIRE         ,06/04/2011,3009537,63640,1666.71,DAWSON RENTALS SWEEPERS                 ,446765,Vehicles Not Buses,PLANT & MACHINERY HIRE & LEASI
TRANSPORT FLEET MANAGEMENT    ,7060,EXTERNAL VEHICLE HIRE         ,06/04/2011,3009540,63643,1684.74,DAWSON RENTALS SWEEPERS                 ,446765,Vehicles Not Buses,PLANT & MACHINERY HIRE & LEASI
ADULT EDUCATION ADMIN         ,8440,FEE EXPENSES                  ,06/04/2011,3009542,111674074,1000.00,OCR                                     ,207219,Education,EXAMINATION BOARDS            
EMERGENCY PLANNING            ,8620,COMPUTER SOFTWARE PURCHASES   ,06/04/2011,3009597,112977641,17500.00,ROTHERHAM MBC                           ,491066,Unclassified Non Trade,LOCAL GOVERNMENT              
GOVERNANCE TEAM               ,8380,PHOTOCOPYING                  ,06/04/2011,3009623,854514,665.99,CHIEF EXECUTIVE DIRECTORATE (HOMES)     ,402954,Unclassified Non Trade,LOCAL GOVERNMENT              
IT CLIENT                     ,8620,COMPUTER SOFTWARE PURCHASES   ,06/04/2011,3009664,4003,7000.00,NOVARE CONSULTING LTD                   ,454188,Consultancy,BUSINESS & MANAGEMENT CONSULTA
YOUTH OFFENDING SERVICE       ,9120,OTHER AGENCIES                ,06/04/2011,3009665,519,9977.25,SHEFFIELD ALCOHOL ADVISORY SERVICE (SP) ,351470,Medical ,ALCOHOL MISUSE - ADVICE & COUN
TARGETED YOUTH SUPPORT        ,9120,OTHER AGENCIES                ,06/04/2011,3009666,38722,12865.88,SOUTH YORKSHIRE POLICE                  ,346012,Unclassified Non Trade,POLICE                        
FAMILY LEARNING (LITERACY & NU,9120,OTHER AGENCIES                ,06/04/2011,3009683,2001,14448.00,SAVTE                                   ,350936,Unclassified Non Trade,CHARITIES & VOLUNTARY ORGANISA
SOCIAL MARKETING              ,8240,CONFERENCE EXPENSES           ,06/04/2011,3009696,292-0541B                ,731.39,THE CONFERENCE PEOPLE                   ,547948,Human Resources,CONFERENCE SERVICES           
SOCIAL MARKETING              ,8240,CONFERENCE EXPENSES           ,06/04/2011,3009699,292-0540B                ,731.39,THE CONFERENCE PEOPLE                   ,547948,Human Resources,CONFERENCE SERVICES           
CREATIVE SERVICES             ,8020,EQUIPMENT LEASE/ RENTAL/ HIRE ,06/04/2011,3009710,001/11/0226404           ,857.79,ING LEASE (UK) LIMITED                  ,484570,Financial Services,LEASING SERVICES              
SHEFFIELD HOMES GENERAL       ,7020,VEHICLE FUEL COSTS            ,06/04/2011,3009734,1015985832,581.27,ARVAL PHH LTD                           ,444333,Vehicles Not Buses,CAR & TRUCK LEASING & CONTRACT
CHANGING PLACES TOILETS       ,1167,RENOVATIONS & REFURBISHMENTS  ,06/04/2011,3009747,3016942,4250.00,ICE SHEFFIELD                           ,442175,Leisure Services,SPORTS GROUND & STADIUM CONTRA
CHANGING PLACES TOILETS       ,1183,PURCHASE OF EQUIPMENT         ,06/04/2011,3009751,3016939,3987.75,SHEFFIELD INTERNATIONAL VENUES          ,436607,Leisure Services,SPORTS GROUNDS & STADIUMS     
CREATIVE SERVICES             ,9120,OTHER AGENCIES                ,06/04/2011,3009857,17426,640.00,P & N CORPORATE MEDIA LTD               ,308965,Facilities Management,DESIGNERS - GRAPHIC           
SHEFFIELD HOMES GENERAL       ,7020,VEHICLE FUEL COSTS            ,06/04/2011,3009939,1015985845,663.92,ARVAL PHH LTD                           ,444333,Vehicles Not Buses,CAR & TRUCK LEASING & CONTRACT
BROOMHALL NEIGHBOURHOOD MAN.  ,9120,OTHER AGENCIES                ,06/04/2011,3009988,445,1000.00,SHEFFIELD SOMALI COMMUNITY CENTRE       ,502584,Unclassified Non Trade,COMMUNITY CENTRES             
POST 16 TRANSPORT PARTNERSHIP ,8440,FEE EXPENSES                  ,06/04/2011,3009998,6095,729.55,SHEFFIELD FUTURES                       ,322702,Medical ,COUNSELLING & ADVICE SERVICES 
SHEFFIELD HOMES GENERAL       ,7020,VEHICLE FUEL COSTS            ,06/04/2011,3010012,1015985835,528.68,ARVAL PHH LTD                           ,444333,Vehicles Not Buses,CAR & TRUCK LEASING & CONTRACT
LIBRARY THEATRE               ,8130,CATERING SUPPLIES             ,06/04/2011,3010027,RI61798262               ,628.60,CLASSIC DRINKS LIMITED                  ,313308,Catering,WINES SPIRITS & BEER - WHOLESA
SHEFFIELD HOMES GENERAL       ,7020,VEHICLE FUEL COSTS            ,06/04/2011,3010051,1015985834,711.75,ARVAL PHH LTD                           ,444333,Vehicles Not Buses,CAR & TRUCK LEASING & CONTRACT
STREET FORCE BALANCE SHEET    ,776,4332101 INVOICES PAID         ,06/04/2011,3010114,1098306103,2489.67,KONICA MINOLTA BUSINESS SOLUTIONS EAST  ,206267,ICT,OFFICE EQUIPMENT MNFRS & DISTR
STREET FORCE BALANCE SHEET    ,776,4332101 INVOICES PAID         ,06/04/2011,3010115,2439,1792.68,MOTUS TRAFFIC LIMITED                   ,343110,Traffic Management,TRAFFIC MANAGEMENT SYSTEMS    
STREET FORCE BALANCE SHEET    ,776,4332101 INVOICES PAID         ,06/04/2011,3010122,41026,900.00,GO PLANT  LTD                           ,205177,Vehicles Not Buses,PLANT & MACHINERY HIRE & LEASI
STREET FORCE BALANCE SHEET    ,776,4332101 INVOICES PAID         ,06/04/2011,3010128,A16                      ,742.50,CHRIS WHITE                             ,493334,Transport,ROAD HAULAGE SERVICES         
STREET FORCE BALANCE SHEET    ,776,4332101 INVOICES PAID         ,06/04/2011,3010129,C192                     ,780.00,CHRIS WHITE                             ,493334,Transport,ROAD HAULAGE SERVICES         
STREET FORCE BALANCE SHEET    ,776,4332101 INVOICES PAID         ,06/04/2011,3010130,SCC62                    ,1523.50,H.R.SKIP HIRE                           ,541284,Environmental Services,SKIP HIRE                     
STREET FORCE BALANCE SHEET    ,776,4332101 INVOICES PAID         ,06/04/2011,3010131,SCC63                    ,774.00,H.R.SKIP HIRE                           ,541284,Environmental Services,SKIP HIRE                     
STREET FORCE BALANCE SHEET    ,776,4332101 INVOICES PAID         ,06/04/2011,3010133,14310,2897.50,HASLAM TRANSPORT LTD                    ,493139,Building Construction Materials,CONCRETE PRODUCTS             
STREET FORCE BALANCE SHEET    ,776,4332101 INVOICES PAID         ,06/04/2011,3010134,14336,4331.27,HASLAM TRANSPORT LTD                    ,493139,Building Construction Materials,CONCRETE PRODUCTS             
STREET FORCE BALANCE SHEET    ,776,4332101 INVOICES PAID         ,06/04/2011,3010135,14447,2682.50,HASLAM TRANSPORT LTD                    ,493139,Building Construction Materials,CONCRETE PRODUCTS             
STREET FORCE BALANCE SHEET    ,776,4332101 INVOICES PAID         ,06/04/2011,3010136,18525,3976.53,ACIDISATION CO LIMITED                  ,414647,Environmental Services,WASTE DISPOSAL SERVICES       
STREET FORCE BALANCE SHEET    ,776,4332101 INVOICES PAID         ,06/04/2011,3010137,18538,4197.02,ACIDISATION CO LIMITED                  ,414647,Environmental Services,WASTE DISPOSAL SERVICES       
STREET FORCE BALANCE SHEET    ,776,4332101 INVOICES PAID         ,06/04/2011,3010138,18541,3941.60,ACIDISATION CO LIMITED                  ,414647,Environmental Services,WASTE DISPOSAL SERVICES       
LICENSING                     ,8060,MATERIALS AND SUPPLIES GENERAL,06/04/2011,3010146,12673,1604.50,VIP SYSTEM LTD.                         ,455617,Vehicles Not Buses,CAR ACCESSORIES & PARTS       
PURCHASING LEARNING DISABILITI,9200,CONTINUING RESIDENTIAL CARE   ,06/04/2011,3010151,J357097 010511           ,22789.84,BEECH TREE HALL                         ,327636,Social Community Care,RESIDENTIAL CARE HOMES        
PURCHASING ELDERLY            ,9200,CONTINUING RESIDENTIAL CARE   ,06/04/2011,3010152,J357144 010511           ,4911.00,KINGFIELD HOLT                          ,361766,Social Community Care,RESIDENTIAL CARE HOMES        
PHYSICAL DISABILITIES PURCHASI,9200,CONTINUING RESIDENTIAL CARE   ,06/04/2011,3010153,J357138 010511           ,1319.60,WOODBANK HOUSE                          ,361780,Social Community Care,REST & RETIREMENT HOMES       
PURCHASING ELDERLY            ,9200,CONTINUING RESIDENTIAL CARE   ,06/04/2011,3010153,J357138 010511           ,20167.00,WOODBANK HOUSE                          ,361780,Social Community Care,REST & RETIREMENT HOMES       
PURCHASING ELDERLY            ,9210,CONTINUING NURSING CARE       ,06/04/2011,3010154,J357177 010511           ,7520.00,LITTLEDALE NURSING HOME                 ,361783,Social Community Care,NURSING HOMES                 
PURCHASING ELDERLY            ,9200,CONTINUING RESIDENTIAL CARE   ,06/04/2011,3010154,J357177 010511           ,2843.00,LITTLEDALE NURSING HOME                 ,361783,Social Community Care,NURSING HOMES                 
PURCHASING ELDERLY            ,9200,CONTINUING RESIDENTIAL CARE   ,06/04/2011,3010155,J357226 010511           ,3835.32,WESTBOURNE HOUSE                        ,361791,Social Community Care,NURSING HOMES                 
PURCHASING                    ,9200,CONTINUING RESIDENTIAL CARE   ,06/04/2011,3010155,J357226 010511           ,7397.94,WESTBOURNE HOUSE                        ,361791,Social Community Care,NURSING HOMES                 
PURCHASING LEARNING DISABILITI,9200,CONTINUING RESIDENTIAL CARE   ,06/04/2011,3010155,J357226 010511           ,2465.98,WESTBOURNE HOUSE                        ,361791,Social Community Care,NURSING HOMES                 
PURCHASING ELDERLY            ,9200,CONTINUING RESIDENTIAL CARE   ,06/04/2011,3010156,J357074 010511           ,37457.00,BURNT TREE CROFT                        ,361793,Social Community Care,RESIDENTIAL CARE HOMES        
PURCHASING ELDERLY            ,9200,CONTINUING RESIDENTIAL CARE   ,06/04/2011,3010157,J357078 010511           ,26410.00,HAWKHILLS                               ,361795,Social Community Care,RESIDENTIAL CARE HOMES        
PURCHASING ELDERLY            ,9200,CONTINUING RESIDENTIAL CARE   ,06/04/2011,3010158,J356543 030411           ,2435.71,CASTELAYN                               ,361796,Social Community Care,RESIDENTIAL CARE HOMES        
PURCHASING ELDERLY            ,9200,CONTINUING RESIDENTIAL CARE   ,06/04/2011,3010160,J357081 010511           ,17590.00,PADDOCK HILL                            ,361797,Social Community Care,RESIDENTIAL CARE HOMES        
PHYSICAL DISABILITIES PURCHASI,9200,CONTINUING RESIDENTIAL CARE   ,06/04/2011,3010160,J357081 010511           ,2825.20,PADDOCK HILL                            ,361797,Social Community Care,RESIDENTIAL CARE HOMES        
PURCHASING ELDERLY            ,9200,CONTINUING RESIDENTIAL CARE   ,06/04/2011,3010161,J357072 010511           ,31960.00,MIDHURST ROAD                           ,361801,Social Community Care,RESIDENTIAL CARE HOMES        
PURCHASING LEARNING DISABILITI,9200,CONTINUING RESIDENTIAL CARE   ,06/04/2011,3010162,J357179 010511           ,10235.40,HASCOT HOUSE                            ,361808,Social Community Care,RESIDENTIAL CARE HOMES        
PURCHASING ELDERLY            ,9210,CONTINUING NURSING CARE       ,06/04/2011,3010163,J357211 010511           ,14184.00,HOLMWOOD NURSING HOME                   ,331238,Social Community Care,NURSING HOMES                 
PURCHASING ELDERLY            ,9200,CONTINUING RESIDENTIAL CARE   ,06/04/2011,3010164,J357076 010511           ,26222.00,COTLEIGH                                ,361811,Social Community Care,RESIDENTIAL CARE HOMES        
PURCHASING ELDERLY            ,9200,CONTINUING RESIDENTIAL CARE   ,06/04/2011,3010165,J357099 010511           ,1439.00,WHISTON HALL RESIDENTIAL HOME           ,361816,Social Community Care,RESIDENTIAL CARE HOMES        
PURCHASING LEARNING DISABILITI,9200,CONTINUING RESIDENTIAL CARE   ,06/04/2011,3010166,J357065 010511           ,23192.56,142 WENSLEY STREET                      ,361819,Unclassified Non Trade,"HOUSING ASSOCIATIONS, SOCIETIE"
PURCHASING ELDERLY            ,9200,CONTINUING RESIDENTIAL CARE   ,06/04/2011,3010166,J357065 010511           ,12924.64,142 WENSLEY STREET                      ,361819,Unclassified Non Trade,"HOUSING ASSOCIATIONS, SOCIETIE"
PURCHASING ELDERLY            ,9200,CONTINUING RESIDENTIAL CARE   ,06/04/2011,3010167,J357156 010511           ,1560.00,LADYFIELD HOUSE N H                     ,361824,Social Community Care,NURSING HOMES                 
PURCHASING ELDERLY            ,9200,CONTINUING RESIDENTIAL CARE   ,06/04/2011,3010168,J357123 010511           ,37476.00,MRS CAROLE BENNETT                      ,361842,Social Community Care,RESIDENTIAL CARE HOMES        
PURCHASING ELDERLY            ,4260,RESIDENTIAL COSTS RECOVERED   ,06/04/2011,3010169,J347701 060311           ,1995.44,HOUSTEADS                               ,361860,Social Community Care,RESIDENTIAL CARE HOMES        
PURCHASING ELDERLY            ,9200,CONTINUING RESIDENTIAL CARE   ,06/04/2011,3010170,J357079 010511           ,27341.00,HOUSTEADS                               ,361860,Social Community Care,RESIDENTIAL CARE HOMES        
PURCHASING LEARNING DISABILITI,9200,CONTINUING RESIDENTIAL CARE   ,06/04/2011,3010172,J357236 010511           ,11793.79,LITTLE ARCHES RESIDENTIAL HOME          ,361869,Social Community Care,RESIDENTIAL CARE HOMES        
PURCHASING ELDERLY            ,9200,CONTINUING RESIDENTIAL CARE   ,06/04/2011,3010173,J357206 010511           ,2372.40,TOGETHER                                ,361880,Unclassified Non Trade,CHARITIES & VOLUNTARY ORGANISA
PURCHASING                    ,9200,CONTINUING RESIDENTIAL CARE   ,06/04/2011,3010173,J357206 010511           ,8928.00,TOGETHER                                ,361880,Unclassified Non Trade,CHARITIES & VOLUNTARY ORGANISA
PURCHASING LEARNING DISABILITI,9200,CONTINUING RESIDENTIAL CARE   ,06/04/2011,3010175,J357178 010511           ,13243.72,CRAGSIDE HOUSE RES. HOME                ,361926,Social Community Care,RESIDENTIAL CARE HOMES        
PURCHASING LEARNING DISABILITI,9200,CONTINUING RESIDENTIAL CARE   ,06/04/2011,3010176,J357057 010511           ,3728.47,MOORCROFT HOUSE                         ,361927,Social Community Care,RESIDENTIAL CARE HOMES        
PHYSICAL DISABILITIES PURCHASI,9210,CONTINUING NURSING CARE       ,06/04/2011,3010177,J357159 010511           ,7493.52,LONGLEY PARK VIEW                       ,361928,Social Community Care,NURSING HOMES                 
PURCHASING ELDERLY            ,9210,CONTINUING NURSING CARE       ,06/04/2011,3010177,J357159 010511           ,9456.00,LONGLEY PARK VIEW                       ,361928,Social Community Care,NURSING HOMES                 
PURCHASING LEARNING DISABILITI,9200,CONTINUING RESIDENTIAL CARE   ,06/04/2011,3010178,J357187 010511           ,24150.43,WHITEGATES MANAGEMENT COMMITTEE         ,361931,Unclassified Trade,ESTATE AGENTS                 
PURCHASING ELDERLY            ,9200,CONTINUING RESIDENTIAL CARE   ,06/04/2011,3010179,J357084 010511           ,5766.00,ROSE COTTAGE                            ,361940,Social Community Care,NURSING HOMES                 
PURCHASING ELDERLY            ,9210,CONTINUING NURSING CARE       ,06/04/2011,3010179,J357084 010511           ,13656.00,ROSE COTTAGE                            ,361940,Social Community Care,NURSING HOMES                 
PURCHASING ELDERLY            ,9200,CONTINUING RESIDENTIAL CARE   ,06/04/2011,3010180,J356549 030411           ,7167.57,ATHORPE LODGE                           ,361941,Social Community Care,RESIDENTIAL CARE HOMES        
PURCHASING ELDERLY            ,9200,CONTINUING RESIDENTIAL CARE   ,06/04/2011,3010181,J357100 010511           ,1488.00,MEADOW GRANGE NURSING HOME              ,361951,Social Community Care,NURSING HOMES                 
PURCHASING ELDERLY            ,9210,CONTINUING NURSING CARE       ,06/04/2011,3010182,J357109 010511           ,1523.44,LAYDEN COURT RESIDENTIAL HOME           ,361954,Social Community Care,RESIDENTIAL CARE HOMES        
PURCHASING ELDERLY            ,9200,CONTINUING RESIDENTIAL CARE   ,06/04/2011,3010182,J357109 010511           ,1497.60,LAYDEN COURT RESIDENTIAL HOME           ,361954,Social Community Care,RESIDENTIAL CARE HOMES        
PURCHASING ELDERLY            ,9210,CONTINUING NURSING CARE       ,06/04/2011,3010183,J357155 010511           ,4008.00,BROOMCROFT HOUSE                        ,361960,Social Community Care,NURSING HOMES                 
PURCHASING ELDERLY            ,9200,CONTINUING RESIDENTIAL CARE   ,06/04/2011,3010184,J357147 010511           ,13444.00,WHITE ROSE COURT RES HOME               ,361964,Social Community Care,RESIDENTIAL CARE HOMES        
PURCHASING ELDERLY            ,9210,CONTINUING NURSING CARE       ,06/04/2011,3010185,J357149 010511           ,23340.00,HAZELDENE NURSING HOME                  ,340163,Social Community Care,NURSING HOMES                 
PURCHASING ELDERLY            ,9200,CONTINUING RESIDENTIAL CARE   ,06/04/2011,3010185,J357149 010511           ,9120.00,HAZELDENE NURSING HOME                  ,340163,Social Community Care,NURSING HOMES                 
PURCHASING LEARNING DISABILITI,9200,CONTINUING RESIDENTIAL CARE   ,06/04/2011,3010185,J357149 010511           ,1599.91,HAZELDENE NURSING HOME                  ,340163,Social Community Care,NURSING HOMES                 
PURCHASING LEARNING DISABILITI,9200,CONTINUING RESIDENTIAL CARE   ,06/04/2011,3010186,J349329 030411           ,4945.40,NORTHERN LIFE CARE LTD T/A UBU          ,361991,Social Community Care,RESIDENTIAL CARE HOMES        
PURCHASING LEARNING DISABILITI,9200,CONTINUING RESIDENTIAL CARE   ,06/04/2011,3010187,J357572 010511           ,4908.32,NORTHERN LIFE CARE LTD T/A UBU          ,361991,Social Community Care,RESIDENTIAL CARE HOMES        
PURCHASING LEARNING DISABILITI,9200,CONTINUING RESIDENTIAL CARE   ,06/04/2011,3010188,J357107 010511           ,1932.11,BROOMHOUSE                              ,362002,Social Community Care,NURSING HOMES                 
PURCHASING ELDERLY            ,9200,CONTINUING RESIDENTIAL CARE   ,06/04/2011,3010189,J357181 010511           ,2991.00,MOORGATE                                ,362023,Social Community Care,NURSING HOMES                 
PURCHASING ELDERLY            ,9210,CONTINUING NURSING CARE       ,06/04/2011,3010190,J357096 010511           ,19272.00,CHATSWORTH GRANGE EMI N HOME            ,362033,Social Community Care,NURSING HOMES                 
PHYSICAL DISABILITIES PURCHASI,9200,CONTINUING RESIDENTIAL CARE   ,06/04/2011,3010191,J357183 010511           ,1495.61,THE LIME TREES                          ,362053,Social Community Care,RESIDENTIAL CARE HOMES        
PURCHASING ELDERLY            ,9200,CONTINUING RESIDENTIAL CARE   ,06/04/2011,3010191,J357183 010511           ,23035.00,THE LIME TREES                          ,362053,Social Community Care,RESIDENTIAL CARE HOMES        
PURCHASING ELDERLY            ,9210,CONTINUING NURSING CARE       ,06/04/2011,3010191,J357183 010511           ,3152.00,THE LIME TREES                          ,362053,Social Community Care,RESIDENTIAL CARE HOMES        
PURCHASING LEARNING DISABILITI,9210,CONTINUING NURSING CARE       ,06/04/2011,3010192,J357105 010511           ,3055.86,WHITWELL PARK                           ,362055,Social Community Care,NURSING HOMES                 
PURCHASING ELDERLY            ,9200,CONTINUING RESIDENTIAL CARE   ,06/04/2011,3010193,J357094 010511           ,9775.00,THE WHITE HOUSE                         ,362083,Social Community Care,RESIDENTIAL CARE HOMES        
PURCHASING ELDERLY            ,9200,CONTINUING RESIDENTIAL CARE   ,06/04/2011,3010194,J357220 010511           ,1515.60,CLIFF HOUSE RESIDENTIAL HOME            ,362088,Social Community Care,NURSING HOMES                 
PURCHASING ELDERLY            ,9210,CONTINUING NURSING CARE       ,06/04/2011,3010195,J357210 010511           ,1504.00,MILLFIELD RESIDENTIAL HOME              ,362091,Social Community Care,RESIDENTIAL CARE HOMES        
PURCHASING ELDERLY            ,9200,CONTINUING RESIDENTIAL CARE   ,06/04/2011,3010196,J357164 010511           ,17351.00,AARON HOUSE                             ,361752,Social Community Care,RESIDENTIAL CARE HOMES        
PURCHASING ELDERLY            ,9210,CONTINUING NURSING CARE       ,06/04/2011,3010197,J357215 010511           ,32451.16,HAYTHORNE PLACE                         ,362099,Social Community Care,RESIDENTIAL CARE HOMES        
PHYSICAL DISABILITIES PURCHASI,9210,CONTINUING NURSING CARE       ,06/04/2011,3010197,J357215 010511           ,15542.25,HAYTHORNE PLACE                         ,362099,Social Community Care,RESIDENTIAL CARE HOMES        
PURCHASING                    ,9210,CONTINUING NURSING CARE       ,06/04/2011,3010197,J357215 010511           ,8357.60,HAYTHORNE PLACE                         ,362099,Social Community Care,RESIDENTIAL CARE HOMES        
PURCHASING ELDERLY            ,9200,CONTINUING RESIDENTIAL CARE   ,06/04/2011,3010197,J357215 010511           ,38018.32,HAYTHORNE PLACE                         ,362099,Social Community Care,RESIDENTIAL CARE HOMES        
PURCHASING LEARNING DISABILITI,9200,CONTINUING RESIDENTIAL CARE   ,06/04/2011,3010198,J357133 010511           ,2145.64,LINKAGE COMMUNITY TRUST                 ,362116,Unclassified Non Trade,CHARITIES & VOLUNTARY ORGANISA
PURCHASING ELDERLY            ,9210,CONTINUING NURSING CARE       ,06/04/2011,3010199,J353482 030411           ,5784.86,ASCOT LODGE                             ,362118,Social Community Care,NURSING HOMES                 
PURCHASING ELDERLY            ,9210,CONTINUING NURSING CARE       ,06/04/2011,3010200,J356548 030411           ,3459.57,ALPINE HEALTHCARE                       ,362125,Social Community Care,NURSING HOMES                 
PURCHASING ELDERLY            ,9210,CONTINUING NURSING CARE       ,06/04/2011,3010201,J357086 010511           ,1487.00,CHERRY TREES RES HOME                   ,362135,Social Community Care,RESIDENTIAL CARE HOMES        
PURCHASING ELDERLY            ,9200,CONTINUING RESIDENTIAL CARE   ,06/04/2011,3010202,J357208 010511           ,35338.00,BEECHY KNOLL                            ,362144,Social Community Care,RESIDENTIAL CARE HOMES        
PURCHASING ELDERLY            ,9200,CONTINUING RESIDENTIAL CARE   ,06/04/2011,3010203,J357060 010511           ,7279.16,COUMES BROOK                            ,362149,Social Community Care,RESIDENTIAL CARE HOMES        
PURCHASING ELDERLY            ,9200,CONTINUING RESIDENTIAL CARE   ,06/04/2011,3010204,J357085 010511           ,2670.00,THE KNOWLE                              ,362158,Social Community Care,RESIDENTIAL CARE HOMES        
PURCHASING LEARNING DISABILITI,9200,CONTINUING RESIDENTIAL CARE   ,06/04/2011,3010204,J357085 010511           ,2506.96,THE KNOWLE                              ,362158,Social Community Care,RESIDENTIAL CARE HOMES        
PURCHASING                    ,9200,CONTINUING RESIDENTIAL CARE   ,06/04/2011,3010204,J357085 010511           ,10804.00,THE KNOWLE                              ,362158,Social Community Care,RESIDENTIAL CARE HOMES        
PURCHASING LEARNING DISABILITI,9200,CONTINUING RESIDENTIAL CARE   ,06/04/2011,3010205,J357089 010511           ,8480.31,CARRWOOD HOUSE HOME                     ,362165,Social Community Care,RESIDENTIAL CARE HOMES        
PURCHASING                    ,9200,CONTINUING RESIDENTIAL CARE   ,06/04/2011,3010205,J357089 010511           ,16145.87,CARRWOOD HOUSE HOME                     ,362165,Social Community Care,RESIDENTIAL CARE HOMES        
PURCHASING ELDERLY            ,9200,CONTINUING RESIDENTIAL CARE   ,06/04/2011,3010205,J357089 010511           ,1523.00,CARRWOOD HOUSE HOME                     ,362165,Social Community Care,RESIDENTIAL CARE HOMES        
PHYSICAL DISABILITIES PURCHASI,9200,CONTINUING RESIDENTIAL CARE   ,06/04/2011,3010205,J357089 010511           ,3374.50,CARRWOOD HOUSE HOME                     ,362165,Social Community Care,RESIDENTIAL CARE HOMES        
PURCHASING LEARNING DISABILITI,9200,CONTINUING RESIDENTIAL CARE   ,06/04/2011,3010206,J357068 010511           ,18426.54,COTTAM ROAD SCHEME                      ,362167,Social Community Care,RESIDENTIAL CARE HOMES        
PURCHASING ELDERLY            ,9200,CONTINUING RESIDENTIAL CARE   ,06/04/2011,3010206,J357068 010511           ,4248.44,COTTAM ROAD SCHEME                      ,362167,Social Community Care,RESIDENTIAL CARE HOMES        
PURCHASING ELDERLY            ,9210,CONTINUING NURSING CARE       ,06/04/2011,3010207,J356547 030411           ,18217.21,BROOMGROVE TRUST NURSING                ,361755,Social Community Care,NURSING HOMES                 
PURCHASING LEARNING DISABILITI,9200,CONTINUING RESIDENTIAL CARE   ,06/04/2011,3010208,J357103 010511           ,7159.36,CEDAR LODGE RH                          ,362171,Social Community Care,RESIDENTIAL CARE HOMES        
PURCHASING ELDERLY            ,9210,CONTINUING NURSING CARE       ,06/04/2011,3010209,J357233 010511           ,12416.00,HEELEY BANK CARE HOME                   ,362923,Social Community Care,RESIDENTIAL CARE HOMES        
PURCHASING ELDERLY            ,9200,CONTINUING RESIDENTIAL CARE   ,06/04/2011,3010209,J357233 010511           ,24581.00,HEELEY BANK CARE HOME                   ,362923,Social Community Care,RESIDENTIAL CARE HOMES        
PURCHASING ELDERLY            ,9210,CONTINUING NURSING CARE       ,06/04/2011,3010210,J357239 010511           ,1564.00,CLUMBER COURT RESIDENTIAL HOME          ,368325,Social Community Care,RESIDENTIAL CARE HOMES        
PURCHASING ELDERLY            ,9200,CONTINUING RESIDENTIAL CARE   ,06/04/2011,3010210,J357239 010511           ,1504.00,CLUMBER COURT RESIDENTIAL HOME          ,368325,Social Community Care,RESIDENTIAL CARE HOMES        
PURCHASING ELDERLY            ,4260,RESIDENTIAL COSTS RECOVERED   ,06/04/2011,3010211,J348909 060311           ,743.73,CAIRN HOME                              ,368330,Social Community Care,RESIDENTIAL CARE HOMES        
PURCHASING ELDERLY            ,9200,CONTINUING RESIDENTIAL CARE   ,06/04/2011,3010212,J357229 010511           ,14372.00,CAIRN HOME                              ,368330,Social Community Care,RESIDENTIAL CARE HOMES        
PURCHASING ELDERLY            ,9210,CONTINUING NURSING CARE       ,06/04/2011,3010214,J356553 030411           ,935.00,CHAPEL LODGE NURSING HOME               ,368334,Social Community Care,NURSING HOMES                 
PURCHASING                    ,9200,CONTINUING RESIDENTIAL CARE   ,06/04/2011,3010215,J357304 010511           ,29633.40,LISTER AVENUE PROJECT                   ,368348,Unclassified Non Trade,"HOUSING ASSOCIATIONS, SOCIETIE"
PURCHASING ELDERLY            ,9200,CONTINUING RESIDENTIAL CARE   ,06/04/2011,3010215,J357304 010511           ,1107.00,LISTER AVENUE PROJECT                   ,368348,Unclassified Non Trade,"HOUSING ASSOCIATIONS, SOCIETIE"
PURCHASING ELDERLY            ,9200,CONTINUING RESIDENTIAL CARE   ,06/04/2011,3010216,J357285 010511           ,1335.00,MEADOW SANDS                            ,417909,Social Community Care,RESIDENTIAL CARE HOMES        
PURCHASING ELDERLY            ,9210,CONTINUING NURSING CARE       ,06/04/2011,3010217,J357287 010511           ,1544.00,WOODLAND CARE                           ,420606,Social Community Care,NURSING HOMES                 
PURCHASING LEARNING DISABILITI,9200,CONTINUING RESIDENTIAL CARE   ,06/04/2011,3010218,J357292 010511           ,6474.95,PRIORY LODGE                            ,430728,Social Community Care,RESIDENTIAL CARE HOMES        
PURCHASING ELDERLY            ,9210,CONTINUING NURSING CARE       ,06/04/2011,3010219,J357152 010511           ,2745.20,BROOMGROVE TRUST NURSING                ,361755,Social Community Care,NURSING HOMES                 
PURCHASING                    ,9210,CONTINUING NURSING CARE       ,06/04/2011,3010220,J357294 010511           ,7690.47,IVY MEAD                                ,433430,Social Community Care,NURSING HOMES                 
PURCHASING ELDERLY            ,9200,CONTINUING RESIDENTIAL CARE   ,06/04/2011,3010221,J357295 010511           ,1290.92,SAXILBY HOUSE RESIDENTIAL HOME          ,433431,Social Community Care,RESIDENTIAL CARE HOMES        
PURCHASING ELDERLY            ,9200,CONTINUING RESIDENTIAL CARE   ,06/04/2011,3010222,J357311 010511           ,1580.00,YOLANTA HOUSE RESIDENTIAL HOME          ,461087,Social Community Care,RESIDENTIAL CARE HOMES        
PURCHASING LEARNING DISABILITI,9210,CONTINUING NURSING CARE       ,06/04/2011,3010223,J357320 010511           ,6046.19,THE GLADES                              ,475753,Social Community Care,NURSING HOMES                 
PURCHASING LEARNING DISABILITI,9200,CONTINUING RESIDENTIAL CARE   ,06/04/2011,3010223,J357320 010511           ,4979.54,THE GLADES                              ,475753,Social Community Care,NURSING HOMES                 
PURCHASING LEARNING DISABILITI,9210,CONTINUING NURSING CARE       ,06/04/2011,3010224,J357319 010511           ,15306.31,THE LODGE                               ,475754,Social Community Care,RESIDENTIAL CARE HOMES        
PURCHASING ELDERLY            ,9200,CONTINUING RESIDENTIAL CARE   ,06/04/2011,3010225,J357325 010511           ,1524.00,LYMEHURST REST HOME                     ,487361,Social Community Care,REST & RETIREMENT HOMES       
PURCHASING ELDERLY            ,9200,CONTINUING RESIDENTIAL CARE   ,06/04/2011,3010226,J357326 010511           ,1648.00,COURT HOUSE RESIDENTIAL CARE HOME       ,487521,Social Community Care,RESIDENTIAL CARE HOMES        
PURCHASING LEARNING DISABILITI,9200,CONTINUING RESIDENTIAL CARE   ,06/04/2011,3010227,J357338 010511           ,35667.60,CHOICE LIFESTYLES LTD                   ,501697,Social Community Care,DISABILITY & SPECIAL NEEDS - S
PURCHASING ELDERLY            ,9200,CONTINUING RESIDENTIAL CARE   ,06/04/2011,3010228,J357340 010511           ,1355.00,WINTERS PARK CARE HOME (C/O BUPA)       ,508138,Social Community Care,RESIDENTIAL CARE HOMES        
PURCHASING ELDERLY            ,9200,CONTINUING RESIDENTIAL CARE   ,06/04/2011,3010230,J357202 010511           ,24900.00,SILVER LODGE CARE HOME                  ,361763,Social Community Care,NURSING HOMES                 
PURCHASING LEARNING DISABILITI,9200,CONTINUING RESIDENTIAL CARE   ,06/04/2011,3010231,J349442 030411           ,6866.08,THE CORNER HOUSE RESIDENTIAL HOME       ,509711,Social Community Care,RESIDENTIAL CARE HOMES        
PURCHASING LEARNING DISABILITI,9200,CONTINUING RESIDENTIAL CARE   ,06/04/2011,3010232,J357343 010511           ,6814.57,THE CORNER HOUSE RESIDENTIAL HOME       ,509711,Social Community Care,RESIDENTIAL CARE HOMES        
PURCHASING ELDERLY            ,9200,CONTINUING RESIDENTIAL CARE   ,06/04/2011,3010233,J357344 010511           ,1568.00,MALLARD COURT CARE HOME                 ,511603,Social Community Care,NURSING HOMES                 
PURCHASING ELDERLY            ,9200,CONTINUING RESIDENTIAL CARE   ,06/04/2011,3010234,J357350 010511           ,1556.80,HOLLY TREE LODGE                        ,519365,Social Community Care,RESIDENTIAL CARE HOMES        
PURCHASING LEARNING DISABILITI,9210,CONTINUING NURSING CARE       ,06/04/2011,3010235,J357361 010511           ,12902.50,CASTLEBECK CARE (TEESDALE) LTD          ,535868,Social Community Care,NURSING HOMES                 
PURCHASING LEARNING DISABILITI,9200,CONTINUING RESIDENTIAL CARE   ,06/04/2011,3010236,J357363 010511           ,6610.84,THE LODGE (CARETECH T/A VALEO)          ,543663,Social Community Care,RESIDENTIAL CARE HOMES        
PURCHASING LEARNING DISABILITI,9200,CONTINUING RESIDENTIAL CARE   ,06/04/2011,3010237,J357365 010511           ,2441.55,MOORVIEW HOUSE                          ,546067,Social Community Care,RESIDENTIAL CARE HOMES        
PURCHASING ELDERLY            ,9200,CONTINUING RESIDENTIAL CARE   ,06/04/2011,3010238,J357122 010511           ,6048.00,KERSAL MOUNT NURSING HOME               ,361765,Social Community Care,NURSING HOMES                 
PURCHASING ELDERLY            ,9210,CONTINUING NURSING CARE       ,06/04/2011,3010238,J357122 010511           ,17392.00,KERSAL MOUNT NURSING HOME               ,361765,Social Community Care,NURSING HOMES                 
PURCHASING ELDERLY            ,9200,SHORT TERM RESIDENTIAL CARE   ,06/04/2011,3010239,J356782 060311           ,1750.86,BELMONT HOUSE NURSING HOME              ,361754,Social Community Care,RESIDENTIAL CARE HOMES        
PURCHASING ELDERLY            ,9200,SHORT TERM RESIDENTIAL CARE   ,06/04/2011,3010240,J349043 060311           ,1023.00,BURNT TREE CROFT                        ,361793,Social Community Care,RESIDENTIAL CARE HOMES        
PURCHASING LEARNING DISABILITI,9200,SHORT TERM RESIDENTIAL CARE   ,06/04/2011,3010241,J349044 060311           ,3556.14,CASTELAYN                               ,361796,Social Community Care,RESIDENTIAL CARE HOMES        
PHYSICAL DISABILITIES PURCHASI,9200,SHORT TERM RESIDENTIAL CARE   ,06/04/2011,3010243,J357001 030411           ,584.57,PADDOCK HILL                            ,361797,Social Community Care,RESIDENTIAL CARE HOMES        
PURCHASING ELDERLY            ,9200,SHORT TERM RESIDENTIAL CARE   ,06/04/2011,3010243,J357001 030411           ,584.57,PADDOCK HILL                            ,361797,Social Community Care,RESIDENTIAL CARE HOMES        
PURCHASING ELDERLY            ,9200,SHORT TERM RESIDENTIAL CARE   ,06/04/2011,3010244,J356998 030411           ,1359.00,GRANGE CRESCENT                         ,361898,Social Community Care,RESIDENTIAL CARE HOMES        
PURCHASING ELDERLY            ,9200,SHORT TERM RESIDENTIAL CARE   ,06/04/2011,3010245,J353463 060311           ,1338.57,ASH HOUSE RESIDENTIAL HOME              ,361901,Social Community Care,RESIDENTIAL CARE HOMES        
PURCHASING ELDERLY            ,9200,SHORT TERM RESIDENTIAL CARE   ,06/04/2011,3010246,J357011 030411           ,3870.00,MOOREND PLACE                           ,361904,Social Community Care,NURSING HOMES                 
PURCHASING LEARNING DISABILITI,9200,SHORT TERM RESIDENTIAL CARE   ,06/04/2011,3010247,J356525 060311           ,1260.00,CARRWOOD HOUSE HOME                     ,362165,Social Community Care,RESIDENTIAL CARE HOMES        
INDEPENDENT FOSTERING PLACEMEN,9270,INDEPENDENT FOSTERING         ,06/04/2011,3010249,92602,900.00,SWIIS FOSTER CARE LTD.                  ,349291,Social Community Care,ADOPTION & FOSTERING          
LEAVING CARE                  ,9270,INDEPENDENT FOSTERING         ,06/04/2011,3010250,3207611,2623.32,HILLCREST CARE LTD                      ,481506,Social Community Care,RESIDENTIAL CARE HOMES        
INDEPENDENT FOSTERING PLACEMEN,9270,INDEPENDENT FOSTERING         ,06/04/2011,3010251,92599,874.00,SWIIS FOSTER CARE LTD.                  ,349291,Social Community Care,ADOPTION & FOSTERING          
INDEPENDENT FOSTERING PLACEMEN,9270,INDEPENDENT FOSTERING         ,06/04/2011,3010252,92600,920.00,SWIIS FOSTER CARE LTD.                  ,349291,Social Community Care,ADOPTION & FOSTERING          
INDEPENDENT FOSTERING PLACEMEN,9270,INDEPENDENT FOSTERING         ,06/04/2011,3010253,92601,900.00,SWIIS FOSTER CARE LTD.                  ,349291,Social Community Care,ADOPTION & FOSTERING          
INDEPENDENT RES BLOCK PLACEMEN,9270,SECURE PLACEMENTS - WELFARE   ,06/04/2011,3010254,70052036,2316.00,DURHAM COUNTY COUNCIL                   ,316046,Unclassified Non Trade,LOCAL GOVERNMENT              
INDEPENDENT RES BLOCK PLACEMEN,9270,INDEPENDENT RESIDENTIAL PMENT ,06/04/2011,3010255,1225,15972.76,PENARTH HOUSE                           ,326884,Social Community Care,CHILDCARE SERVICES            
LEAVING CARE                  ,9270,CARELEAVERS ACCOMMODATION     ,06/04/2011,3010256,4268,3257.14,PROGRESSIVE CARE LTD                    ,343548,Social Community Care,CHILDREN'S HOMES              
INDEPENDENT RES BLOCK PLACEMEN,9270,INDEPENDENT RESIDENTIAL PMENT ,06/04/2011,3010257,4272,2442.86,PROGRESSIVE CARE LTD                    ,343548,Social Community Care,CHILDREN'S HOMES              
LEAVING CARE                  ,9270,CARELEAVERS ACCOMMODATION     ,06/04/2011,3010258,3758,3800.00,TWENTY FOUR SEVEN                       ,364408,Unclassified Non Trade,CHARITIES & VOLUNTARY ORGANISA
PURCHASING LEARNING DISABILITI,9190,DIRECT PAYMENTS               ,06/04/2011,3010261,J357555 010511           ,7038.23,REDACTED PERSONAL DATA                     ,430011,Social Community Care,CAREFIRST DIRECT PAYMENTS     
PHYSICAL DISABILITIES PURCHASI,9190,DIRECT PAYMENTS               ,06/04/2011,3010262,J357556 010511           ,897.18,REDACTED PERSONAL DATA                     ,482478,Social Community Care,CAREFIRST DIRECT PAYMENTS     
PURCHASING LEARNING DISABILITI,9190,DIRECT PAYMENTS               ,06/04/2011,3010263,J357557 010511           ,1822.64,REDACTED PERSONAL DATA                     ,520719,Social Community Care,CAREFIRST DIRECT PAYMENTS     
PURCHASING LEARNING DISABILITI,9190,DIRECT PAYMENTS               ,06/04/2011,3010264,J357558 010511           ,6045.18,REDACTED PERSONAL DATA                     ,535407,Social Community Care,CAREFIRST DIRECT PAYMENTS     
PHYSICAL DISABILITIES PURCHASI,9190,DIRECT PAYMENTS               ,06/04/2011,3010266,J357559 010511           ,1233.08,REDACTED PERSONAL DATA                     ,548369,Social Community Care,CAREFIRST DIRECT PAYMENTS     
PHYSICAL DISABILITIES PURCHASI,9190,DIRECT PAYMENTS               ,06/04/2011,3010267,J357560 010511           ,1288.88,REDACTED PERSONAL DATA                     ,549233,Social Community Care,CAREFIRST DIRECT PAYMENTS     
PURCHASING ELDERLY            ,9190,DIRECT PAYMENTS               ,06/04/2011,3010269,J357563 010511           ,2242.80,REDACTED PERSONAL DATA                     ,549501,Social Community Care,CAREFIRST DIRECT PAYMENTS     
PURCHASING ELDERLY            ,9190,DIRECT PAYMENTS               ,06/04/2011,3010270,J357564 010511           ,2472.87,REDACTED PERSONAL DATA                     ,549502,Social Community Care,CAREFIRST DIRECT PAYMENTS     
PURCHASING ELDERLY            ,9190,DIRECT PAYMENTS               ,06/04/2011,3010271,J357565 010511           ,2685.60,REDACTED PERSONAL DATA                     ,549505,Social Community Care,CAREFIRST DIRECT PAYMENTS     
PURCHASING ELDERLY            ,9190,DIRECT PAYMENTS               ,06/04/2011,3010272,J357566 010511           ,1115.50,REDACTED PERSONAL DATA                     ,549531,Social Community Care,CAREFIRST DIRECT PAYMENTS     
PURCHASING ELDERLY            ,9190,DIRECT PAYMENTS               ,06/04/2011,3010273,J357570 010511           ,1535.75,REDACTED PERSONAL DATA                     ,549535,Social Community Care,CAREFIRST DIRECT PAYMENTS     
PURCHASING LEARNING DISABILITI,9190,DIRECT PAYMENTS               ,06/04/2011,3010275,J357567 010511           ,5961.80,REDACTED PERSONAL DATA                     ,549539,Social Community Care,CAREFIRST DIRECT PAYMENTS     
PURCHASING LEARNING DISABILITI,9190,CITYWIDE SPOT                 ,06/04/2011,3010278,10486,1560.16,SUPPORTED HOUSING SERVICES              ,294949,Facilities Management,HOSTELS                       
PURCHASING                    ,9190,CITYWIDE SPOT                 ,06/04/2011,3010279,10487,1114.40,SUPPORTED HOUSING SERVICES              ,294949,Facilities Management,HOSTELS                       
PURCHASING                    ,9190,CITYWIDE SPOT                 ,06/04/2011,3010280,10488,1973.76,SUPPORTED HOUSING SERVICES              ,294949,Facilities Management,HOSTELS                       
PURCHASING                    ,9190,CITYWIDE SPOT                 ,06/04/2011,3010281,10489,1918.24,SUPPORTED HOUSING SERVICES              ,294949,Facilities Management,HOSTELS                       
PURCHASING ELDERLY            ,9190,CITYWIDE SPOT                 ,06/04/2011,3010282,10490,1504.44,SUPPORTED HOUSING SERVICES              ,294949,Facilities Management,HOSTELS                       
PURCHASING                    ,9190,CITYWIDE SPOT                 ,06/04/2011,3010283,10491,1114.40,SUPPORTED HOUSING SERVICES              ,294949,Facilities Management,HOSTELS                       
PURCHASING ELDERLY            ,9190,CITYWIDE SPOT                 ,06/04/2011,3010284,10492,501.48,SUPPORTED HOUSING SERVICES              ,294949,Facilities Management,HOSTELS                       
PURCHASING LEARNING DISABILITI,9190,CITYWIDE SPOT                 ,06/04/2011,3010285,20074+20075              ,4750.44,CITIZENSHIP FIRST                       ,329379,Unclassified Non Trade,CHARITIES & VOLUNTARY ORGANISA
PURCHASING LEARNING DISABILITI,9190,CITYWIDE SPOT                 ,06/04/2011,3010287,20347,2334.72,CITIZENSHIP FIRST                       ,329379,Unclassified Non Trade,CHARITIES & VOLUNTARY ORGANISA
PURCHASING LEARNING DISABILITI,9190,CITYWIDE SPOT                 ,06/04/2011,3010288,20348,1132.32,CITIZENSHIP FIRST                       ,329379,Unclassified Non Trade,CHARITIES & VOLUNTARY ORGANISA
PURCHASING LEARNING DISABILITI,9190,CITYWIDE SPOT                 ,06/04/2011,3010289,20350,718.56,CITIZENSHIP FIRST                       ,329379,Unclassified Non Trade,CHARITIES & VOLUNTARY ORGANISA
PURCHASING LEARNING DISABILITI,9190,CITYWIDE SPOT                 ,06/04/2011,3010300,20385,1887.20,CITIZENSHIP FIRST                       ,329379,Unclassified Non Trade,CHARITIES & VOLUNTARY ORGANISA
PURCHASING LEARNING DISABILITI,9190,CITYWIDE SPOT                 ,06/04/2011,3010304,20399,1887.20,CITIZENSHIP FIRST                       ,329379,Unclassified Non Trade,CHARITIES & VOLUNTARY ORGANISA
PURCHASING LEARNING DISABILITI,9190,CITYWIDE SPOT                 ,06/04/2011,3010339,20522,2879.40,CITIZENSHIP FIRST                       ,329379,Unclassified Non Trade,CHARITIES & VOLUNTARY ORGANISA
PURCHASING LEARNING DISABILITI,9190,CITYWIDE SPOT                 ,06/04/2011,3010342,20534,754.88,CITIZENSHIP FIRST                       ,329379,Unclassified Non Trade,CHARITIES & VOLUNTARY ORGANISA
PURCHASING LEARNING DISABILITI,9190,CITYWIDE SPOT                 ,06/04/2011,3010343,20535,647.40,CITIZENSHIP FIRST                       ,329379,Unclassified Non Trade,CHARITIES & VOLUNTARY ORGANISA
PURCHASING                    ,9190,CITYWIDE SPOT                 ,06/04/2011,3010347,20552,1294.08,CITIZENSHIP FIRST                       ,329379,Unclassified Non Trade,CHARITIES & VOLUNTARY ORGANISA
PURCHASING LEARNING DISABILITI,9190,CITYWIDE SPOT                 ,06/04/2011,3010349,20558+20559              ,4750.44,CITIZENSHIP FIRST                       ,329379,Unclassified Non Trade,CHARITIES & VOLUNTARY ORGANISA
PURCHASING LEARNING DISABILITI,9190,CITYWIDE SPOT                 ,06/04/2011,3010350,20562,2879.40,CITIZENSHIP FIRST                       ,329379,Unclassified Non Trade,CHARITIES & VOLUNTARY ORGANISA
PURCHASING LEARNING DISABILITI,9190,CITYWIDE SPOT                 ,06/04/2011,3010357,20599,598.80,CITIZENSHIP FIRST                       ,329379,Unclassified Non Trade,CHARITIES & VOLUNTARY ORGANISA
PURCHASING LEARNING DISABILITI,9190,CITYWIDE SPOT                 ,06/04/2011,3010361,20616,1132.32,CITIZENSHIP FIRST                       ,329379,Unclassified Non Trade,CHARITIES & VOLUNTARY ORGANISA
PURCHASING LEARNING DISABILITI,9190,CITYWIDE SPOT                 ,06/04/2011,3010363,20621,902.08,CITIZENSHIP FIRST                       ,329379,Unclassified Non Trade,CHARITIES & VOLUNTARY ORGANISA
PURCHASING LEARNING DISABILITI,9190,CITYWIDE SPOT                 ,06/04/2011,3010365,20625,902.08,CITIZENSHIP FIRST                       ,329379,Unclassified Non Trade,CHARITIES & VOLUNTARY ORGANISA
PURCHASING LEARNING DISABILITI,9190,CITYWIDE SPOT                 ,06/04/2011,3010366,20627,810.36,CITIZENSHIP FIRST                       ,329379,Unclassified Non Trade,CHARITIES & VOLUNTARY ORGANISA
PURCHASING LEARNING DISABILITI,9190,CITYWIDE SPOT                 ,06/04/2011,3010387,17460,709.72,ST ANNE'S COMMUNITY SERVICES            ,351501,Unclassified Non Trade,"HOUSING ASSOCIATIONS, SOCIETIE"
PURCHASING                    ,9190,CITYWIDE SPOT                 ,06/04/2011,3010388,17461,709.72,ST ANNE'S COMMUNITY SERVICES            ,351501,Unclassified Non Trade,"HOUSING ASSOCIATIONS, SOCIETIE"
PURCHASING LEARNING DISABILITI,9190,CITYWIDE SPOT                 ,06/04/2011,3010389,17463,709.72,ST ANNE'S COMMUNITY SERVICES            ,351501,Unclassified Non Trade,"HOUSING ASSOCIATIONS, SOCIETIE"
PURCHASING LEARNING DISABILITI,9190,CITYWIDE SPOT                 ,06/04/2011,3010390,181636,709.72,ST ANNE'S COMMUNITY SERVICES            ,351501,Unclassified Non Trade,"HOUSING ASSOCIATIONS, SOCIETIE"
BIRLEY                        ,1194,OTHER FEES                    ,06/04/2011,3010557,263146,2106.50,ADDLESHAW GODDARD                       ,417091,Legal Services,SOLICITORS                    
BRADFIELD                     ,1194,OTHER FEES                    ,06/04/2011,3010558,263155,22264.01,ADDLESHAW GODDARD                       ,417091,Legal Services,SOLICITORS                    
HANDSWORTH GRANGE             ,1194,OTHER FEES                    ,06/04/2011,3010559,263147,1881.00,ADDLESHAW GODDARD                       ,417091,Legal Services,SOLICITORS                    
NOTRE DAME                    ,1194,OTHER FEES                    ,06/04/2011,3010561,263145,3644.00,ADDLESHAW GODDARD                       ,417091,Legal Services,SOLICITORS                    
KING EDWARDS (UP)             ,1161,NC&A MAIN CONTRACT            ,06/04/2011,3010565,574,862962.76,SHEFFIELD LEP LTD                       ,482230,Unclassified Non Trade,LOCAL GOVERNMENT              
PFI CONTRIBUTIONS             ,4460,RECHARGES                     ,06/04/2011,3010566,573,98770.15,SHEFFIELD LEP LTD                       ,482230,Unclassified Non Trade,LOCAL GOVERNMENT              
TRANSPORT FLEET MANAGEMENT    ,8070,STOCKS AND STORES             ,06/04/2011,3010603,6079923,22650.00,CARLTON FUELS                           ,466741,Vehicles Not Buses,FUEL DEALERS                  
OLIVE GROVE WORKSHOPS         ,7010,ROUTINE VEHICLE REPAIR & MTCE ,06/04/2011,3010626,145475,540.09,SWIFT PLANT SPARES LIMITED              ,208743,Vehicles Not Buses,"COMMERCIAL VEHICLE SERVICING, "
OLIVE GROVE WORKSHOPS         ,7010,ROUTINE VEHICLE REPAIR & MTCE ,06/04/2011,3010627,145497,1105.18,SWIFT PLANT SPARES LIMITED              ,208743,Vehicles Not Buses,"COMMERCIAL VEHICLE SERVICING, "
CREATIVE SERVICES             ,9120,OTHER AGENCIES                ,06/04/2011,3010664,58813,919.24,PRINT AND DESIGN FACTORY LTD.           ,207663,Facilities Management,PRINTERS                      
CHIEF EXECUTIVE               ,8240,CONFERENCE EXPENSES           ,06/04/2011,3010700,298,970.00,EMERGENCY PLANNING SOCIETY              ,382880,Human Resources,INSTITUTES - PROFESSIONAL     
CARE PROCEEDINGS (LEGAL FEES) ,8470,LEGAL FEES                    ,06/04/2011,3010714,125050,600.00,MISS N G ERLEN                          ,465151,Legal Services,BARRISTERS                    
STREET FORCE BALANCE SHEET    ,776,4332101 INVOICES PAID         ,06/04/2011,3010733,51208,2244.91,CONSTANT SECURITY SERVICES LIMITED      ,501937,Facilities Management,SECURITY SERVICES             
STREET FORCE BALANCE SHEET    ,776,4332101 INVOICES PAID         ,06/04/2011,3010734,51209,6734.73,CONSTANT SECURITY SERVICES LIMITED      ,501937,Facilities Management,SECURITY SERVICES             
STREET FORCE BALANCE SHEET    ,776,4332101 INVOICES PAID         ,06/04/2011,3010735,I0074419                 ,7068.00,MET OFFICE                              ,550029,Unclassified Non Trade,WEATHER SERVICES              
STREET FORCE BALANCE SHEET    ,776,4332101 INVOICES PAID         ,06/04/2011,3010736,VAL 10                   ,20245.43,RITCHIE MACKENZIE & CO LTD              ,525814,Building Construction Materials,"PUMPS - SALES, SERVICING & REP"
LIFELONG LEARNING MANAGER     ,8080,LIBRARY MATERIALS             ,06/04/2011,3010745,1255394,508.10,BERTRAM LIBRARY SERVICES                ,418929,Education,EDUCATIONAL EQUIPMENT & SUPPLI
LIFELONG LEARNING MANAGER     ,8080,LIBRARY MATERIALS             ,06/04/2011,3010749,1256577,645.00,BERTRAM LIBRARY SERVICES                ,418929,Education,EDUCATIONAL EQUIPMENT & SUPPLI
SCHOOLS LIBRARY SERVICE       ,8080,LIBRARY MATERIALS             ,06/04/2011,3010872,1256422,1111.66,BERTRAM LIBRARY SERVICES                ,418929,Education,EDUCATIONAL EQUIPMENT & SUPPLI
LIFELONG LEARNING MANAGER     ,8080,LIBRARY MATERIALS             ,06/04/2011,3010874,1255093,556.76,BERTRAM LIBRARY SERVICES                ,418929,Education,EDUCATIONAL EQUIPMENT & SUPPLI
LIFELONG LEARNING MANAGER     ,8080,LIBRARY MATERIALS             ,06/04/2011,3010881,1256829,569.59,BERTRAM LIBRARY SERVICES                ,418929,Education,EDUCATIONAL EQUIPMENT & SUPPLI
LIFELONG LEARNING MANAGER     ,8080,LIBRARY MATERIALS             ,06/04/2011,3010882,1256632,518.40,BERTRAM LIBRARY SERVICES                ,418929,Education,EDUCATIONAL EQUIPMENT & SUPPLI
LIFELONG LEARNING MANAGER     ,8080,LIBRARY MATERIALS             ,06/04/2011,3010886,I-400078982              ,1447.94,COUTTS INFORMATION SERVICES LIMITED     ,413252,Education,BOOKSELLERS                   
LIFELONG LEARNING MANAGER     ,8080,LIBRARY MATERIALS             ,06/04/2011,3010891,I525144                  ,3075.96,ULVERSCROFT LARGE PRINT BOOKS LTD       ,209221,Education,BOOK PUBLISHERS               
LIFELONG LEARNING MANAGER     ,8080,LIBRARY MATERIALS             ,06/04/2011,3010901,14482,1977.95,OAKHILL PUBLISHING LTD.                 ,442102,Education,MULTIMEDIA & ELECTRONIC BOOK P
LIFELONG LEARNING MANAGER     ,8080,LIBRARY MATERIALS             ,06/04/2011,3010917,M13925                   ,1995.00,MINTEL INTERNATIONAL GROUP LTD          ,511749,Facilities Management,MARKET RESEARCH               
LIFELONG LEARNING MANAGER     ,8080,LIBRARY MATERIALS             ,06/04/2011,3010993,1255312,856.84,BERTRAM LIBRARY SERVICES                ,418929,Education,EDUCATIONAL EQUIPMENT & SUPPLI
LIFELONG LEARNING MANAGER     ,8080,LIBRARY MATERIALS             ,06/04/2011,3010999,1255102,1707.39,BERTRAM LIBRARY SERVICES                ,418929,Education,EDUCATIONAL EQUIPMENT & SUPPLI
SWAN                          ,1146,L&B PROFESSIONAL FEES         ,06/04/2011,3011002,ERS INVOICE49395         ,79808.00,REDACTED PERSONAL DATA                   ,549577,Unclassified Non Trade,OUT OF SCOPE FOR SIC MONITORIN
SWAN                          ,1146,L&B PROFESSIONAL FEES         ,06/04/2011,3011003,ERS INVOICE49396         ,83039.82,JSP SOLICITORS                          ,428998,Legal Services,SOLICITORS                    
ELECTORAL REGISTRATION        ,5790,EMPLOYEE EXPENSES             ,06/04/2011,3011004,ERS INVOICE49397         ,35633.78,HMRC                                    ,300496,Unclassified Non Trade,CENTRAL GOVERNMENT            
V TALENT YEAR                 ,8350,MISCELLANEOUS EXPENSES        ,06/04/2011,3011006,ERS INVOICE49399         ,509.36,REDACTED PERSONAL DATA                   ,534020,Unclassified Non Trade,OUT OF SCOPE FOR SIC MONITORIN
PREMIUMS                      ,8740,PREMIUMS                      ,06/04/2011,3011009,ERS INVOICE49405         ,179408.39,ST PAULS TRAVELERS INSURANCE CO LTD     ,397437,Financial Services,INSURANCE - OTHER             
ALDINE HOUSE                  ,5610,AGENCY STAFF                  ,06/04/2011,3011010,ERS INVOICE49406         ,2340.00,REDACTED PERSONAL DATA                   ,543584,Unclassified Non Trade,OUT OF SCOPE FOR SIC MONITORIN
PRECEPTS & LEVIES             ,9120,OTHER AGENCIES                ,06/04/2011,3011013,ERS INVOICE49409         ,36602.00,ENVIRONMENT AGENCY                      ,397029,Unclassified Non Trade,CENTRAL GOVERNMENT            
PRECEPTS & LEVIES             ,9130,PTA LEVY                      ,06/04/2011,3011014,ERS INVOICE49410         ,3425236.00,S YORKS INTEGRATED TRANSPORT AUTHORITY  ,511634,Unclassified Non Trade,LOCAL GOVERNMENT              
SWAN COMMISSIONED             ,1143,COMPENSATION                  ,06/04/2011,3011019,ERS INVOICE49418         ,4700.00,REDACTED PERSONAL DATA                   ,549469,Unclassified Non Trade,OUT OF SCOPE FOR SIC MONITORIN
KIRKLEES RHB LOANS HAL        ,1194,OTHER FEES                    ,06/04/2011,3011020,ERS INVOICE49419         ,881.25, NORTHERN DESIGN PARTNERSHIP            ,549362,Consultancy,ARCHITECTS                    
YORK RF FUNDS HAL             ,1194,OTHER FEES                    ,06/04/2011,3011022,ERS INVOICE49421         ,1719.37,CITY OF YORK COUNCIL                    ,319430,Unclassified Non Trade,LOCAL GOVERNMENT              
YORK RHB LOANS HAL            ,1194,OTHER FEES                    ,06/04/2011,3011023,ERS INVOICE49422         ,1077.60,BRITANNIA PRESERVATION                  ,549834,Unclassified Non Trade,OUT OF SCOPE FOR SIC MONITORIN
YORK RHB LOANS HAL            ,1194,OTHER FEES                    ,06/04/2011,3011024,ERS INVOICE49423         ,2218.18,CITY OF YORK COUNCIL                    ,319430,Unclassified Non Trade,LOCAL GOVERNMENT              
INVESTMENT IN COMMUNITIES2    ,8560,TPB NORTH                     ,06/04/2011,3011025,ERS INVOICE49424         ,9000.00,FRIENDS OF CHAPELTOWN & HIGH GREEN PARKS,379214,Unclassified Non Trade,CHARITIES & VOLUNTARY ORGANISA
LEEDS - WY SUB REGION HAL     ,1194,OTHER FEES                    ,06/04/2011,3011027,ERS INVOICE49426         ,951.96,LEEDS CITY COUNCIL                      ,515679,Unclassified Non Trade,LOCAL GOVERNMENT              
CALDERDALE-WY SUB REGION HAL  ,1194,OTHER FEES                    ,06/04/2011,3011042,ERS INVOICE49440         ,1242.82,CALDERDALE MBC                          ,460421,Unclassified Non Trade,LOCAL GOVERNMENT              
EMPLOYEE DEVELOPMENT          ,5750,EXTERNAL TRAINERS COSTS       ,06/04/2011,3011051,ERS INVOICE49449         ,740.00,ROBERT WARD                             ,509382,Health and Safety,HEALTH & SAFETY TRAINING      
TRAINING                      ,5750,TRAINING EXPENDITURE          ,06/04/2011,3011053,ERS INVOICE49451         ,860.00,MR PETER KENNEDY                        ,542893,Human Resources,TRAINING SERVICES             
LIFELONG LEARNING MANAGER     ,8080,LIBRARY MATERIALS             ,06/04/2011,3011056,1255082,2849.78,BERTRAM LIBRARY SERVICES                ,418929,Education,EDUCATIONAL EQUIPMENT & SUPPLI
SMALL EDUCATION CAP GRANTS    ,1167,RENOVATIONS & REFURBISHMENTS  ,06/04/2011,3011070,INV000190                ,22500.00,DARNALL COMMUNITY NURSERY               ,515866,Unclassified Non Trade,"PLAYGROUPS, NURSERIES & CRECHE"
PAYP                          ,8440,FEE EXPENSES                  ,06/04/2011,3011098,ERS INVOICE49454         ,960.32,MR JOSEPH LOGAN                         ,502558,Education,EDUCATIONAL TRAINING PROVIDERS
SAFE & WARM SHEFFIELD         ,1165,NC&A OTHER                    ,06/04/2011,3011099,ERS INVOICE49457         ,500.00,DONCASTER MBC                           ,385512,Unclassified Non Trade,LOCAL GOVERNMENT              
POSITIVE ACTIVITIES FOR 8-13'S,9120,OTHER AGENCIES                ,06/04/2011,3011102,ERS INVOICE49460         ,935.00,CONCORD DRUM & BUGLE CORPS              ,410486,Leisure Services,"CLUBS & ASSOCIATIONS - SOCIAL,"
POSITIVE ACTIVITIES FOR 8-13'S,9120,OTHER AGENCIES                ,06/04/2011,3011103,ERS INVOICE49461         ,1000.00,HEELEY CITY FARM                        ,301277,Unclassified Non Trade,CHARITIES & VOLUNTARY ORGANISA
NORTH LINCS RHB LOANS HAL     ,1194,OTHER FEES                    ,06/04/2011,3011104,ERS INVOICE49462         ,5754.25,ALPHABEACON BUILDERS LTD                ,545681,Construction,BUILDERS                      
LEEDS RHB LOANS HAL           ,1194,OTHER FEES                    ,06/04/2011,3011105,ERS INVOICE49463         ,10052.13,MANKU CONSTRUCTION LTD                  ,528042,Construction,BUILDERS                      
YORK RHB LOANS HAL            ,1194,OTHER FEES                    ,06/04/2011,3011106,ERS INVOICE49464         ,8973.48,GEOFF NEAL ROOFING LTD                  ,549246,Construction,ROOFING SERVICES              
CALDERDALE-WY SUB REGION HAL  ,1194,OTHER FEES                    ,06/04/2011,3011107,ERS INVOICE49465         ,9063.26,CALDERDALE MBC                          ,460421,Unclassified Non Trade,LOCAL GOVERNMENT              
CALDERDALE-WY SUB REGION HAL  ,1194,OTHER FEES                    ,06/04/2011,3011108,ERS INVOICE49466         ,6229.20,CALDERDALE MBC                          ,460421,Unclassified Non Trade,LOCAL GOVERNMENT              
BRADFORD RHB LOANS HAL        ,1194,OTHER FEES                    ,06/04/2011,3011109,ERS INVOICE49467         ,6400.00,CITY OF BRADFORD MDC                    ,492479,Unclassified Non Trade,LOCAL GOVERNMENT              
CLAIMS                        ,8740,PUBLIC LIABILITY              ,06/04/2011,3011111,ERS INVOICE49469         ,2740.00,REDACTED PERSONAL DATA                   ,550066,Unclassified Non Trade,OUT OF SCOPE FOR SIC MONITORIN
CLAIMS                        ,8740,PUBLIC LIABILITY              ,06/04/2011,3011112,ERS INVOICE49470         ,566.00,DEPARTMENT FOR WORK & PENSIONS          ,326920,Unclassified Non Trade,CENTRAL GOVERNMENT            
CLAIMS                        ,8740,PUBLIC LIABILITY              ,06/04/2011,3011114,ERS INVOICE49472         ,4425.00,REDACTED PERSONAL DATA                   ,520297,Unclassified Non Trade,OUT OF SCOPE FOR SIC MONITORIN
CLAIMS                        ,8740,HIGHWAYS                      ,06/04/2011,3011115,ERS INVOICE49473         ,1200.00,REDACTED PERSONAL DATA                   ,550062,Unclassified Non Trade,OUT OF SCOPE FOR SIC MONITORIN
CLAIMS                        ,8740,HIGHWAYS                      ,06/04/2011,3011116,ERS INVOICE49474         ,566.00,DEPARTMENT FOR WORK & PENSIONS          ,326920,Unclassified Non Trade,CENTRAL GOVERNMENT            
CLAIMS                        ,8740,HIGHWAYS                      ,06/04/2011,3011117,ERS INVOICE49475         ,4838.80,KH INJURY LAWYERS                       ,206172,Legal Services,SOLICITORS                    
CLAIMS                        ,8740,MOTOR VEHICLE                 ,06/04/2011,3011118,ERS INVOICE49476         ,2546.74,JOHN CUNNINGHAM AND ASSOCIATES          ,543882,Legal Services,LEGAL SERVICES                
CRAVEN RHB LOANS HAL          ,1194,OTHER FEES                    ,06/04/2011,3011120,ERS INVOICE49478         ,540.00,WAKE SMITH & TOFIELDS SOLICITORS        ,209393,Legal Services,SOLICITORS                    
PURCHASING                    ,9190,DIRECT PAYMENTS               ,06/04/2011,3011468,J357561 010511           ,1880.28,REDACTED PERSONAL DATA                     ,549413,Social Community Care,CAREFIRST DIRECT PAYMENTS     
MILLHOUSES WATER PLAY FEATURE ,1194,OTHER FEES                    ,07/04/2011,3000449,486,2880.00,DAVID ROBINS LANDSCAPING                ,529824,Construction,LANDSCAPE CONTRACTORS & GARDEN
STREET FORCE BALANCE SHEET    ,776,4332101 INVOICES PAID         ,07/04/2011,3011178,410588,6798.49,SALT UNION LIMITED                      ,493089,Unclassified Trade,CHEMICALS & ALLIED PRODUCTS   
STREET FORCE BALANCE SHEET    ,776,4332101 INVOICES PAID         ,07/04/2011,3011190,5991013,651.30,CARLTON FUELS                           ,466741,Vehicles Not Buses,FUEL DEALERS                  
CREATIVE SERVICES             ,9120,OTHER AGENCIES                ,07/04/2011,2979874,17358,790.00,P & N CORPORATE MEDIA LTD               ,308965,Facilities Management,DESIGNERS - GRAPHIC           
CATERING PREMISES & EQUIPMENT ,8030,EQUIPMENT MAINTENANCE CONTRACT,07/04/2011,2983850,11/29T                   ,539.77,LEEDA ELECTRICAL LIMITED                ,206382,Construction,ELECTRICIANS & ELECTRICAL CONT
POST IMPLEMENTATION           ,1183,PURCHASE OF EQUIPMENT         ,07/04/2011,2989665,SIN012150                ,1581.94,PETER HOUSLEY REMOVALS                  ,207489,Transport,REMOVALS & STORAGE - HOUSEHOLD
CATERING PREMISES & EQUIPMENT ,8010,EQUIPMENT PURCHASE AND REPAIR ,07/04/2011,2997357,SIN134585                ,1976.76,T P FAY (KIRKBY) LTD                    ,406063,Domestic Goods,"ELECTRICAL GOODS SALES, MNFRS "
NIAGARA WEIR LANDSCAPING      ,1192,DESIGN FEES                   ,07/04/2011,2998876,1590,5000.00,CAMPBELL DESIGN & ENGINEERING LTD       ,320626,Building Construction Materials,METAL WORKERS                 
NORTH AREA ESTATE OFFICERS    ,6090,TIPPING COSTS                 ,07/04/2011,3006163,FOR4091                  ,790.00,FORWARD ENVIRONMENTAL LIMITED           ,440387,Environmental Services,PEST & VERMIN CONTROL         
CATERING PREMISES & EQUIPMENT ,8010,EQUIPMENT PURCHASE AND REPAIR ,07/04/2011,3006164,IN11003228               ,528.00,TOTAL REFRIGERATION LTD                 ,323517,Domestic Goods,REFRIGERATION EQUIPMENT - COMM
CATERING PREMISES & EQUIPMENT ,8010,EQUIPMENT PURCHASE AND REPAIR ,07/04/2011,3006165,IN11003229               ,528.00,TOTAL REFRIGERATION LTD                 ,323517,Domestic Goods,REFRIGERATION EQUIPMENT - COMM
